Workbook

Sheet Main
B10: 2019-10-01
B12: Sheet No. | C12: Template Name | D12: Summary
B13: 1 | C13: Future Intra | D13: For Intraday trading in F&O segment
B14: 2 | C14: Cash Intra | D14: For Intraday trading in cash market segment
B15: 3 | C15: Mid-cap Intra | D15: For Intraday trading in Mid-cap stocks
B16: 4 | C16: Bulk Deals | D16: Reveals Bulk Deals carried on NSE & BSE
B17: 5 | C17: Call Tracker
K27: `

Sheet Future Intra
M5: Back to Main Page
A6: FOR INTRA DAY TRADING | L6: =Main!B10 -> 2019-10-01
A9: Sr.no | B9: Sector | C9: Scrip | D9: CLOSE RATE | E9: Pivot Point | F9: Supports | I9: Resistances
B10: Sector | D10: Point | E10: Point | F10: S1 | G10: S2 | H10: S3 | I10: R1 | J10: R2 | K10: R3 | L10: HIGH | M10: LOW | N10: OI | O10: % Change in OI
A11: 1 | B11: Index | C11: BANKNIFTY | D11: 29324.70 | E11: 29461.27 | F11: 28966.93 | G11: 28609.17 | H11: 28114.83 | I11: 29819.03 | J11: 30313.37 | K11: 30671.13 | L11: 29955.6 | M11: 29103.5 | N11: 1375660 | O11: 37.35%
A12: 2 | B12: Index | C12: NIFTY | D12: 11534.60 | E12: 11519.70 | F12: 11459.90 | G12: 11385.20 | H12: 11325.40 | I12: 11594.40 | J12: 11654.20 | K12: 11728.90 | L12: 11579.5 | M12: 11445 | N12: 15513750 | O12: 1.18%
A13: 3 | B13: Index | C13: NIFTYIT | D13: 15556.00 | E13: 15505.33 | F13: 15420.67 | G13: 15285.33 | H13: 15200.67 | I13: 15640.67 | J13: 15725.33 | K13: 15860.67 | L13: 15590 | M13: 15370 | N13: 10350 | O13: -20.38%
A14: 4 | B14: Cement | C14: ACC | D14: 1617.90 | E14: 1622.70 | F14: 1601.50 | G14: 1585.10 | H14: 1563.90 | I14: 1639.10 | J14: 1660.30 | K14: 1676.70 | L14: 1643.9 | M14: 1606.3 | N14: 2067600 | O14: 2.76%
A15: 5 | B15: Others | C15: ADANIENT | D15: 146.45 | E15: 146.93 | F15: 143.42 | G15: 140.38 | H15: 136.87 | I15: 149.97 | J15: 153.48 | K15: 156.52 | L15: 150.45 | M15: 143.9 | N15: 25280000 | O15: 0.11%
A16: 6 | B16: Others | C16: ADANIPORTS | D16: 415.60 | E16: 412.38 | F16: 407.82 | G16: 400.03 | H16: 395.47 | I16: 420.17 | J16: 424.73 | K16: 432.52 | L16: 416.95 | M16: 404.6 | N16: 10930000 | O16: -1.77%
A17: 7 | B17: Power | C17: ADANIPOWER | D17: 64.55 | E17: 65.07 | F17: 63.03 | G17: 61.52 | H17: 59.48 | I17: 66.58 | J17: 68.62 | K17: 70.13 | L17: 67.1 | M17: 63.55 | N17: 91940000 | O17: -2.07%
A18: 8 | B18: Automobile | C18: AMARAJABAT | D18: 719.80 | E18: 715.00 | F18: 707.25 | G18: 694.70 | H18: 686.95 | I18: 727.55 | J18: 735.30 | K18: 747.85 | L18: 722.75 | M18: 702.45 | N18: 1673000 | O18: -1.81%
A19: 9 | B19: Cement | C19: AMBUJACEM | D19: 205.45 | E19: 205.65 | F19: 203.70 | G19: 201.95 | H19: 200.00 | I19: 207.40 | J19: 209.35 | K19: 211.10 | L19: 207.6 | M19: 203.9 | N19: 24175000 | O19: -1.16%
A20: 10 | B20: Others | C20: APOLLOHOSP | D20: 1401.70 | E20: 1395.70 | F20: 1378.00 | G20: 1354.30 | H20: 1336.60 | I20: 1419.40 | J20: 1437.10 | K20: 1460.80 | L20: 1413.4 | M20: 1372 | N20: 1835000 | O20: 1.38%
A21: 11 | B21: Automobile | C21: APOLLOTYRE | D21: 181.10 | E21: 180.53 | F21: 176.97 | G21: 172.83 | H21: 169.27 | I21: 184.67 | J21: 188.23 | K21: 192.37 | L21: 184.1 | M21: 176.4 | N21: 7398000 | O21: 4.76%
A22: 13 | B22: Automobile | C22: ASHOKLEY | D22: 68.95 | E22: 69.23 | F22: 66.22 | G22: 63.48 | H22: 60.47 | I22: 71.97 | J22: 74.98 | K22: 77.72 | L22: 72.25 | M22: 66.5 | N22: 69756000 | O22: -0.65%
A23: 14 | B23: FMCG | C23: ASIANPAINT | D23: 1771.10 | E23: 1763.40 | F23: 1749.95 | G23: 1728.80 | H23: 1715.35 | I23: 1784.55 | J23: 1798.00 | K23: 1819.15 | L23: 1776.85 | M23: 1742.25 | N23: 8470800 | O23: 0.27%
A24: 15 | B24: Pharma | C24: AUROPHARMA | D24: 590.65 | E24: 592.57 | F24: 580.08 | G24: 569.52 | H24: 557.03 | I24: 603.13 | J24: 615.62 | K24: 626.18 | L24: 605.05 | M24: 582 | N24: 15117000 | O24: 1.84%
A25: 16 | B25: Banking | C25: AXISBANK | D25: 690.40 | E25: 698.00 | F25: 679.60 | G25: 668.80 | H25: 650.40 | I25: 708.80 | J25: 727.20 | K25: 738.00 | L25: 716.4 | M25: 687.2 | N25: 59319600 | O25: 8.80%
A26: 17 | B26: Automobile | C26: BAJAJ-AUTO | D26: 2959.80 | E26: 2957.62 | F26: 2923.08 | G26: 2886.37 | H26: 2851.83 | I26: 2994.33 | J26: 3028.87 | K26: 3065.58 | L26: 2992.15 | M26: 2920.9 | N26: 2108500 | O26: 0.95%
A27: 18 | B27: Finance | C27: BAJAJFINSV | D27: 8576.95 | E27: 8589.82 | F27: 8454.88 | G27: 8332.82 | H27: 8197.88 | I27: 8711.88 | J27: 8846.82 | K27: 8968.88 | L27: 8724.75 | M27: 8467.75 | N27: 1025000 | O27: 1.93%
A28: 19 | B28: Finance | C28: BAJFINANCE | D28: 4076.25 | E28: 4081.92 | F28: 4039.33 | G28: 4002.42 | H28: 3959.83 | I28: 4118.83 | J28: 4161.42 | K28: 4198.33 | L28: 4124.5 | M28: 4045 | N28: 6189750 | O28: 1.35%
A29: 20 | B29: Automobile | C29: BALKRISIND | D29: 782.45 | E29: 778.10 | F29: 771.40 | G29: 760.35 | H29: 753.65 | I29: 789.15 | J29: 795.85 | K29: 806.90 | L29: 784.8 | M29: 767.05 | N29: 1632000 | O29: 2.41%
A30: 21 | B30: Banking | C30: BANKBARODA | D30: 93.25 | E30: 93.62 | F30: 91.23 | G30: 89.22 | H30: 86.83 | I30: 95.63 | J30: 98.02 | K30: 100.03 | L30: 96 | M30: 91.6 | N30: 66271500 | O30: 2.14%
A31: 22 | B31: Banking | C31: BANKINDIA | D31: 62.15 | E31: 63.17 | F31: 60.53 | G31: 58.92 | H31: 56.28 | I31: 64.78 | J31: 67.42 | K31: 69.03 | L31: 65.8 | M31: 61.55 | N31: 27180000 | O31: 8.32%
A32: 23 | B32: FMCG | C32: BATAINDIA | D32: 1729.25 | E32: 1737.68 | F32: 1709.72 | G32: 1690.18 | H32: 1662.22 | I32: 1757.22 | J32: 1785.18 | K32: 1804.72 | L32: 1765.65 | M32: 1718.15 | N32: 2375450 | O32: -2.42%
A33: 24 | B33: Capital_Goods | C33: BEL | D33: 108.60 | E33: 107.60 | F33: 106.35 | G33: 104.10 | H33: 102.85 | I33: 109.85 | J33: 111.10 | K33: 113.35 | L33: 108.85 | M33: 105.35 | N33: 20100000 | O33: -5.90%
A34: 25 | B34: FMCG | C34: BERGEPAINT | D34: 435.75 | E34: 437.10 | F34: 431.90 | G34: 428.05 | H34: 422.85 | I34: 440.95 | J34: 446.15 | K34: 450.00 | L34: 442.3 | M34: 433.25 | N34: 4573800 | O34: 0.05%
A35: 26 | B35: Automobile | C35: BHARATFORG | D35: 447.10 | E35: 446.73 | F35: 439.37 | G35: 431.63 | H35: 424.27 | I35: 454.47 | J35: 461.83 | K35: 469.57 | L35: 454.1 | M35: 439 | N35: 7594800 | O35: 4.99%
A36: 27 | B36: Telecom | C36: BHARTIARTL | D36: 369.65 | E36: 363.85 | F36: 351.70 | G36: 333.75 | H36: 321.60 | I36: 381.80 | J36: 393.95 | K36: 411.90 | L36: 376 | M36: 345.9 | N36: 42336072 | O36: 9.47%
A37: 28 | B37: Capital_Goods | C37: BHEL | D37: 48.55 | E37: 48.77 | F37: 47.28 | G37: 46.02 | H37: 44.53 | I37: 50.03 | J37: 51.52 | K37: 52.78 | L37: 50.25 | M37: 47.5 | N37: 47460000 | O37: 3.05%
A38: 29 | B38: Pharma | C38: BIOCON | D38: 223.75 | E38: 222.20 | F38: 219.50 | G38: 215.25 | H38: 212.55 | I38: 226.45 | J38: 229.15 | K38: 233.40 | L38: 224.9 | M38: 217.95 | N38: 13240800 | O38: -2.45%
A39: 30 | B39: Automobile | C39: BOSCHLTD | D39: 14137.95 | E39: 14042.07 | F39: 13908.93 | G39: 13679.92 | H39: 13546.78 | I39: 14271.08 | J39: 14404.22 | K39: 14633.23 | L39: 14175.2 | M39: 13813.05 | N39: 156750 | O39: -1.14%
A40: 31 | B40: Oil_Gas | C40: BPCL | D40: 473.95 | E40: 474.95 | F40: 468.00 | G40: 462.05 | H40: 455.10 | I40: 480.90 | J40: 487.85 | K40: 493.80 | L40: 481.9 | M40: 469 | N40: 23850000 | O40: -0.86%
A41: 32 | B41: FMCG | C41: BRITANNIA | D41: 2969.55 | E41: 2987.52 | F41: 2935.43 | G41: 2901.32 | H41: 2849.23 | I41: 3021.63 | J41: 3073.72 | K41: 3107.83 | L41: 3039.6 | M41: 2953.4 | N41: 2194200 | O41: 4.03%
A42: 34 | B42: Pharma | C42: CADILAHC | D42: 234.60 | E42: 235.05 | F42: 228.10 | G42: 221.60 | H42: 214.65 | I42: 241.55 | J42: 248.50 | K42: 255.00 | L42: 242 | M42: 228.55 | N42: 9507200 | O42: 0.10%
A43: 35 | B43: Banking | C43: CANBK | D43: 182.90 | E43: 184.77 | F43: 178.48 | G43: 174.07 | H43: 167.78 | I43: 189.18 | J43: 195.47 | K43: 199.88 | L43: 191.05 | M43: 180.35 | N43: 13254000 | O43: 2.35%
A44: 36 | B44: Oil_Gas | C44: CASTROLIND | D44: 135.90 | E44: 134.10 | F44: 131.65 | G44: 127.40 | H44: 124.95 | I44: 138.35 | J44: 140.80 | K44: 145.05 | L44: 136.55 | M44: 129.85 | N44: 5810600 | O44: -0.58%
A45: 37 | B45: Textile | C45: CENTURYTEX | D45: 911.70 | E45: 909.37 | F45: 896.43 | G45: 881.17 | H45: 868.23 | I45: 924.63 | J45: 937.57 | K45: 952.83 | L45: 922.3 | M45: 894.1 | N45: 3235800 | O45: 3.59%
A46: 38 | B46: Power | C46: CESC | D46: 752.30 | E46: 753.47 | F46: 739.18 | G46: 726.07 | H46: 711.78 | I46: 766.58 | J46: 780.87 | K46: 793.98 | L46: 767.75 | M46: 740.35 | N46: 1700000 | O46: 4.53%
A47: 39 | B47: Finance | C47: CHOLAFIN | D47: 308.70 | E47: 309.85 | F47: 305.85 | G47: 303.00 | H47: 299.00 | I47: 312.70 | J47: 316.70 | K47: 319.55 | L47: 313.85 | M47: 307 | N47: 2937500 | O47: -6.60%
A48: 40 | B48: Pharma | C48: CIPLA | D48: 428.45 | E48: 428.15 | F48: 420.80 | G48: 413.15 | H48: 405.80 | I48: 435.80 | J48: 443.15 | K48: 450.80 | L48: 435.5 | M48: 420.5 | N48: 13302000 | O48: 8.19%
A49: 41 | B49: Others | C49: COALINDIA | D49: 200.75 | E49: 199.80 | F49: 197.90 | G49: 195.05 | H49: 193.15 | I49: 202.65 | J49: 204.55 | K49: 207.40 | L49: 201.7 | M49: 196.95 | N49: 35796200 | O49: 0.45%
A50: 42 | B50: FMCG | C50: COLPAL | D50: 1515.30 | E50: 1521.60 | F50: 1494.70 | G50: 1474.10 | H50: 1447.20 | I50: 1542.20 | J50: 1569.10 | K50: 1589.70 | L50: 1548.5 | M50: 1501 | N50: 1423100 | O50: 1.65%
A51: 43 | B51: Others | C51: CONCOR | D51: 607.95 | E51: 605.22 | F51: 596.13 | G51: 584.32 | H51: 575.23 | I51: 617.03 | J51: 626.12 | K51: 637.93 | L51: 614.3 | M51: 593.4 | N51: 4731201 | O51: -9.48%
A52: 44 | B52: Capital_Goods | C52: CUMMINSIND | D52: 575.75 | E52: 576.63 | F52: 569.62 | G52: 563.48 | H52: 556.47 | I52: 582.77 | J52: 589.78 | K52: 595.92 | L52: 583.65 | M52: 570.5 | N52: 1530900 | O52: 3.85%
A53: 45 | B53: FMCG | C53: DABUR | D53: 448.75 | E53: 447.63 | F53: 444.67 | G53: 440.58 | H53: 437.62 | I53: 451.72 | J53: 454.68 | K53: 458.77 | L53: 450.6 | M53: 443.55 | N53: 11285000 | O53: 0.29%
A54: 47 | B54: Media | C54: DISHTV | D54: 18.30 | E54: 18.55 | F54: 17.55 | G54: 16.80 | H54: 15.80 | I54: 19.30 | J54: 20.30 | K54: 21.05 | L54: 19.55 | M54: 17.8 | N54: 106120000 | O54: 0.20%
A55: 48 | B55: Pharma | C55: DIVISLAB | D55: 1673.50 | E55: 1671.63 | F55: 1661.87 | G55: 1650.23 | H55: 1640.47 | I55: 1683.27 | J55: 1693.03 | K55: 1704.67 | L55: 1681.4 | M55: 1660 | N55: 2640400 | O55: -0.20%
A56: 49 | B56: Realty | C56: DLF | D56: 156.30 | E56: 156.10 | F56: 152.40 | G56: 148.50 | H56: 144.80 | I56: 160.00 | J56: 163.70 | K56: 167.60 | L56: 159.8 | M56: 152.2 | N56: 44486400 | O56: -1.74%
A57: 50 | B57: Pharma | C57: DRREDDY | D57: 2722.90 | E57: 2730.25 | F57: 2702.70 | G57: 2682.50 | H57: 2654.95 | I57: 2750.45 | J57: 2778.00 | K57: 2798.20 | L57: 2757.8 | M57: 2710.05 | N57: 3764000 | O57: -0.52%
A58: 51 | B58: Automobile | C58: EICHERMOT | D58: 17880.55 | E58: 17758.02 | F58: 17527.08 | G58: 17173.62 | H58: 16942.68 | I58: 18111.48 | J58: 18342.42 | K58: 18695.88 | L58: 17988.95 | M58: 17404.55 | N58: 347450 | O58: 1.04%
A59: 53 | B59: Finance | C59: EQUITAS | D59: 103.45 | E59: 103.68 | F59: 102.32 | G59: 101.18 | H59: 99.82 | I59: 104.82 | J59: 106.18 | K59: 107.32 | L59: 105.05 | M59: 102.55 | N59: 12292000 | O59: -0.55%
A60: 54 | B60: Automobile | C60: ESCORTS | D60: 585.55 | E60: 583.13 | F60: 569.57 | G60: 553.58 | H60: 540.02 | I60: 599.12 | J60: 612.68 | K60: 628.67 | L60: 596.7 | M60: 567.15 | N60: 5083100 | O60: 9.04%
A61: 55 | B61: Automobile | C61: EXIDEIND | D61: 195.90 | E61: 194.27 | F61: 192.03 | G61: 188.17 | H61: 185.93 | I61: 198.13 | J61: 200.37 | K61: 204.23 | L61: 196.5 | M61: 190.4 | N61: 9444000 | O61: -2.19%
A62: 56 | B62: Banking | C62: FEDERALBNK | D62: 91.20 | E62: 91.77 | F62: 89.18 | G62: 87.17 | H62: 84.58 | I62: 93.78 | J62: 96.37 | K62: 98.38 | L62: 94.35 | M62: 89.75 | N62: 43715000 | O62: 3.17%
A63: 57 | B63: Oil_Gas | C63: GAIL | D63: 135.20 | E63: 134.47 | F63: 133.48 | G63: 131.77 | H63: 130.78 | I63: 136.18 | J63: 137.17 | K63: 138.88 | L63: 135.45 | M63: 132.75 | N63: 40079676 | O63: 0.29%
A64: 58 | B64: Pharma | C64: GLENMARK | D64: 326.25 | E64: 327.30 | F64: 319.60 | G64: 312.95 | H64: 305.25 | I64: 333.95 | J64: 341.65 | K64: 348.30 | L64: 335 | M64: 320.65 | N64: 5658000 | O64: -0.19%
A65: 59 | B65: Infrastructure | C65: GMRINFRA | D65: 17.15 | E65: 17.05 | F65: 16.85 | G65: 16.55 | H65: 16.35 | I65: 17.35 | J65: 17.55 | K65: 17.85 | L65: 17.25 | M65: 16.75 | N65: 151740000 | O65: 0.30%
A66: 60 | B66: FMCG | C66: GODREJCP | D66: 688.00 | E66: 689.60 | F66: 680.20 | G66: 672.40 | H66: 663.00 | I66: 697.40 | J66: 706.80 | K66: 714.60 | L66: 699 | M66: 681.8 | N66: 5927200 | O66: 1.84%
A67: 61 | B67: Cement | C67: GRASIM | D67: 736.15 | E67: 730.47 | F67: 718.43 | G67: 700.72 | H67: 688.68 | I67: 748.18 | J67: 760.22 | K67: 777.93 | L67: 742.5 | M67: 712.75 | N67: 16955250 | O67: 1.12%
A68: 62 | B68: Others | C68: HAVELLS | D68: 721.40 | E68: 720.12 | F68: 713.93 | G68: 706.47 | H68: 700.28 | I68: 727.58 | J68: 733.77 | K68: 741.23 | L68: 726.3 | M68: 712.65 | N68: 5190000 | O68: -2.52%
A69: 63 | B69: Technology | C69: HCLTECH | D69: 1083.70 | E69: 1076.60 | F69: 1053.85 | G69: 1024.00 | H69: 1001.25 | I69: 1106.45 | J69: 1129.20 | K69: 1159.05 | L69: 1099.35 | M69: 1046.75 | N69: 10493000 | O69: -2.73%
A70: 64 | B70: Finance | C70: HDFC | D70: 1993.80 | E70: 2011.18 | F70: 1968.47 | G70: 1943.13 | H70: 1900.42 | I70: 2036.52 | J70: 2079.23 | K70: 2104.57 | L70: 2053.9 | M70: 1985.85 | N70: 37470500 | O70: 0.91%
A71: 65 | B71: Banking | C71: HDFCBANK | D71: 1237.45 | E71: 1237.25 | F71: 1225.00 | G71: 1212.55 | H71: 1200.30 | I71: 1249.70 | J71: 1261.95 | K71: 1274.40 | L71: 1249.5 | M71: 1224.8 | N71: 39992500 | O71: 10.97%
A72: 66 | B72: Automobile | C72: HEROMOTOCO | D72: 2723.25 | E72: 2728.48 | F72: 2682.77 | G72: 2642.28 | H72: 2596.57 | I72: 2768.97 | J72: 2814.68 | K72: 2855.17 | L72: 2774.2 | M72: 2688 | N72: 2746600 | O72: 1.48%
A73: 67 | B73: Technology | C73: HEXAWARE | D73: 383.05 | E73: 381.53 | F73: 376.67 | G73: 370.28 | H73: 365.42 | I73: 387.92 | J73: 392.78 | K73: 399.17 | L73: 386.4 | M73: 375.15 | N73: 2296500 | O73: 9.59%
A74: 68 | B74: Metals | C74: HINDALCO | D74: 192.40 | E74: 190.43 | F74: 188.02 | G74: 183.63 | H74: 181.22 | I74: 194.82 | J74: 197.23 | K74: 201.62 | L74: 192.85 | M74: 186.05 | N74: 31752000 | O74: 2.68%
A75: 69 | B75: Oil_Gas | C75: HINDPETRO | D75: 303.90 | E75: 304.97 | F75: 297.63 | G75: 291.37 | H75: 284.03 | I75: 311.23 | J75: 318.57 | K75: 324.83 | L75: 312.3 | M75: 298.7 | N75: 19494300 | O75: -1.41%
A76: 70 | B76: FMCG | C76: HINDUNILVR | D76: 1987.50 | E76: 1996.53 | F76: 1971.17 | G76: 1954.83 | H76: 1929.47 | I76: 2012.87 | J76: 2038.23 | K76: 2054.57 | L76: 2021.9 | M76: 1980.2 | N76: 8304000 | O76: 0.86%
A77: 72 | B77: Finance | C77: IBULHSGFIN | D77: 250.20 | E77: 276.30 | F77: 211.50 | G77: 172.80 | H77: 108.00 | I77: 315.00 | J77: 379.80 | K77: 418.50 | L77: 341.1 | M77: 237.6 | N77: 20452000 | O77: -3.82%
A78: 73 | B78: Banking | C78: ICICIBANK | D78: 437.15 | E78: 439.78 | F78: 431.47 | G78: 425.78 | H78: 417.47 | I78: 445.47 | J78: 453.78 | K78: 459.47 | L78: 448.1 | M78: 434.1 | N78: 85307750 | O78: 8.40%
A79: 74 | B79: Finance | C79: ICICIPRULI | D79: 463.05 | E79: 463.95 | F79: 458.85 | G79: 454.65 | H79: 449.55 | I79: 468.15 | J79: 473.25 | K79: 477.45 | L79: 469.05 | M79: 459.75 | N79: 5607000 | O79: 5.12%
A80: 76 | B80: Telecom | C80: IDEA | D80: 6.20 | E80: 5.88 | F80: 5.32 | G80: 4.43 | H80: 3.87 | I80: 6.77 | J80: 7.33 | K80: 8.22 | L80: 6.45 | M80: 5 | N80: 576128000 | O80: 5.16%
A81: 77 | B81: Banking | C81: IDFCFIRSTB | D81: 38.25 | E81: 39.47 | F81: 36.73 | G81: 35.22 | H81: 32.48 | I81: 40.98 | J81: 43.72 | K81: 45.23 | L81: 42.2 | M81: 37.95 | N81: 208560000 | O81: 19.47%
A82: 78 | B82: Oil_Gas | C82: IGL | D82: 351.35 | E82: 350.60 | F82: 348.35 | G82: 345.35 | H82: 343.10 | I82: 353.60 | J82: 355.85 | K82: 358.85 | L82: 352.85 | M82: 347.6 | N82: 3297250 | O82: -1.80%
A83: 79 | B83: Others | C83: INDIGO | D83: 1885.70 | E83: 1873.72 | F83: 1849.98 | G83: 1814.27 | H83: 1790.53 | I83: 1909.43 | J83: 1933.17 | K83: 1968.88 | L83: 1897.45 | M83: 1838 | N83: 2734800 | O83: -1.47%
A84: 80 | B84: Banking | C84: INDUSINDBK | D84: 1393.30 | E84: 1410.45 | F84: 1339.15 | G84: 1285.00 | H84: 1213.70 | I84: 1464.60 | J84: 1535.90 | K84: 1590.05 | L84: 1481.75 | M84: 1356.3 | N84: 13174400 | O84: 4.75%
A85: 81 | B85: Telecom | C85: INFRATEL | D85: 258.40 | E85: 257.03 | F85: 253.37 | G85: 248.33 | H85: 244.67 | I85: 262.07 | J85: 265.73 | K85: 270.77 | L85: 260.7 | M85: 252 | N85: 6750000 | O85: 7.42%
A86: 82 | B86: Technology | C86: INFY | D86: 798.95 | E86: 793.55 | F86: 785.60 | G86: 772.25 | H86: 764.30 | I86: 806.90 | J86: 814.85 | K86: 828.20 | L86: 801.5 | M86: 780.2 | N86: 47035200 | O86: 0.60%
A87: 83 | B87: Oil_Gas | C87: IOC | D87: 147.60 | E87: 146.18 | F87: 144.37 | G87: 141.13 | H87: 139.32 | I87: 149.42 | J87: 151.23 | K87: 154.47 | L87: 148 | M87: 142.95 | N87: 49591500 | O87: -0.05%
A88: 84 | B88: FMCG | C88: ITC | D88: 260.35 | E88: 257.12 | F88: 252.93 | G88: 245.52 | H88: 241.33 | I88: 264.53 | J88: 268.72 | K88: 276.13 | L88: 261.3 | M88: 249.7 | N88: 109869600 | O88: -3.67%
A89: 85 | B89: Metals | C89: JINDALSTEL | D89: 103.90 | E89: 102.47 | F89: 100.48 | G89: 97.07 | H89: 95.08 | I89: 105.88 | J89: 107.87 | K89: 111.28 | L89: 104.45 | M89: 99.05 | N89: 34912000 | O89: -1.49%
A90: 86 | B90: Metals | C90: JSWSTEEL | D90: 230.65 | E90: 228.48 | F90: 225.17 | G90: 219.68 | H90: 216.37 | I90: 233.97 | J90: 237.28 | K90: 242.77 | L90: 231.8 | M90: 223 | N90: 55402000 | O90: -0.26%
A91: 87 | B91: Others | C91: JUBLFOOD | D91: 1359.25 | E91: 1353.37 | F91: 1338.83 | G91: 1318.42 | H91: 1303.88 | I91: 1373.78 | J91: 1388.32 | K91: 1408.73 | L91: 1367.9 | M91: 1332.95 | N91: 2116000 | O91: -7.70%
A92: 88 | B92: Others | C92: JUSTDIAL | D92: 687.65 | E92: 684.02 | F92: 678.33 | G92: 669.02 | H92: 663.33 | I92: 693.33 | J92: 699.02 | K92: 708.33 | L92: 689.7 | M92: 674.7 | N92: 1932000 | O92: 0.44%
A93: 90 | B93: Banking | C93: KOTAKBANK | D93: 1656.10 | E93: 1651.22 | F93: 1629.93 | G93: 1603.77 | H93: 1582.48 | I93: 1677.38 | J93: 1698.67 | K93: 1724.83 | L93: 1672.5 | M93: 1625.05 | N93: 7626000 | O93: 7.91%
A94: 91 | B94: Finance | C94: L&TFH | D94: 84.85 | E94: 88.00 | F94: 80.60 | G94: 76.35 | H94: 68.95 | I94: 92.25 | J94: 99.65 | K94: 103.90 | L94: 95.4 | M94: 83.75 | N94: 41269500 | O94: 6.21%
A95: 92 | B95: Finance | C95: LICHSGFIN | D95: 377.45 | E95: 381.70 | F95: 366.45 | G95: 355.45 | H95: 340.20 | I95: 392.70 | J95: 407.95 | K95: 418.95 | L95: 396.95 | M95: 370.7 | N95: 11451000 | O95: 2.95%
A96: 93 | B96: Capital_Goods | C96: LT | D96: 1478.90 | E96: 1474.68 | F96: 1459.87 | G96: 1440.83 | H96: 1426.02 | I96: 1493.72 | J96: 1508.53 | K96: 1527.57 | L96: 1489.5 | M96: 1455.65 | N96: 13145625 | O96: 1.17%
A97: 94 | B97: Pharma | C97: LUPIN | D97: 719.50 | E97: 716.50 | F97: 709.00 | G97: 698.50 | H97: 691.00 | I97: 727.00 | J97: 734.50 | K97: 745.00 | L97: 724 | M97: 706 | N97: 7715400 | O97: -0.19%
A98: 95 | B98: Automobile | C98: M&M | D98: 551.60 | E98: 552.45 | F98: 543.10 | G98: 534.60 | H98: 525.25 | I98: 560.95 | J98: 570.30 | K98: 578.80 | L98: 561.8 | M98: 543.95 | N98: 21714000 | O98: 0.21%
A99: 96 | B99: Finance | C99: M&MFIN | D99: 328.65 | E99: 334.08 | F99: 320.02 | G99: 311.38 | H99: 297.32 | I99: 342.72 | J99: 356.78 | K99: 365.42 | L99: 348.15 | M99: 325.45 | N99: 14572500 | O99: -1.95%
A100: 97 | B100: Finance | C100: MANAPPURAM | D100: 141.55 | E100: 142.25 | F100: 139.75 | G100: 137.95 | H100: 135.45 | I100: 144.05 | J100: 146.55 | K100: 148.35 | L100: 144.75 | M100: 140.45 | N100: 12300000 | O100: -10.71%
A101: 98 | B101: FMCG | C101: MARICO | D101: 395.20 | E101: 393.67 | F101: 390.53 | G101: 385.87 | H101: 382.73 | I101: 398.33 | J101: 401.47 | K101: 406.13 | L101: 396.8 | M101: 389 | N101: 11702600 | O101: -3.52%
A102: 99 | B102: Automobile | C102: MARUTI | D102: 6753.75 | E102: 6758.65 | F102: 6671.40 | G102: 6589.05 | H102: 6501.80 | I102: 6841.00 | J102: 6928.25 | K102: 7010.60 | L102: 6845.9 | M102: 6676.3 | N102: 2438775 | O102: 1.52%
A103: 100 | B103: FMCG | C103: MCDOWELL-N | D103: 669.40 | E103: 669.40 | F103: 664.90 | G103: 660.40 | H103: 655.90 | I103: 673.90 | J103: 678.40 | K103: 682.90 | L103: 673.9 | M103: 664.9 | N103: 10578750 | O103: -0.97%
A104: 102 | B104: Finance | C104: MFSL | D104: 429.25 | E104: 430.03 | F104: 421.17 | G104: 413.08 | H104: 404.22 | I104: 438.12 | J104: 446.98 | K104: 455.07 | L104: 438.9 | M104: 421.95 | N104: 3175200 | O104: -0.82%
A105: 103 | B105: Oil_Gas | C105: MGL | D105: 913.70 | E105: 915.02 | F105: 898.68 | G105: 883.67 | H105: 867.33 | I105: 930.03 | J105: 946.37 | K105: 961.38 | L105: 931.35 | M105: 900 | N105: 1740600 | O105: -7.11%
A106: 104 | B106: Technology | C106: MINDTREE | D106: 705.25 | E106: 702.03 | F106: 693.87 | G106: 682.48 | H106: 674.32 | I106: 713.42 | J106: 721.58 | K106: 732.97 | L106: 710.2 | M106: 690.65 | N106: 1400400 | O106: 2.77%
A107: 105 | B107: Automobile | C107: MOTHERSUMI | D107: 105.70 | E107: 105.98 | F107: 103.62 | G107: 101.53 | H107: 99.17 | I107: 108.07 | J107: 110.43 | K107: 112.52 | L107: 108.35 | M107: 103.9 | N107: 28950900 | O107: 0.07%
A108: 106 | B108: Automobile | C108: MRF | D108: 63715.45 | E108: 63445.87 | F108: 63031.63 | G108: 62347.82 | H108: 61933.58 | I108: 64129.68 | J108: 64543.92 | K108: 65227.73 | L108: 63860.1 | M108: 62762.05 | N108: 20680 | O108: 0.98%
A109: 107 | B109: Finance | C109: MUTHOOTFIN | D109: 680.90 | E109: 683.15 | F109: 675.25 | G109: 669.60 | H109: 661.70 | I109: 688.80 | J109: 696.70 | K109: 702.35 | L109: 691.05 | M109: 677.5 | N109: 1620000 | O109: -6.82%
A110: 108 | B110: Metals | C110: NATIONALUM | D110: 46.20 | E110: 45.83 | F110: 45.22 | G110: 44.23 | H110: 43.62 | I110: 46.82 | J110: 47.43 | K110: 48.42 | L110: 46.45 | M110: 44.85 | N110: 30900000 | O110: 3.83%
A111: 109 | B111: Infrastructure | C111: NBCC | D111: 34.95 | E111: 35.20 | F111: 33.90 | G111: 32.85 | H111: 31.55 | I111: 36.25 | J111: 37.55 | K111: 38.60 | L111: 36.5 | M111: 34.15 | N111: 28007500 | O111: 3.84%
A112: 110 | B112: Infrastructure | C112: NCC | D112: 55.35 | E112: 56.08 | F112: 53.52 | G112: 51.68 | H112: 49.12 | I112: 57.92 | J112: 60.48 | K112: 62.32 | L112: 58.65 | M112: 54.25 | N112: 45536000 | O112: -2.28%
A113: 111 | B113: FMCG | C113: NESTLEIND | D113: 13934.90 | E113: 13886.93 | F113: 13780.02 | G113: 13625.13 | H113: 13518.22 | I113: 14041.82 | J113: 14148.73 | K113: 14303.62 | L113: 13993.85 | M113: 13732.05 | N113: 547000 | O113: 0.48%
A114: 112 | B114: Technology | C114: NIITTECH | D114: 1399.50 | E114: 1403.17 | F114: 1387.33 | G114: 1375.17 | H114: 1359.33 | I114: 1415.33 | J114: 1431.17 | K114: 1443.33 | L114: 1419 | M114: 1391 | N114: 720000 | O114: 6.90%
A115: 113 | B115: Metals | C115: NMDC | D115: 89.15 | E115: 88.88 | F115: 86.77 | G115: 84.38 | H115: 82.27 | I115: 91.27 | J115: 93.38 | K115: 95.77 | L115: 91 | M115: 86.5 | N115: 26526000 | O115: -1.49%
A116: 114 | B116: Power | C116: NTPC | D116: 118.05 | E116: 117.40 | F116: 116.50 | G116: 114.95 | H116: 114.05 | I116: 118.95 | J116: 119.85 | K116: 121.40 | L116: 118.3 | M116: 115.85 | N116: 65707200 | O116: -1.74%
A117: 116 | B117: Oil_Gas | C117: OIL | D117: 146.20 | E117: 146.68 | F117: 144.52 | G117: 142.83 | H117: 140.67 | I117: 148.37 | J117: 150.53 | K117: 152.22 | L117: 148.85 | M117: 145 | N117: 9724539 | O117: 0.77%
A118: 117 | B118: Oil_Gas | C118: ONGC | D118: 132.70 | E118: 131.65 | F118: 130.05 | G118: 127.40 | H118: 125.80 | I118: 134.30 | J118: 135.90 | K118: 138.55 | L118: 133.25 | M118: 129 | N118: 64095000 | O118: -0.30%
A119: 118 | B119: Textile | C119: PAGEIND | D119: 22113.15 | E119: 22054.67 | F119: 21819.53 | G119: 21525.92 | H119: 21290.78 | I119: 22348.28 | J119: 22583.42 | K119: 22877.03 | L119: 22289.8 | M119: 21761.05 | N119: 194875 | O119: 1.68%
A120: 119 | B120: Pharma | C120: PEL | D120: 1617.60 | E120: 1639.08 | F120: 1553.52 | G120: 1489.43 | H120: 1403.87 | I120: 1703.17 | J120: 1788.73 | K120: 1852.82 | L120: 1724.65 | M120: 1575 | N120: 5687264 | O120: 13.06%
A121: 120 | B121: Oil_Gas | C121: PETRONET | D121: 261.30 | E121: 260.32 | F121: 258.48 | G121: 255.67 | H121: 253.83 | I121: 263.13 | J121: 264.97 | K121: 267.78 | L121: 262.15 | M121: 257.5 | N121: 21093000 | O121: -0.26%
A122: 121 | B122: Finance | C122: PFC | D122: 99.70 | E122: 100.17 | F122: 98.58 | G122: 97.47 | H122: 95.88 | I122: 101.28 | J122: 102.87 | K122: 103.98 | L122: 101.75 | M122: 99.05 | N122: 41323000 | O122: -2.84%
A123: 122 | B123: FMCG | C123: PIDILITIND | D123: 1454.00 | E123: 1456.43 | F123: 1438.62 | G123: 1423.23 | H123: 1405.42 | I123: 1471.82 | J123: 1489.63 | K123: 1505.02 | L123: 1474.25 | M123: 1441.05 | N123: 2572500 | O123: -1.34%
A124: 123 | B124: Banking | C124: PNB | D124: 62.10 | E124: 62.35 | F124: 61.00 | G124: 59.90 | H124: 58.55 | I124: 63.45 | J124: 64.80 | K124: 65.90 | L124: 63.7 | M124: 61.25 | N124: 102025000 | O124: 1.22%
A125: 124 | B125: Power | C125: POWERGRID | D125: 199.45 | E125: 198.50 | F125: 197.15 | G125: 194.85 | H125: 193.50 | I125: 200.80 | J125: 202.15 | K125: 204.45 | L125: 199.85 | M125: 196.2 | N125: 29004000 | O125: -1.37%
A126: 125 | B126: Media | C126: PVR | D126: 1848.65 | E126: 1855.88 | F126: 1834.87 | G126: 1821.08 | H126: 1800.07 | I126: 1869.67 | J126: 1890.68 | K126: 1904.47 | L126: 1876.9 | M126: 1842.1 | N126: 1000000 | O126: -2.31%
A127: 126 | B127: Cement | C127: RAMCOCEM | D127: 749.30 | E127: 749.85 | F127: 742.10 | G127: 734.90 | H127: 727.15 | I127: 757.05 | J127: 764.80 | K127: 772.00 | L127: 757.6 | M127: 742.65 | N127: 1276800 | O127: 1.59%
A128: 128 | B128: Banking | C128: RBLBANK | D128: 325.45 | E128: 338.02 | F128: 305.73 | G128: 286.02 | H128: 253.73 | I128: 357.73 | J128: 390.02 | K128: 409.73 | L128: 370.3 | M128: 318.3 | N128: 14840400 | O128: 13.00%
A129: 129 | B129: Power | C129: RECLTD | D129: 124.05 | E129: 124.37 | F129: 122.33 | G129: 120.62 | H129: 118.58 | I129: 126.08 | J129: 128.12 | K129: 129.83 | L129: 126.4 | M129: 122.65 | N129: 26736000 | O129: 1.02%
A130: 131 | B130: Oil_Gas | C130: RELIANCE | D130: 1338.05 | E130: 1330.33 | F130: 1319.77 | G130: 1301.48 | H130: 1290.92 | I130: 1348.62 | J130: 1359.18 | K130: 1377.47 | L130: 1340.9 | M130: 1312.05 | N130: 53521500 | O130: -0.45%
A131: 133 | B131: Metals | C131: SAIL | D131: 33.55 | E131: 33.03 | F131: 32.27 | G131: 30.98 | H131: 30.22 | I131: 34.32 | J131: 35.08 | K131: 36.37 | L131: 33.8 | M131: 31.75 | N131: 79104000 | O131: 0.47%
A132: 134 | B132: Banking | C132: SBIN | D132: 272.85 | E132: 275.98 | F132: 269.17 | G132: 265.48 | H132: 258.67 | I132: 279.67 | J132: 286.48 | K132: 290.17 | L132: 282.8 | M132: 272.3 | N132: 118647000 | O132: 8.06%
A133: 135 | B133: Cement | C133: SHREECEM | D133: 19045.10 | E133: 19107.27 | F133: 18903.68 | G133: 18762.27 | H133: 18558.68 | I133: 19248.68 | J133: 19452.27 | K133: 19593.68 | L133: 19310.85 | M133: 18965.85 | N133: 169800 | O133: 0.68%
A134: 136 | B134: Capital_Goods | C134: SIEMENS | D134: 1522.25 | E134: 1513.63 | F134: 1493.77 | G134: 1465.28 | H134: 1445.42 | I134: 1542.12 | J134: 1561.98 | K134: 1590.47 | L134: 1533.5 | M134: 1485.15 | N134: 1244650 | O134: 4.33%
A135: 137 | B135: Textile | C135: SRF | D135: 2774.05 | E135: 2773.72 | F135: 2751.43 | G135: 2728.82 | H135: 2706.53 | I135: 2796.33 | J135: 2818.62 | K135: 2841.23 | L135: 2796 | M135: 2751.1 | N135: 888000 | O135: 0.34%
A136: 138 | B136: Finance | C136: SRTRANSFIN | D136: 1079.00 | E136: 1083.40 | F136: 1058.60 | G136: 1038.20 | H136: 1013.40 | I136: 1103.80 | J136: 1128.60 | K136: 1149.00 | L136: 1108.2 | M136: 1063 | N136: 4313400 | O136: 0.39%
A137: 139 | B137: Pharma | C137: STAR | D137: 305.40 | E137: 304.53 | F137: 297.22 | G137: 289.03 | H137: 281.72 | I137: 312.72 | J137: 320.03 | K137: 328.22 | L137: 311.85 | M137: 296.35 | N137: 2584800 | O137: -7.67%
A138: 140 | B138: Pharma | C138: SUNPHARMA | D138: 392.60 | E138: 395.82 | F138: 385.83 | G138: 379.07 | H138: 369.08 | I138: 402.58 | J138: 412.57 | K138: 419.33 | L138: 405.8 | M138: 389.05 | N138: 58770800 | O138: 0.82%
A139: 141 | B139: Media | C139: SUNTV | D139: 473.50 | E139: 472.05 | F139: 460.45 | G139: 447.40 | H139: 435.80 | I139: 485.10 | J139: 496.70 | K139: 509.75 | L139: 483.65 | M139: 459 | N139: 4005000 | O139: -6.23%
A140: 142 | B140: Fertilisers | C140: TATACHEM | D140: 593.75 | E140: 594.12 | F140: 588.23 | G140: 582.72 | H140: 576.83 | I140: 599.63 | J140: 605.52 | K140: 611.03 | L140: 600 | M140: 588.6 | N140: 2160000 | O140: 8.30%
A141: 143 | B141: Technology | C141: TATAELXSI | D141: 679.25 | E141: 680.88 | F141: 671.42 | G141: 663.58 | H141: 654.12 | I141: 688.72 | J141: 698.18 | K141: 706.02 | L141: 690.35 | M141: 673.05 | N141: 1895400 | O141: 0.35%
A142: 144 | B142: FMCG | C142: TATAGLOBAL | D142: 278.25 | E142: 279.50 | F142: 276.05 | G142: 273.85 | H142: 270.40 | I142: 281.70 | J142: 285.15 | K142: 287.35 | L142: 282.95 | M142: 277.3 | N142: 8051400 | O142: 0.34%
A143: 145 | B143: Automobile | C143: TATAMOTORS | D143: 118.15 | E143: 118.88 | F143: 116.27 | G143: 114.38 | H143: 111.77 | I143: 120.77 | J143: 123.38 | K143: 125.27 | L143: 121.5 | M143: 117 | N143: 68589000 | O143: 1.76%
A144: 146 | B144: Automobile | C144: TATAMTRDVR | D144: 53.60 | E144: 53.93 | F144: 52.57 | G144: 51.53 | H144: 50.17 | I144: 54.97 | J144: 56.33 | K144: 57.37 | L144: 55.3 | M144: 52.9 | N144: 36096000 | O144: 1.74%
A145: 147 | B145: Power | C145: TATAPOWER | D145: 62.95 | E145: 62.52 | F145: 61.78 | G145: 60.62 | H145: 59.88 | I145: 63.68 | J145: 64.42 | K145: 65.58 | L145: 63.25 | M145: 61.35 | N145: 38475000 | O145: 0.26%
A146: 148 | B146: Metals | C146: TATASTEEL | D146: 360.95 | E146: 356.78 | F146: 350.57 | G146: 340.18 | H146: 333.97 | I146: 367.17 | J146: 373.38 | K146: 383.77 | L146: 363 | M146: 346.4 | N146: 29105352 | O146: -2.66%
A147: 149 | B147: Technology | C147: TCS | D147: 2102.55 | E147: 2092.93 | F147: 2078.22 | G147: 2053.88 | H147: 2039.17 | I147: 2117.27 | J147: 2131.98 | K147: 2156.32 | L147: 2107.65 | M147: 2068.6 | N147: 18295500 | O147: -0.65%
A148: 150 | B148: Technology | C148: TECHM | D148: 718.95 | E148: 712.60 | F148: 704.80 | G148: 690.65 | H148: 682.85 | I148: 726.75 | J148: 734.55 | K148: 748.70 | L148: 720.4 | M148: 698.45 | N148: 14838000 | O148: 2.06%
A149: 151 | B149: FMCG | C149: TITAN | D149: 1282.95 | E149: 1287.77 | F149: 1271.28 | G149: 1259.62 | H149: 1243.13 | I149: 1299.43 | J149: 1315.92 | K149: 1327.58 | L149: 1304.25 | M149: 1276.1 | N149: 9102000 | O149: 7.25%
A150: 152 | B150: Pharma | C150: TORNTPHARM | D150: 1670.60 | E150: 1672.43 | F150: 1650.22 | G150: 1629.83 | H150: 1607.62 | I150: 1692.82 | J150: 1715.03 | K150: 1735.42 | L150: 1694.65 | M150: 1652.05 | N150: 359000 | O150: 7.65%
A151: 153 | B151: Power | C151: TORNTPOWER | D151: 288.90 | E151: 290.13 | F151: 286.47 | G151: 284.03 | H151: 280.37 | I151: 292.57 | J151: 296.23 | K151: 298.67 | L151: 293.8 | M151: 287.7 | N151: 3954000 | O151: -1.86%
A152: 154 | B152: Automobile | C152: TVSMOTOR | D152: 408.05 | E152: 404.65 | F152: 397.80 | G152: 387.55 | H152: 380.70 | I152: 414.90 | J152: 421.75 | K152: 432.00 | L152: 411.5 | M152: 394.4 | N152: 6972900 | O152: 5.23%
A153: 155 | B153: FMCG | C153: UBL | D153: 1358.15 | E153: 1359.37 | F153: 1349.78 | G153: 1341.42 | H153: 1331.83 | I153: 1367.73 | J153: 1377.32 | K153: 1385.68 | L153: 1368.95 | M153: 1351 | N153: 1467900 | O153: 3.10%
A154: 156 | B154: Finance | C154: UJJIVAN | D154: 315.90 | E154: 313.75 | F154: 309.35 | G154: 302.80 | H154: 298.40 | I154: 320.30 | J154: 324.70 | K154: 331.25 | L154: 318.15 | M154: 307.2 | N154: 7260800 | O154: -0.15%
A155: 157 | B155: Cement | C155: ULTRACEMCO | D155: 4358.95 | E155: 4356.68 | F155: 4309.52 | G155: 4260.08 | H155: 4212.92 | I155: 4406.12 | J155: 4453.28 | K155: 4502.72 | L155: 4403.85 | M155: 4307.25 | N155: 2534400 | O155: 0.62%
A156: 158 | B156: Banking | C156: UNIONBANK | D156: 53.00 | E156: 53.78 | F156: 51.42 | G156: 49.83 | H156: 47.47 | I156: 55.37 | J156: 57.73 | K156: 59.32 | L156: 56.15 | M156: 52.2 | N156: 32396000 | O156: 2.87%
A157: 159 | B157: Fertilisers | C157: UPL | D157: 606.00 | E157: 598.43 | F157: 587.87 | G157: 569.73 | H157: 559.17 | I157: 616.57 | J157: 627.13 | K157: 645.27 | L157: 609 | M157: 580.3 | N157: 14887800 | O157: 1.92%
A158: 160 | B158: Metals | C158: VEDL | D158: 155.10 | E158: 154.63 | F158: 152.42 | G158: 149.73 | H158: 147.52 | I158: 157.32 | J158: 159.53 | K158: 162.22 | L158: 156.85 | M158: 151.95 | N158: 50139000 | O158: 0.25%
A159: 161 | B159: Capital_Goods | C159: VOLTAS | D159: 684.20 | E159: 681.78 | F159: 676.77 | G159: 669.33 | H159: 664.32 | I159: 689.22 | J159: 694.23 | K159: 701.67 | L159: 686.8 | M159: 674.35 | N159: 1729000 | O159: -0.23%
A160: 162 | B160: Technology | C160: WIPRO | D160: 240.95 | E160: 240.00 | F160: 238.15 | G160: 235.35 | H160: 233.50 | I160: 242.80 | J160: 244.65 | K160: 247.45 | L160: 241.85 | M160: 237.2 | N160: 28803200 | O160: -1.02%
A161: 163 | B161: Banking | C161: YESBANK | D161: 41.60 | E161: 44.05 | F161: 38.70 | G161: 35.80 | H161: 30.45 | I161: 46.95 | J161: 52.30 | K161: 55.20 | L161: 49.4 | M161: 41.15 | N161: 169162400 | O161: 3.23%
A162: 164 | B162: Media | C162: ZEEL | D162: 266.95 | E162: 265.52 | F162: 254.43 | G162: 241.92 | H162: 230.83 | I162: 278.03 | J162: 289.12 | K162: 301.63 | L162: 276.6 | M162: 253 | N162: 30399200 | O162: -7.64%
A178: Pivot Point: This is trigger point for intra day buy/sell based on the price range of the previous day
A179: As per the tool,the trader should take BUY position just above Pivot and keep the stop loss of pivot point and the first target would be Resistance 1(R1)
A180: If R1 is crossed then R2 becomes the next target with stop loss of at R1
A181: Similarly if price goes below pivot point then the trader should sell and keep a stop loss of pivot point and the first target would be S1
A182: If S1 is crossed then S2 becomes the next target with stop loss of at S1
A184: Disclaimer:
A185: This document has been prepared by the Retail Research Desk of Asit C Mehta
A186: Investment Intermediates Ltd. and is meant for use of the recipient only
A187: and is not for circulation. This document is not to be reported or
A188: copied or made available to others. It should not be considered to be
A189: taken as an offer to sell or a solicitation to buy any security. The
A190: information contained herein is from sources believed reliable. We do
A191: not represent that it is accurate or complete and it should not be
A192: relied upon as such. We may from time to time have positions in and buy
A193: and sell securities referred to herein

Sheet Cash Intra
M5: Back to Main Page
A6: FOR INTRA DAY TRADING | K6: =Main!B10 -> 2019-10-01
A8: Sr.no | B8: Scrip | C8: CLOSE RATE | D8: Pivot Point | E8: Supports | H8: Resistances
C9: Point | E9: S1 | F9: S2 | G9: S3 | H9: R1 | I9: R2 | J9: R3 | K9: HIGH | L9: LOW | M9: Total Trade Quanity in Lakhs
A10: 1 | B10: Nifty 50 | C10: 11474.45 | D10: 11457.83 | E10: 11407.42 | F10: 11340.38 | G10: 11289.97 | H10: 11524.87 | I10: 11575.28 | J10: 11642.32 | K10: 11508.25 | L10: 11390.8
A11: 2 | B11: Nifty Bank | C11: 29103.15 | D11: 29267.00 | E11: 28779.60 | F11: 28456.05 | G11: 27968.65 | H11: 29590.55 | I11: 30077.95 | J11: 30401.50 | K11: 29754.4 | L11: 28943.45
A12: 3 | B12: Nifty CPSE | C12: 1963.5 | D12: 1955.08 | E12: 1939.57 | F12: 1915.63 | G12: 1900.12 | H12: 1979.02 | I12: 1994.53 | J12: 2018.47 | K12: 1970.6 | L12: 1931.15
A13: 4 | B13: Nifty Infra | C13: 3208.4 | D13: 3198.10 | E13: 3175.45 | F13: 3142.50 | G13: 3119.85 | H13: 3231.05 | I13: 3253.70 | J13: 3286.65 | K13: 3220.75 | L13: 3165.15
A14: 5 | B14: Nifty IT | C14: 15540.15 | D14: 15456.13 | E14: 15343.82 | F14: 15147.48 | G14: 15035.17 | H14: 15652.47 | I14: 15764.78 | J14: 15961.12 | K14: 15568.45 | L14: 15259.8
A15: 6 | B15: Nifty PSE | C15: 3243.7 | D15: 3231.43 | E15: 3210.32 | F15: 3176.93 | G15: 3155.82 | H15: 3264.82 | I15: 3285.93 | J15: 3319.32 | K15: 3252.55 | L15: 3198.05
A16: 7 | B16: Nifty Midcap 50 | C16: 4394 | D16: 4404.48 | E16: 4341.42 | F16: 4288.83 | G16: 4225.77 | H16: 4457.07 | I16: 4520.13 | J16: 4572.72 | K16: 4467.55 | L16: 4351.9
A17: 8 | B17: ABB | C17: 1515.35 | D17: 1518.43 | E17: 1501.92 | F17: 1488.48 | G17: 1471.97 | H17: 1531.87 | I17: 1548.38 | J17: 1561.82 | K17: 1534.95 | L17: 1505 | M17: 1.56032
A18: 9 | B18: ACC | C18: 1608.15 | D18: 1612.40 | E18: 1590.80 | F18: 1573.45 | G18: 1551.85 | H18: 1629.75 | I18: 1651.35 | J18: 1668.70 | K18: 1634 | L18: 1595.05 | M18: 5.52438
A19: 10 | B19: AUBANK | C19: 659.5 | D19: 658.57 | E19: 651.93 | F19: 644.37 | G19: 637.73 | H19: 666.13 | I19: 672.77 | J19: 680.33 | K19: 665.2 | L19: 651 | M19: 2.00065
A20: 11 | B20: ADANIPORTS | C20: 413.95 | D20: 410.32 | E20: 405.08 | F20: 396.22 | G20: 390.98 | H20: 419.18 | I20: 424.42 | J20: 433.28 | K20: 415.55 | L20: 401.45 | M20: 31.52658
A21: 12 | B21: ADANIPOWER | C21: 64.3 | D21: 64.88 | E21: 62.82 | F21: 61.33 | G21: 59.27 | H21: 66.37 | I21: 68.43 | J21: 69.92 | K21: 66.95 | L21: 63.4 | M21: 116.03051
A22: 13 | B22: ABCAPITAL | C22: 84.85 | D22: 86.40 | E22: 83.00 | F22: 81.15 | G22: 77.75 | H22: 88.25 | I22: 91.65 | J22: 93.50 | K22: 89.8 | L22: 84.55 | M22: 17.92857
A23: 14 | B23: ABFRL | C23: 211.35 | D23: 208.83 | E23: 203.77 | F23: 196.18 | G23: 191.12 | H23: 216.42 | I23: 221.48 | J23: 229.07 | K23: 213.9 | L23: 201.25 | M23: 5.50223
A24: 15 | B24: AJANTPHARM | C24: 1010.6 | D24: 1025.20 | E24: 990.40 | F24: 970.20 | G24: 935.40 | H24: 1045.40 | I24: 1080.20 | J24: 1100.40 | K24: 1060 | L24: 1005 | M24: 0.59138
A25: 16 | B25: ALKEM | C25: 1905.1 | D25: 1914.98 | E25: 1885.07 | F25: 1865.03 | G25: 1835.12 | H25: 1935.02 | I25: 1964.93 | J25: 1984.97 | K25: 1944.9 | L25: 1894.95 | M25: 0.54451
A26: 17 | B26: AMARAJABAT | C26: 717.6 | D26: 713.40 | E26: 706.25 | F26: 694.90 | G26: 687.75 | H26: 724.75 | I26: 731.90 | J26: 743.25 | K26: 720.55 | L26: 702.05 | M26: 3.35965
A27: 18 | B27: AMBUJACEM | C27: 203.95 | D27: 204.48 | E27: 201.97 | F27: 199.98 | G27: 197.47 | H27: 206.47 | I27: 208.98 | J27: 210.97 | K27: 207 | L27: 202.5 | M27: 21.99055
A28: 19 | B28: APOLLOHOSP | C28: 1395.5 | D28: 1387.18 | E28: 1368.52 | F28: 1341.53 | G28: 1322.87 | H28: 1414.17 | I28: 1432.83 | J28: 1459.82 | K28: 1405.85 | L28: 1360.2 | M28: 7.0888
A29: 20 | B29: APOLLOTYRE | C29: 181.65 | D29: 180.78 | E29: 177.17 | F29: 172.68 | G29: 169.07 | H29: 185.27 | I29: 188.88 | J29: 193.37 | K29: 184.4 | L29: 176.3 | M29: 30.73573
A30: 21 | B30: ASHOKLEY | C30: 68.7 | D30: 68.95 | E30: 65.65 | F30: 62.60 | G30: 59.30 | H30: 72.00 | I30: 75.30 | J30: 78.35 | K30: 72.25 | L30: 65.9 | M30: 415.78689
A31: 22 | B31: ASIANPAINT | C31: 1762.15 | D31: 1756.40 | E31: 1742.80 | F31: 1723.45 | G31: 1709.85 | H31: 1775.75 | I31: 1789.35 | J31: 1808.70 | K31: 1770 | L31: 1737.05 | M31: 10.41807
A32: 23 | B32: AUROPHARMA | C32: 589 | D32: 589.33 | E32: 579.67 | F32: 570.33 | G32: 560.67 | H32: 598.67 | I32: 608.33 | J32: 617.67 | K32: 599 | L32: 580 | M32: 15.83086
A33: 24 | B33: DMART | C33: 1860.6 | D33: 1870.93 | E33: 1821.87 | F33: 1783.13 | G33: 1734.07 | H33: 1909.67 | I33: 1958.73 | J33: 1997.47 | K33: 1920 | L33: 1832.2 | M33: 4.06359
A34: 25 | B34: AXISBANK | C34: 685 | D34: 693.17 | E34: 673.93 | F34: 662.87 | G34: 643.63 | H34: 704.23 | I34: 723.47 | J34: 734.53 | K34: 712.4 | L34: 682.1 | M34: 200.73726
A35: 26 | B35: BAJAJ-AUTO | C35: 2941.8 | D35: 2939.75 | E35: 2904.55 | F35: 2867.30 | G35: 2832.10 | H35: 2977.00 | I35: 3012.20 | J35: 3049.45 | K35: 2974.95 | L35: 2902.5 | M35: 3.84245
A36: 27 | B36: BAJFINANCE | C36: 4046.05 | D36: 4062.93 | E36: 4014.12 | F36: 3982.18 | G36: 3933.37 | H36: 4094.87 | I36: 4143.68 | J36: 4175.62 | K36: 4111.75 | L36: 4031 | M36: 22.56361
A37: 28 | B37: BAJAJFINSV | C37: 8513 | D37: 8530.72 | E37: 8392.63 | F37: 8272.27 | G37: 8134.18 | H37: 8651.08 | I37: 8789.17 | J37: 8909.53 | K37: 8668.8 | L37: 8410.35 | M37: 4.62717
A38: 29 | B38: BAJAJHLDNG | C38: 3593.25 | D38: 3567.42 | E38: 3537.83 | F38: 3482.42 | G38: 3452.83 | H38: 3622.83 | I38: 3652.42 | J38: 3707.83 | K38: 3597 | L38: 3512 | M38: 0.15975
A39: 30 | B39: BALKRISIND | C39: 776.25 | D39: 772.27 | E39: 766.03 | F39: 755.82 | G39: 749.58 | H39: 782.48 | I39: 788.72 | J39: 798.93 | K39: 778.5 | L39: 762.05 | M39: 2.33003
A40: 31 | B40: BANDHANBNK | C40: 491.9 | D40: 496.27 | E40: 483.73 | F40: 475.57 | G40: 463.03 | H40: 504.43 | I40: 516.97 | J40: 525.13 | K40: 508.8 | L40: 488.1 | M40: 5.10468
A41: 32 | B41: BANKBARODA | C41: 93.05 | D41: 93.35 | E41: 91.20 | F41: 89.35 | G41: 87.20 | H41: 95.20 | I41: 97.35 | J41: 99.20 | K41: 95.5 | L41: 91.5 | M41: 268.15456
A42: 33 | B42: BANKINDIA | C42: 62.95 | D42: 63.83 | E42: 61.47 | F42: 59.98 | G42: 57.62 | H42: 65.32 | I42: 67.68 | J42: 69.17 | K42: 66.2 | L42: 62.35 | M42: 121.41961
A43: 34 | B43: BATAINDIA | C43: 1722.2 | D43: 1735.08 | E43: 1700.22 | F43: 1678.23 | G43: 1643.37 | H43: 1757.07 | I43: 1791.93 | J43: 1813.92 | K43: 1769.95 | L43: 1713.1 | M43: 6.63077
A44: 35 | B44: BERGEPAINT | C44: 434.8 | D44: 437.73 | E44: 430.67 | F44: 426.53 | G44: 419.47 | H44: 441.87 | I44: 448.93 | J44: 453.07 | K44: 444.8 | L44: 433.6 | M44: 20.58899
A45: 36 | B45: BEL | C45: 108.3 | D45: 107.43 | E45: 105.97 | F45: 103.63 | G45: 102.17 | H45: 109.77 | I45: 111.23 | J45: 113.57 | K45: 108.9 | L45: 105.1 | M45: 78.70395
A46: 37 | B46: BHARATFORG | C46: 446.35 | D46: 446.47 | E46: 438.83 | F46: 431.32 | G46: 423.68 | H46: 453.98 | I46: 461.62 | J46: 469.13 | K46: 454.1 | L46: 438.95 | M46: 15.02636
A47: 38 | B47: BHEL | C47: 48.4 | D47: 48.68 | E47: 47.22 | F47: 46.03 | G47: 44.57 | H47: 49.87 | I47: 51.33 | J47: 52.52 | K47: 50.15 | L47: 47.5 | M47: 115.13335
A48: 39 | B48: BPCL | C48: 470.1 | D48: 471.88 | E48: 464.27 | F48: 458.43 | G48: 450.82 | H48: 477.72 | I48: 485.33 | J48: 491.17 | K48: 479.5 | L48: 466.05 | M48: 131.39611
A49: 40 | B49: BHARTIARTL | C49: 367.05 | D49: 362.07 | E49: 349.23 | F49: 331.42 | G49: 318.58 | H49: 379.88 | I49: 392.72 | J49: 410.53 | K49: 374.9 | L49: 344.25 | M49: 196.16421
A50: 41 | B50: INFRATEL | C50: 257.3 | D50: 255.82 | E50: 251.93 | F50: 246.57 | G50: 242.68 | H50: 261.18 | I50: 265.07 | J50: 270.43 | K50: 259.7 | L50: 250.45 | M50: 20.66415
A51: 42 | B51: BIOCON | C51: 222.95 | D51: 221.50 | E51: 218.55 | F51: 214.15 | G51: 211.20 | H51: 225.90 | I51: 228.85 | J51: 233.25 | K51: 224.45 | L51: 217.1 | M51: 46.72776
A52: 43 | B52: BBTC | C52: 1135.2 | D52: 1156.33 | E52: 1102.87 | F52: 1070.53 | G52: 1017.07 | H52: 1188.67 | I52: 1242.13 | J52: 1274.47 | K52: 1209.8 | L52: 1124 | M52: 1.35573
A53: 44 | B53: BOSCHLTD | C53: 14063.7 | D53: 13978.30 | E53: 13835.45 | F53: 13607.20 | G53: 13464.35 | H53: 14206.55 | I53: 14349.40 | J53: 14577.65 | K53: 14121.15 | L53: 13750.05 | M53: 0.14062
A54: 45 | B54: BRITANNIA | C54: 2944.15 | D54: 2966.07 | E54: 2908.18 | F54: 2872.22 | G54: 2814.33 | H54: 3002.03 | I54: 3059.92 | J54: 3095.88 | K54: 3023.95 | L54: 2930.1 | M54: 5.53451
A55: 46 | B55: CADILAHC | C55: 233.3 | D55: 234.03 | E55: 226.67 | F55: 220.03 | G55: 212.67 | H55: 240.67 | I55: 248.03 | J55: 254.67 | K55: 241.4 | L55: 227.4 | M55: 15.02377
A56: 47 | B56: CANBK | C56: 182.4 | D56: 184.37 | E56: 178.03 | F56: 173.67 | G56: 167.33 | H56: 188.73 | I56: 195.07 | J56: 199.43 | K56: 190.7 | L56: 180 | M56: 88.21514
A57: 48 | B57: CASTROLIND | C57: 136.05 | D57: 134.20 | E57: 131.40 | F57: 126.75 | G57: 123.95 | H57: 138.85 | I57: 141.65 | J57: 146.30 | K57: 137 | L57: 129.55 | M57: 25.09972
A58: 49 | B58: CHOLAFIN | C58: 307.8 | D58: 309.00 | E58: 304.80 | F58: 301.80 | G58: 297.60 | H58: 312.00 | I58: 316.20 | J58: 319.20 | K58: 313.2 | L58: 306 | M58: 9.59124
A59: 50 | B59: CIPLA | C59: 425.5 | D59: 425.43 | E59: 418.07 | F59: 410.63 | G59: 403.27 | H59: 432.87 | I59: 440.23 | J59: 447.67 | K59: 432.8 | L59: 418 | M59: 63.07161
A60: 51 | B60: COALINDIA | C60: 199.85 | D60: 199.05 | E60: 197.35 | F60: 194.85 | G60: 193.15 | H60: 201.55 | I60: 203.25 | J60: 205.75 | K60: 200.75 | L60: 196.55 | M60: 75.78946
A61: 52 | B61: COLPAL | C61: 1503.95 | D61: 1516.00 | E61: 1480.00 | F61: 1456.05 | G61: 1420.05 | H61: 1539.95 | I61: 1575.95 | J61: 1599.90 | K61: 1552 | L61: 1492.05 | M61: 8.09473
A62: 53 | B62: CONCOR | C62: 604.75 | D62: 602.48 | E62: 593.27 | F62: 581.78 | G62: 572.57 | H62: 613.97 | I62: 623.18 | J62: 634.67 | K62: 611.7 | L62: 591 | M62: 29.03317
A63: 54 | B63: COROMANDEL | C63: 415.4 | D63: 412.10 | E63: 403.30 | F63: 391.20 | G63: 382.40 | H63: 424.20 | I63: 433.00 | J63: 445.10 | K63: 420.9 | L63: 400 | M63: 2.111
A64: 55 | B64: CROMPTON | C64: 250.3 | D64: 251.03 | E64: 243.27 | F64: 236.23 | G64: 228.47 | H64: 258.07 | I64: 265.83 | J64: 272.87 | K64: 258.8 | L64: 244 | M64: 14.9551
A65: 56 | B65: CUMMINSIND | C65: 572.8 | D65: 573.43 | E65: 566.77 | F65: 560.73 | G65: 554.07 | H65: 579.47 | I65: 586.13 | J65: 592.17 | K65: 580.1 | L65: 567.4 | M65: 3.70317
A66: 57 | B66: DLF | C66: 155.6 | D66: 155.33 | E66: 151.67 | F66: 147.73 | G66: 144.07 | H66: 159.27 | I66: 162.93 | J66: 166.87 | K66: 159 | L66: 151.4 | M66: 105.46288
A67: 58 | B67: DABUR | C67: 447.25 | D67: 446.18 | E67: 443.12 | F67: 438.98 | G67: 435.92 | H67: 450.32 | I67: 453.38 | J67: 457.52 | K67: 449.25 | L67: 442.05 | M67: 11.30716
A68: 59 | B68: DHFL | C68: 38.75 | D68: 40.32 | E68: 36.93 | F68: 35.12 | G68: 31.73 | H68: 42.13 | I68: 45.52 | J68: 47.33 | K68: 43.7 | L68: 38.5 | M68: 131.3657
A69: 60 | B69: DBL | C69: 416.3 | D69: 418.77 | E69: 397.53 | F69: 378.77 | G69: 357.53 | H69: 437.53 | I69: 458.77 | J69: 477.53 | K69: 440 | L69: 400 | M69: 3.25108
A70: 61 | B70: DISHTV | C70: 18.15 | D70: 18.48 | E70: 17.42 | F70: 16.68 | G70: 15.62 | H70: 19.22 | I70: 20.28 | J70: 21.02 | K70: 19.55 | L70: 17.75 | M70: 325.58608
A71: 62 | B71: DIVISLAB | C71: 1665.5 | D71: 1662.78 | E71: 1653.67 | F71: 1641.83 | G71: 1632.72 | H71: 1674.62 | I71: 1683.73 | J71: 1695.57 | K71: 1671.9 | L71: 1650.95 | M71: 2.69573
A72: 63 | B72: DRREDDY | C72: 2702.25 | D72: 2711.73 | E72: 2680.92 | F72: 2659.58 | G72: 2628.77 | H72: 2733.07 | I72: 2763.88 | J72: 2785.22 | K72: 2742.55 | L72: 2690.4 | M72: 5.49806
A73: 64 | B73: EDELWEISS | C73: 94.9 | D73: 98.28 | E73: 90.82 | F73: 86.73 | G73: 79.27 | H73: 102.37 | I73: 109.83 | J73: 113.92 | K73: 105.75 | L73: 94.2 | M73: 56.33835
A74: 65 | B74: EICHERMOT | C74: 17765.2 | D74: 17710.55 | E74: 17421.10 | F74: 17077.00 | G74: 16787.55 | H74: 18054.65 | I74: 18344.10 | J74: 18688.20 | K74: 18000 | L74: 17366.45 | M74: 1.49957
A75: 66 | B75: ENDURANCE | C75: 1012.25 | D75: 1008.75 | E75: 988.50 | F75: 964.75 | G75: 944.50 | H75: 1032.50 | I75: 1052.75 | J75: 1076.50 | K75: 1029 | L75: 985 | M75: 0.15513
A76: 67 | B76: ENGINERSIN | C76: 117.35 | D76: 118.10 | E76: 115.75 | F76: 114.15 | G76: 111.80 | H76: 119.70 | I76: 122.05 | J76: 123.65 | K76: 120.45 | L76: 116.5 | M76: 17.05753
A77: 68 | B77: ESCORTS | C77: 580.35 | D77: 579.10 | E77: 564.40 | F77: 548.45 | G77: 533.75 | H77: 595.05 | I77: 609.75 | J77: 625.70 | K77: 593.8 | L77: 563.15 | M77: 33.04226
A78: 69 | B78: EXIDEIND | C78: 195.2 | D78: 193.57 | E78: 191.63 | F78: 188.07 | G78: 186.13 | H78: 197.13 | I78: 199.07 | J78: 202.63 | K78: 195.5 | L78: 190 | M78: 17.14322
A79: 70 | B79: FEDERALBNK | C79: 90.4 | D79: 91.22 | E79: 88.43 | F79: 86.47 | G79: 83.68 | H79: 93.18 | I79: 95.97 | J79: 97.93 | K79: 94 | L79: 89.25 | M79: 176.93994
A80: 71 | B80: FCONSUMER | C80: 26.9 | D80: 27.33 | E80: 26.27 | F80: 25.63 | G80: 24.57 | H80: 27.97 | I80: 29.03 | J80: 29.67 | K80: 28.4 | L80: 26.7 | M80: 7.14785
A81: 72 | B81: FRETAIL | C81: 380.8 | D81: 380.67 | E81: 372.13 | F81: 363.47 | G81: 354.93 | H81: 389.33 | I81: 397.87 | J81: 406.53 | K81: 389.2 | L81: 372 | M81: 3.89304
A82: 73 | B82: GAIL | C82: 134.5 | D82: 134.05 | E82: 132.85 | F82: 131.20 | G82: 130.00 | H82: 135.70 | I82: 136.90 | J82: 138.55 | K82: 135.25 | L82: 132.4 | M82: 69.29153
A83: 74 | B83: GMRINFRA | C83: 17 | D83: 16.95 | E83: 16.70 | F83: 16.40 | G83: 16.15 | H83: 17.25 | I83: 17.50 | J83: 17.80 | K83: 17.2 | L83: 16.65 | M83: 199.43176
A84: 75 | B84: GICRE | C84: 219.9 | D84: 217.03 | E84: 208.47 | F84: 197.03 | G84: 188.47 | H84: 228.47 | I84: 237.03 | J84: 248.47 | K84: 225.6 | L84: 205.6 | M84: 2.37798
A85: 76 | B85: GSKCONS | C85: 8528.9 | D85: 8560.75 | E85: 8470.15 | F85: 8411.40 | G85: 8320.80 | H85: 8619.50 | I85: 8710.10 | J85: 8768.85 | K85: 8651.35 | L85: 8502 | M85: 0.62038
A86: 77 | B86: GLENMARK | C86: 325.05 | D86: 325.78 | E86: 318.57 | F86: 312.08 | G86: 304.87 | H86: 332.27 | I86: 339.48 | J86: 345.97 | K86: 333 | L86: 319.3 | M86: 16.49372
A87: 78 | B87: GODREJAGRO | C87: 477 | D87: 478.88 | E87: 468.22 | F87: 459.43 | G87: 448.77 | H87: 487.67 | I87: 498.33 | J87: 507.12 | K87: 489.55 | L87: 470.1 | M87: 0.19663
A88: 79 | B88: GODREJCP | C88: 687.3 | D88: 688.15 | E88: 679.35 | F88: 671.40 | G88: 662.60 | H88: 696.10 | I88: 704.90 | J88: 712.85 | K88: 696.95 | L88: 680.2 | M88: 10.0457
A89: 80 | B89: GODREJIND | C89: 408.4 | D89: 410.23 | E89: 403.17 | F89: 397.93 | G89: 390.87 | H89: 415.47 | I89: 422.53 | J89: 427.77 | K89: 417.3 | L89: 405 | M89: 1.20227
A90: 81 | B90: GRAPHITE | C90: 290.95 | D90: 297.60 | E90: 278.45 | F90: 265.95 | G90: 246.80 | H90: 310.10 | I90: 329.25 | J90: 341.75 | K90: 316.75 | L90: 285.1 | M90: 19.9218
A91: 82 | B91: GRASIM | C91: 730.1 | D91: 725.65 | E91: 712.70 | F91: 695.30 | G91: 682.35 | H91: 743.05 | I91: 756.00 | J91: 773.40 | K91: 738.6 | L91: 708.25 | M91: 17.42195
A92: 83 | B92: GRUH | C92: 269.35 | D92: 269.43 | E92: 267.07 | F92: 264.78 | G92: 262.42 | H92: 271.72 | I92: 274.08 | J92: 276.37 | K92: 271.8 | L92: 267.15 | M92: 9.15514
A93: 84 | B93: GSPL | C93: 216.95 | D93: 217.80 | E93: 215.20 | F93: 213.45 | G93: 210.85 | H93: 219.55 | I93: 222.15 | J93: 223.90 | K93: 220.4 | L93: 216.05 | M93: 4.13451
A94: 85 | B94: HEG | C94: 953.2 | D94: 968.40 | E94: 919.80 | F94: 886.40 | G94: 837.80 | H94: 1001.80 | I94: 1050.40 | J94: 1083.80 | K94: 1017 | L94: 935 | M94: 7.06656
A95: 86 | B95: HCLTECH | C95: 1080.6 | D95: 1073.38 | E95: 1050.27 | F95: 1019.93 | G95: 996.82 | H95: 1103.72 | I95: 1126.83 | J95: 1157.17 | K95: 1096.5 | L95: 1043.05 | M95: 42.79793
A96: 87 | B96: HDFCAMC | C96: 2801.7 | D96: 2809.28 | E96: 2779.42 | F96: 2757.13 | G96: 2727.27 | H96: 2831.57 | I96: 2861.43 | J96: 2883.72 | K96: 2839.15 | L96: 2787 | M96: 1.90861
A97: 88 | B97: HDFCBANK | C97: 1227.45 | D97: 1227.98 | E97: 1215.97 | F97: 1204.48 | G97: 1192.47 | H97: 1239.47 | I97: 1251.48 | J97: 1262.97 | K97: 1240 | L97: 1216.5 | M97: 91.09229
A98: 89 | B98: HDFCLIFE | C98: 601.15 | D98: 598.38 | E98: 587.77 | F98: 574.38 | G98: 563.77 | H98: 611.77 | I98: 622.38 | J98: 635.77 | K98: 609 | L98: 585 | M98: 55.22478
A99: 90 | B99: HAVELLS | C99: 718.3 | D99: 716.20 | E99: 711.15 | F99: 704.00 | G99: 698.95 | H99: 723.35 | I99: 728.40 | J99: 735.55 | K99: 721.25 | L99: 709.05 | M99: 9.79643
A100: 91 | B100: HEROMOTOCO | C100: 2704.75 | D100: 2710.57 | E100: 2662.38 | F100: 2620.02 | G100: 2571.83 | H100: 2752.93 | I100: 2801.12 | J100: 2843.48 | K100: 2758.75 | L100: 2668.2 | M100: 8.37786
A101: 92 | B101: HEXAWARE | C101: 380.35 | D101: 380.23 | E101: 375.17 | F101: 369.98 | G101: 364.92 | H101: 385.42 | I101: 390.48 | J101: 395.67 | K101: 385.3 | L101: 375.05 | M101: 16.91175
A102: 93 | B102: HINDALCO | C102: 191.35 | D102: 189.33 | E102: 186.77 | F102: 182.18 | G102: 179.62 | H102: 193.92 | I102: 196.48 | J102: 201.07 | K102: 191.9 | L102: 184.75 | M102: 65.21755
A103: 94 | B103: HINDPETRO | C103: 301.7 | D103: 303.07 | E103: 295.23 | F103: 288.77 | G103: 280.93 | H103: 309.53 | I103: 317.37 | J103: 323.83 | K103: 310.9 | L103: 296.6 | M103: 77.97774
A104: 95 | B104: HINDUNILVR | C104: 1981.95 | D104: 1990.42 | E104: 1962.93 | F104: 1943.92 | G104: 1916.43 | H104: 2009.43 | I104: 2036.92 | J104: 2055.93 | K104: 2017.9 | L104: 1971.4 | M104: 21.69407
A105: 96 | B105: HINDZINC | C105: 213.45 | D105: 214.55 | E105: 210.70 | F105: 207.95 | G105: 204.10 | H105: 217.30 | I105: 221.15 | J105: 223.90 | K105: 218.4 | L105: 211.8 | M105: 8.43381
A106: 97 | B106: HUDCO | C106: 34.9 | D106: 34.97 | E106: 33.83 | F106: 32.77 | G106: 31.63 | H106: 36.03 | I106: 37.17 | J106: 38.23 | K106: 36.1 | L106: 33.9 | M106: 8.41356
A107: 98 | B107: HDFC | C107: 1977.05 | D107: 1995.20 | E107: 1951.90 | F107: 1926.75 | G107: 1883.45 | H107: 2020.35 | I107: 2063.65 | J107: 2088.80 | K107: 2038.5 | L107: 1970.05 | M107: 71.17561
A108: 99 | B108: ICICIBANK | C108: 433.7 | D108: 436.62 | E108: 428.08 | F108: 422.47 | G108: 413.93 | H108: 442.23 | I108: 450.77 | J108: 456.38 | K108: 445.15 | L108: 431 | M108: 275.2466
A109: 100 | B109: ICICIGI | C109: 1209.85 | D109: 1203.72 | E109: 1193.13 | F109: 1176.42 | G109: 1165.83 | H109: 1220.43 | I109: 1231.02 | J109: 1247.73 | K109: 1214.3 | L109: 1187 | M109: 6.56971
A110: 101 | B110: ICICIPRULI | C110: 463.5 | D110: 465.10 | E110: 458.50 | F110: 453.50 | G110: 446.90 | H110: 470.10 | I110: 476.70 | J110: 481.70 | K110: 471.7 | L110: 460.1 | M110: 37.72287
A111: 102 | B111: IDBI | C111: 31.75 | D111: 32.32 | E111: 30.73 | F111: 29.72 | G111: 28.13 | H111: 33.33 | I111: 34.92 | J111: 35.93 | K111: 33.9 | L111: 31.3 | M111: 38.54194
A112: 103 | B112: IDFCFIRSTB | C112: 40.2 | D112: 40.78 | E112: 38.82 | F112: 37.43 | G112: 35.47 | H112: 42.17 | I112: 44.13 | J112: 45.52 | K112: 42.75 | L112: 39.4 | M112: 297.24442
A113: 104 | B113: ITC | C113: 259.85 | D113: 256.68 | E113: 252.57 | F113: 245.28 | G113: 241.17 | H113: 263.97 | I113: 268.08 | J113: 275.37 | K113: 260.8 | L113: 249.4 | M113: 205.88289
A114: 105 | B114: IBULHSGFIN | C114: 255.9 | D114: 285.95 | E114: 210.00 | F114: 164.10 | G114: 88.15 | H114: 331.85 | I114: 407.80 | J114: 453.70 | K114: 361.9 | L114: 240.05 | M114: 919.30251
A115: 106 | B115: IBVENTURES | C115: 123.85 | D115: 129.23 | E115: 118.47 | F115: 113.08 | G115: 102.32 | H115: 134.62 | I115: 145.38 | J115: 150.77 | K115: 140 | L115: 123.85 | M115: 23.71578
A116: 107 | B116: INDIANB | C116: 125.3 | D116: 127.68 | E116: 121.87 | F116: 118.43 | G116: 112.62 | H116: 131.12 | I116: 136.93 | J116: 140.37 | K116: 133.5 | L116: 124.25 | M116: 10.57239
A117: 108 | B117: INDHOTEL | C117: 159.8 | D117: 157.23 | E117: 152.57 | F117: 145.33 | G117: 140.67 | H117: 164.47 | I117: 169.13 | J117: 176.37 | K117: 161.9 | L117: 150 | M117: 18.37554
A118: 109 | B118: IOC | C118: 147.4 | D118: 146.13 | E118: 144.27 | F118: 141.13 | G118: 139.27 | H118: 149.27 | I118: 151.13 | J118: 154.27 | K118: 148 | L118: 143 | M118: 160.69288
A119: 110 | B119: IGL | C119: 349.7 | D119: 348.93 | E119: 347.02 | F119: 344.33 | G119: 342.42 | H119: 351.62 | I119: 353.53 | J119: 356.22 | K119: 350.85 | L119: 346.25 | M119: 7.00248
A120: 111 | B120: INDUSINDBK | C120: 1383.55 | D120: 1401.83 | E120: 1327.87 | F120: 1272.18 | G120: 1198.22 | H120: 1457.52 | I120: 1531.48 | J120: 1587.17 | K120: 1475.8 | L120: 1346.15 | M120: 94.39585
A121: 112 | B121: NAUKRI | C121: 2021.15 | D121: 2030.05 | E121: 1991.10 | F121: 1961.05 | G121: 1922.10 | H121: 2060.10 | I121: 2099.05 | J121: 2129.10 | K121: 2069 | L121: 2000 | M121: 0.80644
A122: 113 | B122: INFY | C122: 805.65 | D122: 799.27 | E122: 790.53 | F122: 775.42 | G122: 766.68 | H122: 814.38 | I122: 823.12 | J122: 838.23 | K122: 808 | L122: 784.15 | M122: 81.78091
A123: 114 | B123: INDIGO | C123: 1889.65 | D123: 1873.73 | E123: 1848.62 | F123: 1807.58 | G123: 1782.47 | H123: 1914.77 | I123: 1939.88 | J123: 1980.92 | K123: 1898.85 | L123: 1832.7 | M123: 10.90939
A124: 115 | B124: JSWENERGY | C124: 65.05 | D124: 64.83 | E124: 64.17 | F124: 63.28 | G124: 62.62 | H124: 65.72 | I124: 66.38 | J124: 67.27 | K124: 65.5 | L124: 63.95 | M124: 5.48636
A125: 116 | B125: JSWSTEEL | C125: 229.95 | D125: 227.82 | E125: 224.63 | F125: 219.32 | G125: 216.13 | H125: 233.13 | I125: 236.32 | J125: 241.63 | K125: 231 | L125: 222.5 | M125: 67.83701
A126: 117 | B126: JINDALSTEL | C126: 103.55 | D126: 102.17 | E126: 99.98 | F126: 96.42 | G126: 94.23 | H126: 105.73 | I126: 107.92 | J126: 111.48 | K126: 104.35 | L126: 98.6 | M126: 219.61633
A127: 118 | B127: JUBLFOOD | C127: 1359.4 | D127: 1354.77 | E127: 1335.68 | F127: 1311.97 | G127: 1292.88 | H127: 1378.48 | I127: 1397.57 | J127: 1421.28 | K127: 1373.85 | L127: 1331.05 | M127: 10.42634
A128: 119 | B128: JUBILANT | C128: 505.15 | D128: 510.28 | E128: 492.92 | F128: 480.68 | G128: 463.32 | H128: 522.52 | I128: 539.88 | J128: 552.12 | K128: 527.65 | L128: 498.05 | M128: 2.80031
A129: 120 | B129: KOTAKBANK | C129: 1644.45 | D129: 1640.25 | E129: 1618.50 | F129: 1592.55 | G129: 1570.80 | H129: 1666.20 | I129: 1687.95 | J129: 1713.90 | K129: 1662 | L129: 1614.3 | M129: 33.57859
A130: 121 | B130: L&TFH | C130: 84.75 | D130: 87.38 | E130: 80.92 | F130: 77.08 | G130: 70.62 | H130: 91.22 | I130: 97.68 | J130: 101.52 | K130: 93.85 | L130: 83.55 | M130: 206.10273
A131: 122 | B131: LTTS | C131: 1522.9 | D131: 1548.63 | E131: 1487.27 | F131: 1451.63 | G131: 1390.27 | H131: 1584.27 | I131: 1645.63 | J131: 1681.27 | K131: 1610 | L131: 1513 | M131: 0.8412
A132: 123 | B132: LICHSGFIN | C132: 376.65 | D132: 381.08 | E132: 365.57 | F132: 354.48 | G132: 338.97 | H132: 392.17 | I132: 407.68 | J132: 418.77 | K132: 396.6 | L132: 370 | M132: 33.61894
A133: 124 | B133: LTI | C133: 1511.25 | D133: 1514.42 | E133: 1501.83 | F133: 1492.42 | G133: 1479.83 | H133: 1523.83 | I133: 1536.42 | J133: 1545.83 | K133: 1527 | L133: 1505 | M133: 0.42794
A134: 125 | B134: LT | C134: 1474.25 | D134: 1468.82 | E134: 1453.63 | F134: 1433.02 | G134: 1417.83 | H134: 1489.43 | I134: 1504.62 | J134: 1525.23 | K134: 1484 | L134: 1448.2 | M134: 29.61398
A135: 126 | B135: LUPIN | C135: 715.7 | D135: 712.58 | E135: 705.17 | F135: 694.63 | G135: 687.22 | H135: 723.12 | I135: 730.53 | J135: 741.07 | K135: 720 | L135: 702.05 | M135: 14.8757
A136: 127 | B136: MRF | C136: 63291.55 | D136: 63070.48 | E136: 62691.07 | F136: 62090.58 | G136: 61711.17 | H136: 63670.97 | I136: 64050.38 | J136: 64650.87 | K136: 63449.9 | L136: 62470 | M136: 0.04885
A137: 128 | B137: MGL | C137: 911.7 | D137: 913.10 | E137: 897.25 | F137: 882.80 | G137: 866.95 | H137: 927.55 | I137: 943.40 | J137: 957.85 | K137: 928.95 | L137: 898.65 | M137: 4.65725
A138: 129 | B138: M&MFIN | C138: 328 | D138: 332.90 | E138: 319.30 | F138: 310.60 | G138: 297.00 | H138: 341.60 | I138: 355.20 | J138: 363.90 | K138: 346.5 | L138: 324.2 | M138: 29.44282
A139: 130 | B139: M&M | C139: 547.15 | D139: 548.67 | E139: 538.78 | F139: 530.42 | G139: 520.53 | H139: 557.03 | I139: 566.92 | J139: 575.28 | K139: 558.55 | L139: 540.3 | M139: 33.81186
A140: 131 | B140: MANAPPURAM | C140: 141.2 | D140: 141.90 | E140: 139.50 | F140: 137.80 | G140: 135.40 | H140: 143.60 | I140: 146.00 | J140: 147.70 | K140: 144.3 | L140: 140.2 | M140: 48.96657
A141: 132 | B141: MRPL | C141: 48.5 | D141: 48.93 | E141: 47.57 | F141: 46.63 | G141: 45.27 | H141: 49.87 | I141: 51.23 | J141: 52.17 | K141: 50.3 | L141: 48 | M141: 11.64311
A142: 133 | B142: MARICO | C142: 394.25 | D142: 392.70 | E142: 389.55 | F142: 384.85 | G142: 381.70 | H142: 397.40 | I142: 400.55 | J142: 405.25 | K142: 395.85 | L142: 388 | M142: 18.91389
A143: 134 | B143: MARUTI | C143: 6715.8 | D143: 6721.80 | E143: 6634.00 | F143: 6552.20 | G143: 6464.40 | H143: 6803.60 | I143: 6891.40 | J143: 6973.20 | K143: 6809.6 | L143: 6640 | M143: 12.64165
A144: 135 | B144: MFSL | C144: 426.8 | D144: 427.98 | E144: 418.82 | F144: 410.83 | G144: 401.67 | H144: 435.97 | I144: 445.13 | J144: 453.12 | K144: 437.15 | L144: 420 | M144: 8.29999
A145: 136 | B145: MINDTREE | C145: 707.8 | D145: 703.87 | E145: 695.73 | F145: 683.67 | G145: 675.53 | H145: 715.93 | I145: 724.07 | J145: 736.13 | K145: 712 | L145: 691.8 | M145: 4.37734
A146: 137 | B146: MOTHERSUMI | C146: 104.95 | D146: 105.28 | E146: 102.82 | F146: 100.68 | G146: 98.22 | H146: 107.42 | I146: 109.88 | J146: 112.02 | K146: 107.75 | L146: 103.15 | M146: 84.35297
A147: 138 | B147: MPHASIS | C147: 957 | D147: 952.15 | E147: 940.10 | F147: 923.20 | G147: 911.15 | H147: 969.05 | I147: 981.10 | J147: 998.00 | K147: 964.2 | L147: 935.25 | M147: 3.51372
A148: 139 | B148: MUTHOOTFIN | C148: 675.9 | D148: 678.72 | E148: 669.73 | F148: 663.57 | G148: 654.58 | H148: 684.88 | I148: 693.87 | J148: 700.03 | K148: 687.7 | L148: 672.55 | M148: 8.51468
A149: 140 | B149: NATCOPHARM | C149: 581.95 | D149: 586.75 | E149: 566.30 | F149: 550.65 | G149: 530.20 | H149: 602.40 | I149: 622.85 | J149: 638.50 | K149: 607.2 | L149: 571.1 | M149: 1.24379
A150: 141 | B150: NBCC | C150: 34.9 | D150: 35.37 | E150: 34.03 | F150: 33.17 | G150: 31.83 | H150: 36.23 | I150: 37.57 | J150: 38.43 | K150: 36.7 | L150: 34.5 | M150: 195.07194
A151: 142 | B151: NHPC | C151: 22.3 | D151: 22.50 | E151: 22.00 | F151: 21.70 | G151: 21.20 | H151: 22.80 | I151: 23.30 | J151: 23.60 | K151: 23 | L151: 22.2 | M151: 24.69591
A152: 143 | B152: NMDC | C152: 88.7 | D152: 88.67 | E152: 86.43 | F152: 84.17 | G152: 81.93 | H152: 90.93 | I152: 93.17 | J152: 95.43 | K152: 90.9 | L152: 86.4 | M152: 83.57149
A153: 144 | B153: NTPC | C153: 117.5 | D153: 117.15 | E153: 116.10 | F153: 114.70 | G153: 113.65 | H153: 118.55 | I153: 119.60 | J153: 121.00 | K153: 118.2 | L153: 115.75 | M153: 120.45142
A154: 145 | B154: NATIONALUM | C154: 46.45 | D154: 46.12 | E154: 45.33 | F154: 44.22 | G154: 43.43 | H154: 47.23 | I154: 48.02 | J154: 49.13 | K154: 46.9 | L154: 45 | M154: 60.06586
A155: 146 | B155: OBEROIRLTY | C155: 507.6 | D155: 501.72 | E155: 486.43 | F155: 465.27 | G155: 449.98 | H155: 522.88 | I155: 538.17 | J155: 559.33 | K155: 517 | L155: 480.55 | M155: 6.18561
A156: 147 | B156: ONGC | C156: 131.8 | D156: 131.08 | E156: 129.27 | F156: 126.73 | G156: 124.92 | H156: 133.62 | I156: 135.43 | J156: 137.97 | K156: 132.9 | L156: 128.55 | M156: 116.25597
A157: 148 | B157: OIL | C157: 145.25 | D157: 145.78 | E157: 143.97 | F157: 142.68 | G157: 140.87 | H157: 147.07 | I157: 148.88 | J157: 150.17 | K157: 147.6 | L157: 144.5 | M157: 13.19076
A158: 149 | B158: OFSS | C158: 3173.4 | D158: 3123.00 | E158: 3051.05 | F158: 2928.70 | G158: 2856.75 | H158: 3245.35 | I158: 3317.30 | J158: 3439.65 | K158: 3194.95 | L158: 3000.65 | M158: 0.31302
A159: 150 | B159: PIIND | C159: 1307.05 | D159: 1315.02 | E159: 1290.03 | F159: 1273.02 | G159: 1248.03 | H159: 1332.03 | I159: 1357.02 | J159: 1374.03 | K159: 1340 | L159: 1298 | M159: 0.88473
A160: 151 | B160: PNBHOUSING | C160: 583.75 | D160: 588.32 | E160: 565.63 | F160: 547.52 | G160: 524.83 | H160: 606.43 | I160: 629.12 | J160: 647.23 | K160: 611 | L160: 570.2 | M160: 2.17001
A161: 152 | B161: PAGEIND | C161: 22517.85 | D161: 22397.95 | E161: 22120.90 | F161: 21723.95 | G161: 21446.90 | H161: 22794.90 | I161: 23071.95 | J161: 23468.90 | K161: 22675 | L161: 22001 | M161: 0.15919
A162: 153 | B162: PETRONET | C162: 259.9 | D162: 258.70 | E162: 256.70 | F162: 253.50 | G162: 251.50 | H162: 261.90 | I162: 263.90 | J162: 267.10 | K162: 260.7 | L162: 255.5 | M162: 21.32999
A163: 154 | B163: PFIZER | C163: 3351.05 | D163: 3320.78 | E163: 3261.57 | F163: 3172.08 | G163: 3112.87 | H163: 3410.27 | I163: 3469.48 | J163: 3558.97 | K163: 3380 | L163: 3231.3 | M163: 0.23784
A164: 155 | B164: PIDILITIND | C164: 1443.75 | D164: 1450.62 | E164: 1424.23 | F164: 1404.72 | G164: 1378.33 | H164: 1470.13 | I164: 1496.52 | J164: 1516.03 | K164: 1477 | L164: 1431.1 | M164: 4.26995
A165: 156 | B165: PEL | C165: 1632.45 | D165: 1648.82 | E165: 1572.63 | F165: 1512.82 | G165: 1436.63 | H165: 1708.63 | I165: 1784.82 | J165: 1844.63 | K165: 1725 | L165: 1589 | M165: 31.28706
A166: 157 | B166: PFC | C166: 99.4 | D166: 99.78 | E166: 98.12 | F166: 96.83 | G166: 95.17 | H166: 101.07 | I166: 102.73 | J166: 104.02 | K166: 101.45 | L166: 98.5 | M166: 72.77022
A167: 158 | B167: POWERGRID | C167: 199.05 | D167: 198.23 | E167: 196.47 | F167: 193.88 | G167: 192.12 | H167: 200.82 | I167: 202.58 | J167: 205.17 | K167: 200 | L167: 195.65 | M167: 51.25123
A168: 159 | B168: PRESTIGE | C168: 288.8 | D168: 287.88 | E168: 283.92 | F168: 279.03 | G168: 275.07 | H168: 292.77 | I168: 296.73 | J168: 301.62 | K168: 291.85 | L168: 283 | M168: 0.39284
A169: 160 | B169: PGHH | C169: 12126.05 | D169: 12138.68 | E169: 11878.37 | F169: 11630.68 | G169: 11370.37 | H169: 12386.37 | I169: 12646.68 | J169: 12894.37 | K169: 12399 | L169: 11891 | M169: 0.19537
A170: 161 | B170: PNB | C170: 61.95 | D170: 62.12 | E170: 60.88 | F170: 59.82 | G170: 58.58 | H170: 63.18 | I170: 64.42 | J170: 65.48 | K170: 63.35 | L170: 61.05 | M170: 225.97574
A171: 162 | B171: QUESS | C171: 469.55 | D171: 467.70 | E171: 456.40 | F171: 443.25 | G171: 431.95 | H171: 480.85 | I171: 492.15 | J171: 505.30 | K171: 479 | L171: 454.55 | M171: 3.18855
A172: 163 | B172: RBLBANK | C172: 328.85 | D172: 338.30 | E172: 311.15 | F172: 293.45 | G172: 266.30 | H172: 356.00 | I172: 383.15 | J172: 400.85 | K172: 365.45 | L172: 320.6 | M172: 161.55044
A173: 164 | B173: RECLTD | C173: 123.15 | D173: 123.62 | E173: 121.43 | F173: 119.72 | G173: 117.53 | H173: 125.33 | I173: 127.52 | J173: 129.23 | K173: 125.8 | L173: 121.9 | M173: 57.50775
A174: 165 | B174: RAJESHEXPO | C174: 666.85 | D174: 671.12 | E174: 657.73 | F174: 648.62 | G174: 635.23 | H174: 680.23 | I174: 693.62 | J174: 702.73 | K174: 684.5 | L174: 662 | M174: 2.01583
A175: 166 | B175: RELCAPITAL | C175: 24.6 | D175: 25.80 | E175: 22.95 | F175: 21.30 | G175: 18.45 | H175: 27.45 | I175: 30.30 | J175: 31.95 | K175: 28.65 | L175: 24.15 | M175: 131.86481
A176: 167 | B176: RELIANCE | C176: 1332.25 | D176: 1324.52 | E176: 1313.28 | F176: 1294.32 | G176: 1283.08 | H176: 1343.48 | I176: 1354.72 | J176: 1373.68 | K176: 1335.75 | L176: 1305.55 | M176: 115.49746
A177: 168 | B177: RELINFRA | C177: 29.3 | D177: 30.32 | E177: 27.63 | F177: 25.97 | G177: 23.28 | H177: 31.98 | I177: 34.67 | J177: 36.33 | K177: 33 | L177: 28.65 | M177: 85.76681
A178: 169 | B178: RPOWER | C178: 2.2 | D178: 2.27 | E178: 2.08 | F178: 1.97 | G178: 1.78 | H178: 2.38 | I178: 2.57 | J178: 2.68 | K178: 2.45 | L178: 2.15 | M178: 358.21591
A179: 170 | B179: SBILIFE | C179: 846.4 | D179: 844.75 | E179: 837.90 | F179: 829.40 | G179: 822.55 | H179: 853.25 | I179: 860.10 | J179: 868.60 | K179: 851.6 | L179: 836.25 | M179: 9.61777
A180: 171 | B180: SRF | C180: 2751.95 | D180: 2754.62 | E180: 2734.33 | F180: 2716.72 | G180: 2696.43 | H180: 2772.23 | I180: 2792.52 | J180: 2810.13 | K180: 2774.9 | L180: 2737 | M180: 1.52388
A181: 172 | B181: SHREECEM | C181: 18888.15 | D181: 18977.72 | E181: 18712.43 | F181: 18536.72 | G181: 18271.43 | H181: 19153.43 | I181: 19418.72 | J181: 19594.43 | K181: 19243 | L181: 18802 | M181: 0.18688
A182: 173 | B182: SRTRANSFIN | C182: 1071 | D182: 1076.90 | E182: 1049.80 | F182: 1028.60 | G182: 1001.50 | H182: 1098.10 | I182: 1125.20 | J182: 1146.40 | K182: 1104 | L182: 1055.7 | M182: 11.15345
A183: 174 | B183: SIEMENS | C183: 1516.05 | D183: 1507.33 | E183: 1486.87 | F183: 1457.68 | G183: 1437.22 | H183: 1536.52 | I183: 1556.98 | J183: 1586.17 | K183: 1527.8 | L183: 1478.15 | M183: 8.25022
A184: 175 | B184: SBIN | C184: 270.8 | D184: 274.27 | E184: 266.68 | F184: 262.57 | G184: 254.98 | H184: 278.38 | I184: 285.97 | J184: 290.08 | K184: 281.85 | L184: 270.15 | M184: 410.94131
A185: 176 | B185: SAIL | C185: 33.45 | D185: 32.92 | E185: 32.18 | F185: 30.92 | G185: 30.18 | H185: 34.18 | I185: 34.92 | J185: 36.18 | K185: 33.65 | L185: 31.65 | M185: 393.70928
A186: 177 | B186: STRTECH | C186: 157.4 | D186: 158.88 | E186: 154.37 | F186: 151.33 | G186: 146.82 | H186: 161.92 | I186: 166.43 | J186: 169.47 | K186: 163.4 | L186: 155.85 | M186: 7.73792
A187: 178 | B187: SPARC | C187: 125.65 | D187: 128.07 | E187: 122.13 | F187: 118.62 | G187: 112.68 | H187: 131.58 | I187: 137.52 | J187: 141.03 | K187: 134 | L187: 124.55 | M187: 4.58421
A188: 179 | B188: SUNPHARMA | C188: 389.45 | D188: 393.00 | E188: 383.00 | F188: 376.55 | G188: 366.55 | H188: 399.45 | I188: 409.45 | J188: 415.90 | K188: 403 | L188: 386.55 | M188: 66.74624
A189: 180 | B189: SUNTV | C189: 472.7 | D189: 471.60 | E189: 460.20 | F189: 447.70 | G189: 436.30 | H189: 484.10 | I189: 495.50 | J189: 508.00 | K189: 483 | L189: 459.1 | M189: 23.64232
A190: 181 | B190: SYNGENE | C190: 310.05 | D190: 307.52 | E190: 304.03 | F190: 298.02 | G190: 294.53 | H190: 313.53 | I190: 317.02 | J190: 323.03 | K190: 311 | L190: 301.5 | M190: 1.43271
A191: 182 | B191: TVSMOTOR | C191: 422 | D191: 416.57 | E191: 408.83 | F191: 395.67 | G191: 387.93 | H191: 429.73 | I191: 437.47 | J191: 450.63 | K191: 424.3 | L191: 403.4 | M191: 24.47415
A192: 183 | B192: TATACHEM | C192: 588.95 | D192: 590.15 | E192: 583.80 | F192: 578.65 | G192: 572.30 | H192: 595.30 | I192: 601.65 | J192: 606.80 | K192: 596.5 | L192: 585 | M192: 5.57777
A193: 184 | B193: TCS | C193: 2099.3 | D193: 2087.77 | E193: 2071.53 | F193: 2043.77 | G193: 2027.53 | H193: 2115.53 | I193: 2131.77 | J193: 2159.53 | K193: 2104 | L193: 2060 | M193: 26.20039
A194: 185 | B194: TATAGLOBAL | C194: 276 | D194: 277.77 | E194: 273.58 | F194: 271.17 | G194: 266.98 | H194: 280.18 | I194: 284.37 | J194: 286.78 | K194: 281.95 | L194: 275.35 | M194: 20.57195
A195: 186 | B195: TATAMTRDVR | C195: 53.1 | D195: 53.58 | E195: 52.12 | F195: 51.13 | G195: 49.67 | H195: 54.57 | I195: 56.03 | J195: 57.02 | K195: 55.05 | L195: 52.6 | M195: 60.49477
A196: 187 | B196: TATAMOTORS | C196: 117.45 | D196: 118.23 | E196: 115.62 | F196: 113.78 | G196: 111.17 | H196: 120.07 | I196: 122.68 | J196: 124.52 | K196: 120.85 | L196: 116.4 | M196: 321.58885
A197: 188 | B197: TATAPOWER | C197: 62.5 | D197: 62.10 | E197: 61.40 | F197: 60.30 | G197: 59.60 | H197: 63.20 | I197: 63.90 | J197: 65.00 | K197: 62.8 | L197: 61 | M197: 70.01421
A198: 189 | B198: TATASTEEL | C198: 360.5 | D198: 356.60 | E198: 349.50 | F198: 338.50 | G198: 331.40 | H198: 367.60 | I198: 374.70 | J198: 385.70 | K198: 363.7 | L198: 345.6 | M198: 147.19696
A199: 190 | B199: TECHM | C199: 714.5 | D199: 709.10 | E199: 701.60 | F199: 688.70 | G199: 681.20 | H199: 722.00 | I199: 729.50 | J199: 742.40 | K199: 716.6 | L199: 696.2 | M199: 21.36186
A200: 191 | B200: NIACL | C200: 109.35 | D200: 108.25 | E200: 103.50 | F200: 97.65 | G200: 92.90 | H200: 114.10 | I200: 118.85 | J200: 124.70 | K200: 113 | L200: 102.4 | M200: 8.80445
A201: 192 | B201: RAMCOCEM | C201: 751.9 | D201: 752.40 | E201: 743.70 | F201: 735.50 | G201: 726.80 | H201: 760.60 | I201: 769.30 | J201: 777.50 | K201: 761.1 | L201: 744.2 | M201: 2.78254
A202: 193 | B202: TITAN | C202: 1273.05 | D202: 1278.47 | E202: 1261.08 | F202: 1249.12 | G202: 1231.73 | H202: 1290.43 | I202: 1307.82 | J202: 1319.78 | K202: 1295.85 | L202: 1266.5 | M202: 21.42791
A203: 194 | B203: TORNTPHARM | C203: 1667.4 | D203: 1669.90 | E203: 1642.35 | F203: 1617.30 | G203: 1589.75 | H203: 1694.95 | I203: 1722.50 | J203: 1747.55 | K203: 1697.45 | L203: 1644.85 | M203: 2.21051
A204: 195 | B204: TORNTPOWER | C204: 287.5 | D204: 288.90 | E204: 284.85 | F204: 282.20 | G204: 278.15 | H204: 291.55 | I204: 295.60 | J204: 298.25 | K204: 292.95 | L204: 286.25 | M204: 7.96697
A205: 196 | B205: UPL | C205: 603.95 | D205: 596.60 | E205: 585.40 | F205: 566.85 | G205: 555.65 | H205: 615.15 | I205: 626.35 | J205: 644.90 | K205: 607.8 | L205: 578.05 | M205: 39.14781
... 30 more rows

Sheet MidCap Intra
L5: Back To Main Page
A6: FOR INTRA DAY TRADING | K6: =Main!B10 -> 2019-10-01
A9: Sr.no | B9: Scrip | C9: CLOSE RATE | D9: Pivot Point | E9: Supports | H9: Resistances
C10: Point | E10: S1 | F10: S2 | G10: S3 | H10: R1 | I10: R2 | J10: R3 | K10: HIGH | L10: LOW | M10: Total Trade Quanity in Lakhs
A11: 1 | B11: 3MINDIA | C11: 20671.05 | D11: 20457.48 | E11: 20124.32 | F11: 19577.58 | G11: 19244.42 | H11: 21004.22 | I11: 21337.38 | J11: 21884.12 | K11: 20790.65 | L11: 19910.75 | M11: 0.02831
A12: 2 | B12: ABB | C12: 1515.35 | D12: 1518.43 | E12: 1501.92 | F12: 1488.48 | G12: 1471.97 | H12: 1531.87 | I12: 1548.38 | J12: 1561.82 | K12: 1534.95 | L12: 1505 | M12: 1.56032
A13: 3 | B13: ACC | C13: 1608.15 | D13: 1612.40 | E13: 1590.80 | F13: 1573.45 | G13: 1551.85 | H13: 1629.75 | I13: 1651.35 | J13: 1668.70 | K13: 1634 | L13: 1595.05 | M13: 5.52438
A14: 4 | B14: AIAENG | C14: 1784.05 | D14: 1778.18 | E14: 1756.32 | F14: 1728.58 | G14: 1706.72 | H14: 1805.92 | I14: 1827.78 | J14: 1855.52 | K14: 1800.05 | L14: 1750.45 | M14: 0.11933
A15: 5 | B15: APLAPOLLO | C15: 1362.35 | D15: 1375.08 | E15: 1337.27 | F15: 1312.18 | G15: 1274.37 | H15: 1400.17 | I15: 1437.98 | J15: 1463.07 | K15: 1412.9 | L15: 1350 | M15: 0.58563
A16: 6 | B16: AUBANK | C16: 659.5 | D16: 658.57 | E16: 651.93 | F16: 644.37 | G16: 637.73 | H16: 666.13 | I16: 672.77 | J16: 680.33 | K16: 665.2 | L16: 651 | M16: 2.00065
A17: 7 | B17: AAVAS | C17: 1596.1 | D17: 1590.37 | E17: 1561.33 | F17: 1526.57 | G17: 1497.53 | H17: 1625.13 | I17: 1654.17 | J17: 1688.93 | K17: 1619.4 | L17: 1555.6 | M17: 0.18842
A18: 8 | B18: ADANIGREEN | C18: 58.25 | D18: 58.50 | E18: 55.55 | F18: 52.85 | G18: 49.90 | H18: 61.20 | I18: 64.15 | J18: 66.85 | K18: 61.45 | L18: 55.8 | M18: 40.85782
A19: 9 | B19: ADANIPORTS | C19: 413.95 | D19: 410.32 | E19: 405.08 | F19: 396.22 | G19: 390.98 | H19: 419.18 | I19: 424.42 | J19: 433.28 | K19: 415.55 | L19: 401.45 | M19: 31.52658
A20: 10 | B20: ADANIPOWER | C20: 64.3 | D20: 64.88 | E20: 62.82 | F20: 61.33 | G20: 59.27 | H20: 66.37 | I20: 68.43 | J20: 69.92 | K20: 66.95 | L20: 63.4 | M20: 116.03051
A21: 11 | B21: ADANITRANS | C21: 228.6 | D21: 230.57 | E21: 226.13 | F21: 223.67 | G21: 219.23 | H21: 233.03 | I21: 237.47 | J21: 239.93 | K21: 235 | L21: 228.1 | M21: 0.57816
A22: 12 | B22: ABCAPITAL | C22: 84.85 | D22: 86.40 | E22: 83.00 | F22: 81.15 | G22: 77.75 | H22: 88.25 | I22: 91.65 | J22: 93.50 | K22: 89.8 | L22: 84.55 | M22: 17.92857
A23: 13 | B23: ABFRL | C23: 211.35 | D23: 208.83 | E23: 203.77 | F23: 196.18 | G23: 191.12 | H23: 216.42 | I23: 221.48 | J23: 229.07 | K23: 213.9 | L23: 201.25 | M23: 5.50223
A24: 14 | B24: ADVENZYMES | C24: 155.3 | D24: 158.77 | E24: 151.53 | F24: 147.77 | G24: 140.53 | H24: 162.53 | I24: 169.77 | J24: 173.53 | K24: 166 | L24: 155 | M24: 0.47581
A25: 15 | B25: AEGISCHEM | C25: 181.25 | D25: 180.40 | E25: 177.45 | F25: 173.65 | G25: 170.70 | H25: 184.20 | I25: 187.15 | J25: 190.95 | K25: 183.35 | L25: 176.6 | M25: 1.00295
A26: 16 | B26: AJANTPHARM | C26: 1010.6 | D26: 1025.20 | E26: 990.40 | F26: 970.20 | G26: 935.40 | H26: 1045.40 | I26: 1080.20 | J26: 1100.40 | K26: 1060 | L26: 1005 | M26: 0.59138
A27: 17 | B27: AKZOINDIA | C27: 1919.8 | D27: 1934.62 | E27: 1892.23 | F27: 1864.67 | G27: 1822.28 | H27: 1962.18 | I27: 2004.57 | J27: 2032.13 | K27: 1977 | L27: 1907.05 | M27: 0.22503
A28: 18 | B28: APLLTD | C28: 509.4 | D28: 511.73 | E28: 502.77 | F28: 496.13 | G28: 487.17 | H28: 518.37 | I28: 527.33 | J28: 533.97 | K28: 520.7 | L28: 505.1 | M28: 0.09559
A29: 19 | B29: ALKEM | C29: 1905.1 | D29: 1914.98 | E29: 1885.07 | F29: 1865.03 | G29: 1835.12 | H29: 1935.02 | I29: 1964.93 | J29: 1984.97 | K29: 1944.9 | L29: 1894.95 | M29: 0.54451
A30: 20 | B30: ALBK | C30: 28.7 | D30: 28.93 | E30: 27.97 | F30: 27.23 | G30: 26.27 | H30: 29.67 | I30: 30.63 | J30: 31.37 | K30: 29.9 | L30: 28.2 | M30: 6.72025
A31: 21 | B31: ALLCARGO | C31: 107 | D31: 108.32 | E31: 104.43 | F31: 101.87 | G31: 97.98 | H31: 110.88 | I31: 114.77 | J31: 117.33 | K31: 112.2 | L31: 105.75 | M31: 1.62805
A32: 22 | B32: AMARAJABAT | C32: 717.6 | D32: 713.40 | E32: 706.25 | F32: 694.90 | G32: 687.75 | H32: 724.75 | I32: 731.90 | J32: 743.25 | K32: 720.55 | L32: 702.05 | M32: 3.35965
A33: 23 | B33: AMBUJACEM | C33: 203.95 | D33: 204.48 | E33: 201.97 | F33: 199.98 | G33: 197.47 | H33: 206.47 | I33: 208.98 | J33: 210.97 | K33: 207 | L33: 202.5 | M33: 21.99055
A34: 24 | B34: ANDHRABANK | C34: 17.15 | D34: 17.37 | E34: 16.33 | F34: 15.52 | G34: 14.48 | H34: 18.18 | I34: 19.22 | J34: 20.03 | K34: 18.4 | L34: 16.55 | M34: 7.28473
A35: 25 | B35: APOLLOHOSP | C35: 1395.5 | D35: 1387.18 | E35: 1368.52 | F35: 1341.53 | G35: 1322.87 | H35: 1414.17 | I35: 1432.83 | J35: 1459.82 | K35: 1405.85 | L35: 1360.2 | M35: 7.0888
A36: 26 | B36: APOLLOTYRE | C36: 181.65 | D36: 180.78 | E36: 177.17 | F36: 172.68 | G36: 169.07 | H36: 185.27 | I36: 188.88 | J36: 193.37 | K36: 184.4 | L36: 176.3 | M36: 30.73573
A37: 27 | B37: ASHOKLEY | C37: 68.7 | D37: 68.95 | E37: 65.65 | F37: 62.60 | G37: 59.30 | H37: 72.00 | I37: 75.30 | J37: 78.35 | K37: 72.25 | L37: 65.9 | M37: 415.78689
A38: 28 | B38: ASHOKA | C38: 97.4 | D38: 99.07 | E38: 94.88 | F38: 92.37 | G38: 88.18 | H38: 101.58 | I38: 105.77 | J38: 108.28 | K38: 103.25 | L38: 96.55 | M38: 2.07405
A39: 29 | B39: ASIANPAINT | C39: 1762.15 | D39: 1756.40 | E39: 1742.80 | F39: 1723.45 | G39: 1709.85 | H39: 1775.75 | I39: 1789.35 | J39: 1808.70 | K39: 1770 | L39: 1737.05 | M39: 10.41807
A40: 30 | B40: ASTERDM | C40: 118.05 | D40: 119.18 | E40: 115.87 | F40: 113.68 | G40: 110.37 | H40: 121.37 | I40: 124.68 | J40: 126.87 | K40: 122.5 | L40: 117 | M40: 0.36175
A41: 31 | B41: ASTRAZEN | C41: 2314.25 | D41: 2303.92 | E41: 2260.23 | F41: 2206.22 | G41: 2162.53 | H41: 2357.93 | I41: 2401.62 | J41: 2455.63 | K41: 2347.6 | L41: 2249.9 | M41: 0.34784
A42: 32 | B42: ASTRAL | C42: 1147.85 | D42: 1159.55 | E42: 1121.30 | F42: 1094.75 | G42: 1056.50 | H42: 1186.10 | I42: 1224.35 | J42: 1250.90 | K42: 1197.8 | L42: 1133 | M42: 1.35095
A43: 33 | B43: ATUL | C43: 3996.8 | D43: 4016.00 | E43: 3952.05 | F43: 3907.30 | G43: 3843.35 | H43: 4060.75 | I43: 4124.70 | J43: 4169.45 | K43: 4079.95 | L43: 3971.25 | M43: 0.15693
A44: 34 | B44: AUROPHARMA | C44: 589 | D44: 589.33 | E44: 579.67 | F44: 570.33 | G44: 560.67 | H44: 598.67 | I44: 608.33 | J44: 617.67 | K44: 599 | L44: 580 | M44: 15.83086
A45: 35 | B45: AVANTIFEED | C45: 367.4 | D45: 373.33 | E45: 357.07 | F45: 346.73 | G45: 330.47 | H45: 383.67 | I45: 399.93 | J45: 410.27 | K45: 389.6 | L45: 363 | M45: 2.48804
A46: 36 | B46: DMART | C46: 1860.6 | D46: 1870.93 | E46: 1821.87 | F46: 1783.13 | G46: 1734.07 | H46: 1909.67 | I46: 1958.73 | J46: 1997.47 | K46: 1920 | L46: 1832.2 | M46: 4.06359
A47: 37 | B47: AXISBANK | C47: 685 | D47: 693.17 | E47: 673.93 | F47: 662.87 | G47: 643.63 | H47: 704.23 | I47: 723.47 | J47: 734.53 | K47: 712.4 | L47: 682.1 | M47: 200.73726
A48: 38 | B48: BASF | C48: 1001.9 | D48: 1011.23 | E48: 990.67 | F48: 979.43 | G48: 958.87 | H48: 1022.47 | I48: 1043.03 | J48: 1054.27 | K48: 1031.8 | L48: 1000 | M48: 0.06159
A49: 39 | B49: BEML | C49: 954.7 | D49: 952.08 | E49: 931.17 | F49: 907.63 | G49: 886.72 | H49: 975.62 | I49: 996.53 | J49: 1020.07 | K49: 973 | L49: 928.55 | M49: 11.06048
A50: 40 | B50: BSE | C50: 564.25 | D50: 565.27 | E50: 558.98 | F50: 553.72 | G50: 547.43 | H50: 570.53 | I50: 576.82 | J50: 582.08 | K50: 571.55 | L50: 560 | M50: 1.02891
A51: 41 | B51: BAJAJ-AUTO | C51: 2941.8 | D51: 2939.75 | E51: 2904.55 | F51: 2867.30 | G51: 2832.10 | H51: 2977.00 | I51: 3012.20 | J51: 3049.45 | K51: 2974.95 | L51: 2902.5 | M51: 3.84245
A52: 42 | B52: BAJAJCON | C52: 245.65 | D52: 246.53 | E52: 243.12 | F52: 240.58 | G52: 237.17 | H52: 249.07 | I52: 252.48 | J52: 255.02 | K52: 249.95 | L52: 244 | M52: 0.71984
A53: 43 | B53: BAJAJELEC | C53: 390.95 | D53: 396.28 | E53: 382.82 | F53: 374.68 | G53: 361.22 | H53: 404.42 | I53: 417.88 | J53: 426.02 | K53: 409.75 | L53: 388.15 | M53: 0.62752
A54: 44 | B54: BAJFINANCE | C54: 4046.05 | D54: 4062.93 | E54: 4014.12 | F54: 3982.18 | G54: 3933.37 | H54: 4094.87 | I54: 4143.68 | J54: 4175.62 | K54: 4111.75 | L54: 4031 | M54: 22.56361
A55: 45 | B55: BAJAJFINSV | C55: 8513 | D55: 8530.72 | E55: 8392.63 | F55: 8272.27 | G55: 8134.18 | H55: 8651.08 | I55: 8789.17 | J55: 8909.53 | K55: 8668.8 | L55: 8410.35 | M55: 4.62717
A56: 46 | B56: BAJAJHLDNG | C56: 3593.25 | D56: 3567.42 | E56: 3537.83 | F56: 3482.42 | G56: 3452.83 | H56: 3622.83 | I56: 3652.42 | J56: 3707.83 | K56: 3597 | L56: 3512 | M56: 0.15975
A57: 47 | B57: BALKRISIND | C57: 776.25 | D57: 772.27 | E57: 766.03 | F57: 755.82 | G57: 749.58 | H57: 782.48 | I57: 788.72 | J57: 798.93 | K57: 778.5 | L57: 762.05 | M57: 2.33003
A58: 48 | B58: BALMLAWRIE | C58: 167 | D58: 168.12 | E58: 165.18 | F58: 163.37 | G58: 160.43 | H58: 169.93 | I58: 172.87 | J58: 174.68 | K58: 171.05 | L58: 166.3 | M58: 0.59049
A59: 49 | B59: BALRAMCHIN | C59: 154.45 | D59: 156.67 | E59: 149.48 | F59: 144.52 | G59: 137.33 | H59: 161.63 | I59: 168.82 | J59: 173.78 | K59: 163.85 | L59: 151.7 | M59: 12.66783
A60: 50 | B60: BANDHANBNK | C60: 491.9 | D60: 496.27 | E60: 483.73 | F60: 475.57 | G60: 463.03 | H60: 504.43 | I60: 516.97 | J60: 525.13 | K60: 508.8 | L60: 488.1 | M60: 5.10468
A61: 51 | B61: BANKBARODA | C61: 93.05 | D61: 93.35 | E61: 91.20 | F61: 89.35 | G61: 87.20 | H61: 95.20 | I61: 97.35 | J61: 99.20 | K61: 95.5 | L61: 91.5 | M61: 268.15456
A62: 52 | B62: BANKINDIA | C62: 62.95 | D62: 63.83 | E62: 61.47 | F62: 59.98 | G62: 57.62 | H62: 65.32 | I62: 67.68 | J62: 69.17 | K62: 66.2 | L62: 62.35 | M62: 121.41961
A63: 53 | B63: MAHABANK | C63: 11.05 | D63: 11.13 | E63: 10.82 | F63: 10.58 | G63: 10.27 | H63: 11.37 | I63: 11.68 | J63: 11.92 | K63: 11.45 | L63: 10.9 | M63: 3.35378
A64: 54 | B64: BATAINDIA | C64: 1722.2 | D64: 1735.08 | E64: 1700.22 | F64: 1678.23 | G64: 1643.37 | H64: 1757.07 | I64: 1791.93 | J64: 1813.92 | K64: 1769.95 | L64: 1713.1 | M64: 6.63077
A65: 55 | B65: BERGEPAINT | C65: 434.8 | D65: 437.73 | E65: 430.67 | F65: 426.53 | G65: 419.47 | H65: 441.87 | I65: 448.93 | J65: 453.07 | K65: 444.8 | L65: 433.6 | M65: 20.58899
A66: 56 | B66: BDL | C66: 295.9 | D66: 299.00 | E66: 291.00 | F66: 286.10 | G66: 278.10 | H66: 303.90 | I66: 311.90 | J66: 316.80 | K66: 307 | L66: 294.1 | M66: 0.27869
A67: 57 | B67: BEL | C67: 108.3 | D67: 107.43 | E67: 105.97 | F67: 103.63 | G67: 102.17 | H67: 109.77 | I67: 111.23 | J67: 113.57 | K67: 108.9 | L67: 105.1 | M67: 78.70395
A68: 58 | B68: BHARATFORG | C68: 446.35 | D68: 446.47 | E68: 438.83 | F68: 431.32 | G68: 423.68 | H68: 453.98 | I68: 461.62 | J68: 469.13 | K68: 454.1 | L68: 438.95 | M68: 15.02636
A69: 59 | B69: BHEL | C69: 48.4 | D69: 48.68 | E69: 47.22 | F69: 46.03 | G69: 44.57 | H69: 49.87 | I69: 51.33 | J69: 52.52 | K69: 50.15 | L69: 47.5 | M69: 115.13335
A70: 60 | B70: BPCL | C70: 470.1 | D70: 471.88 | E70: 464.27 | F70: 458.43 | G70: 450.82 | H70: 477.72 | I70: 485.33 | J70: 491.17 | K70: 479.5 | L70: 466.05 | M70: 131.39611
A71: 61 | B71: BHARTIARTL | C71: 367.05 | D71: 362.07 | E71: 349.23 | F71: 331.42 | G71: 318.58 | H71: 379.88 | I71: 392.72 | J71: 410.53 | K71: 374.9 | L71: 344.25 | M71: 196.16421
A72: 62 | B72: INFRATEL | C72: 257.3 | D72: 255.82 | E72: 251.93 | F72: 246.57 | G72: 242.68 | H72: 261.18 | I72: 265.07 | J72: 270.43 | K72: 259.7 | L72: 250.45 | M72: 20.66415
A73: 63 | B73: BIOCON | C73: 222.95 | D73: 221.50 | E73: 218.55 | F73: 214.15 | G73: 211.20 | H73: 225.90 | I73: 228.85 | J73: 233.25 | K73: 224.45 | L73: 217.1 | M73: 46.72776
A74: 64 | B74: BIRLACORPN | C74: 563.65 | D74: 571.20 | E74: 550.00 | F74: 536.35 | G74: 515.15 | H74: 584.85 | I74: 606.05 | J74: 619.70 | K74: 592.4 | L74: 557.55 | M74: 0.65435
A75: 65 | B75: BLISSGVS | C75: 103 | D75: 103.37 | E75: 100.23 | F75: 97.47 | G75: 94.33 | H75: 106.13 | I75: 109.27 | J75: 112.03 | K75: 106.5 | L75: 100.6 | M75: 3.97629
A76: 66 | B76: BLUEDART | C76: 2484.2 | D76: 2469.87 | E76: 2349.83 | F76: 2215.47 | G76: 2095.43 | H76: 2604.23 | I76: 2724.27 | J76: 2858.63 | K76: 2589.9 | L76: 2335.5 | M76: 0.26309
A77: 67 | B77: BLUESTARCO | C77: 801.25 | D77: 796.12 | E77: 787.23 | F77: 773.22 | G77: 764.33 | H77: 810.13 | I77: 819.02 | J77: 833.03 | K77: 805 | L77: 782.1 | M77: 0.29187
A78: 68 | B78: BBTC | C78: 1135.2 | D78: 1156.33 | E78: 1102.87 | F78: 1070.53 | G78: 1017.07 | H78: 1188.67 | I78: 1242.13 | J78: 1274.47 | K78: 1209.8 | L78: 1124 | M78: 1.35573
A79: 69 | B79: BOMDYEING | C79: 77.75 | D79: 79.65 | E79: 74.50 | F79: 71.25 | G79: 66.10 | H79: 82.90 | I79: 88.05 | J79: 91.30 | K79: 84.8 | L79: 76.4 | M79: 18.105
A80: 70 | B80: BOSCHLTD | C80: 14063.7 | D80: 13978.30 | E80: 13835.45 | F80: 13607.20 | G80: 13464.35 | H80: 14206.55 | I80: 14349.40 | J80: 14577.65 | K80: 14121.15 | L80: 13750.05 | M80: 0.14062
A81: 71 | B81: BRIGADE | C81: 215.35 | D81: 211.45 | E81: 199.90 | F81: 184.45 | G81: 172.90 | H81: 226.90 | I81: 238.45 | J81: 253.90 | K81: 223 | L81: 196 | M81: 4.26014
A82: 72 | B82: BRITANNIA | C82: 2944.15 | D82: 2966.07 | E82: 2908.18 | F82: 2872.22 | G82: 2814.33 | H82: 3002.03 | I82: 3059.92 | J82: 3095.88 | K82: 3023.95 | L82: 2930.1 | M82: 5.53451
A83: 73 | B83: CARERATING | C83: 518.5 | D83: 527.17 | E83: 507.33 | F83: 496.17 | G83: 476.33 | H83: 538.33 | I83: 558.17 | J83: 569.33 | K83: 547 | L83: 516 | M83: 0.41782
A84: 74 | B84: CCL | C84: 239.3 | D84: 240.05 | E84: 237.30 | F84: 235.30 | G84: 232.55 | H84: 242.05 | I84: 244.80 | J84: 246.80 | K84: 242.8 | L84: 238.05 | M84: 0.12255
A85: 75 | B85: CESC | C85: 746.05 | D85: 748.95 | E85: 732.10 | F85: 718.15 | G85: 701.30 | H85: 762.90 | I85: 779.75 | J85: 793.70 | K85: 765.8 | L85: 735 | M85: 4.05033
A86: 76 | B86: CGPOWER | C86: 14.15 | D86: 14.37 | E86: 13.93 | F86: 13.72 | G86: 13.28 | H86: 14.58 | I86: 15.02 | J86: 15.23 | K86: 14.8 | L86: 14.15 | M86: 2.73613
A87: 77 | B87: CRISIL | C87: 1370 | D87: 1366.00 | E87: 1357.00 | F87: 1344.00 | G87: 1335.00 | H87: 1379.00 | I87: 1388.00 | J87: 1401.00 | K87: 1375 | L87: 1353 | M87: 0.21336
A88: 78 | B88: CADILAHC | C88: 233.3 | D88: 234.03 | E88: 226.67 | F88: 220.03 | G88: 212.67 | H88: 240.67 | I88: 248.03 | J88: 254.67 | K88: 241.4 | L88: 227.4 | M88: 15.02377
A89: 79 | B89: CANFINHOME | C89: 393.25 | D89: 395.73 | E89: 387.52 | F89: 381.78 | G89: 373.57 | H89: 401.47 | I89: 409.68 | J89: 415.42 | K89: 403.95 | L89: 390 | M89: 1.69226
A90: 80 | B90: CANBK | C90: 182.4 | D90: 184.37 | E90: 178.03 | F90: 173.67 | G90: 167.33 | H90: 188.73 | I90: 195.07 | J90: 199.43 | K90: 190.7 | L90: 180 | M90: 88.21514
A91: 81 | B91: CAPLIPOINT | C91: 424.2 | D91: 425.38 | E91: 420.87 | F91: 417.53 | G91: 413.02 | H91: 428.72 | I91: 433.23 | J91: 436.57 | K91: 429.9 | L91: 422.05 | M91: 0.17446
A92: 82 | B92: CARBORUNIV | C92: 300.5 | D92: 297.63 | E92: 292.27 | F92: 284.03 | G92: 278.67 | H92: 305.87 | I92: 311.23 | J92: 319.47 | K92: 303 | L92: 289.4 | M92: 0.31029
A93: 83 | B93: CASTROLIND | C93: 136.05 | D93: 134.20 | E93: 131.40 | F93: 126.75 | G93: 123.95 | H93: 138.85 | I93: 141.65 | J93: 146.30 | K93: 137 | L93: 129.55 | M93: 25.09972
A94: 84 | B94: CEATLTD | C94: 957.1 | D94: 962.83 | E94: 945.67 | F94: 934.23 | G94: 917.07 | H94: 974.27 | I94: 991.43 | J94: 1002.87 | K94: 980 | L94: 951.4 | M94: 0.65538
A95: 85 | B95: CENTRALBK | C95: 18.05 | D95: 18.17 | E95: 17.18 | F95: 16.32 | G95: 15.33 | H95: 19.03 | I95: 20.02 | J95: 20.88 | K95: 19.15 | L95: 17.3 | M95: 6.2609
A96: 86 | B96: CDSL | C96: 204.65 | D96: 204.98 | E96: 201.62 | F96: 198.58 | G96: 195.22 | H96: 208.02 | I96: 211.38 | J96: 214.42 | K96: 208.35 | L96: 201.95 | M96: 1.47667
A97: 87 | B97: CENTURYPLY | C97: 159.2 | D97: 159.53 | E97: 156.17 | F97: 153.13 | G97: 149.77 | H97: 162.57 | I97: 165.93 | J97: 168.97 | K97: 162.9 | L97: 156.5 | M97: 1.62328
A98: 88 | B98: CERA | C98: 2660.9 | D98: 2668.63 | E98: 2612.27 | F98: 2563.63 | G98: 2507.27 | H98: 2717.27 | I98: 2773.63 | J98: 2822.27 | K98: 2725 | L98: 2620 | M98: 0.02646
A99: 89 | B99: CHAMBLFERT | C99: 153.8 | D99: 155.32 | E99: 150.78 | F99: 147.77 | G99: 143.23 | H99: 158.33 | I99: 162.87 | J99: 165.88 | K99: 159.85 | L99: 152.3 | M99: 0.90041
A100: 90 | B100: CHENNPETRO | C100: 173.8 | D100: 172.22 | E100: 167.58 | F100: 161.37 | G100: 156.73 | H100: 178.43 | I100: 183.07 | J100: 189.28 | K100: 176.85 | L100: 166 | M100: 3.29092
A101: 91 | B101: CHOLAHLDNG | C101: 489.85 | D101: 485.62 | E101: 481.23 | F101: 472.62 | G101: 468.23 | H101: 494.23 | I101: 498.62 | J101: 507.23 | K101: 490 | L101: 477 | M101: 0.41266
A102: 92 | B102: CHOLAFIN | C102: 307.8 | D102: 309.00 | E102: 304.80 | F102: 301.80 | G102: 297.60 | H102: 312.00 | I102: 316.20 | J102: 319.20 | K102: 313.2 | L102: 306 | M102: 9.59124
A103: 93 | B103: CIPLA | C103: 425.5 | D103: 425.43 | E103: 418.07 | F103: 410.63 | G103: 403.27 | H103: 432.87 | I103: 440.23 | J103: 447.67 | K103: 432.8 | L103: 418 | M103: 63.07161
A104: 94 | B104: CUB | C104: 218.65 | D104: 217.02 | E104: 214.13 | F104: 209.62 | G104: 206.73 | H104: 221.53 | I104: 224.42 | J104: 228.93 | K104: 219.9 | L104: 212.5 | M104: 4.4037
A105: 95 | B105: COALINDIA | C105: 199.85 | D105: 199.05 | E105: 197.35 | F105: 194.85 | G105: 193.15 | H105: 201.55 | I105: 203.25 | J105: 205.75 | K105: 200.75 | L105: 196.55 | M105: 75.78946
A106: 96 | B106: COCHINSHIP | C106: 337.7 | D106: 339.60 | E106: 334.20 | F106: 330.70 | G106: 325.30 | H106: 343.10 | I106: 348.50 | J106: 352.00 | K106: 345 | L106: 336.1 | M106: 0.33418
A107: 97 | B107: COFFEEDAY | C107: 48.05 | D107: 48.05 | E107: 48.05 | F107: 48.05 | G107: 48.05 | H107: 48.05 | I107: 48.05 | J107: 48.05 | K107: 48.05 | L107: 48.05 | M107: 1.79954
A108: 98 | B108: COLPAL | C108: 1503.95 | D108: 1516.00 | E108: 1480.00 | F108: 1456.05 | G108: 1420.05 | H108: 1539.95 | I108: 1575.95 | J108: 1599.90 | K108: 1552 | L108: 1492.05 | M108: 8.09473
A109: 99 | B109: CONCOR | C109: 604.75 | D109: 602.48 | E109: 593.27 | F109: 581.78 | G109: 572.57 | H109: 613.97 | I109: 623.18 | J109: 634.67 | K109: 611.7 | L109: 591 | M109: 29.03317
A110: 100 | B110: COROMANDEL | C110: 415.4 | D110: 412.10 | E110: 403.30 | F110: 391.20 | G110: 382.40 | H110: 424.20 | I110: 433.00 | J110: 445.10 | K110: 420.9 | L110: 400 | M110: 2.111
A111: 101 | B111: CORPBANK | C111: 15.1 | D111: 15.17 | E111: 14.83 | F111: 14.57 | G111: 14.23 | H111: 15.43 | I111: 15.77 | J111: 16.03 | K111: 15.5 | L111: 14.9 | M111: 2.75965
A112: 102 | B112: COX&KINGS | C112: 3.8 | D112: 3.93 | E112: 3.67 | F112: 3.53 | G112: 3.27 | H112: 4.07 | I112: 4.33 | J112: 4.47 | K112: 4.2 | L112: 3.8 | M112: 29.35818
A113: 103 | B113: CREDITACC | C113: 657.1 | D113: 651.47 | E113: 640.93 | F113: 624.77 | G113: 614.23 | H113: 667.63 | I113: 678.17 | J113: 694.33 | K113: 662 | L113: 635.3 | M113: 0.62083
A114: 104 | B114: CROMPTON | C114: 250.3 | D114: 251.03 | E114: 243.27 | F114: 236.23 | G114: 228.47 | H114: 258.07 | I114: 265.83 | J114: 272.87 | K114: 258.8 | L114: 244 | M114: 14.9551
A115: 105 | B115: CUMMINSIND | C115: 572.8 | D115: 573.43 | E115: 566.77 | F115: 560.73 | G115: 554.07 | H115: 579.47 | I115: 586.13 | J115: 592.17 | K115: 580.1 | L115: 567.4 | M115: 3.70317
A116: 106 | B116: CYIENT | C116: 465.35 | D116: 460.45 | E116: 451.90 | F116: 438.45 | G116: 429.90 | H116: 473.90 | I116: 482.45 | J116: 495.90 | K116: 469 | L116: 447 | M116: 4.47027
A117: 107 | B117: DBCORP | C117: 144 | D117: 143.88 | E117: 141.07 | F117: 138.13 | G117: 135.32 | H117: 146.82 | I117: 149.63 | J117: 152.57 | K117: 146.7 | L117: 140.95 | M117: 0.12166
A118: 108 | B118: DCBBANK | C118: 195.3 | D118: 197.07 | E118: 191.73 | F118: 188.17 | G118: 182.83 | H118: 200.63 | I118: 205.97 | J118: 209.53 | K118: 202.4 | L118: 193.5 | M118: 6.28141
A119: 109 | B119: DCMSHRIRAM | C119: 404.45 | D119: 408.20 | E119: 397.70 | F119: 390.95 | G119: 380.45 | H119: 414.95 | I119: 425.45 | J119: 432.20 | K119: 418.7 | L119: 401.45 | M119: 1.07012
A120: 110 | B120: DLF | C120: 155.6 | D120: 155.33 | E120: 151.67 | F120: 147.73 | G120: 144.07 | H120: 159.27 | I120: 162.93 | J120: 166.87 | K120: 159 | L120: 151.4 | M120: 105.46288
A121: 111 | B121: DABUR | C121: 447.25 | D121: 446.18 | E121: 443.12 | F121: 438.98 | G121: 435.92 | H121: 450.32 | I121: 453.38 | J121: 457.52 | K121: 449.25 | L121: 442.05 | M121: 11.30716
A122: 112 | B122: DEEPAKFERT | C122: 97.7 | D122: 99.53 | E122: 94.77 | F122: 91.83 | G122: 87.07 | H122: 102.47 | I122: 107.23 | J122: 110.17 | K122: 104.3 | L122: 96.6 | M122: 2.2621
A123: 113 | B123: DEEPAKNTR | C123: 298.85 | D123: 301.97 | E123: 294.28 | F123: 289.72 | G123: 282.03 | H123: 306.53 | I123: 314.22 | J123: 318.78 | K123: 309.65 | L123: 297.4 | M123: 1.2916
A124: 114 | B124: DELTACORP | C124: 168.9 | D124: 173.30 | E124: 163.60 | F124: 158.30 | G124: 148.60 | H124: 178.60 | I124: 188.30 | J124: 193.60 | K124: 183 | L124: 168 | M124: 8.8277
A125: 115 | B125: DHFL | C125: 38.75 | D125: 40.32 | E125: 36.93 | F125: 35.12 | G125: 31.73 | H125: 42.13 | I125: 45.52 | J125: 47.33 | K125: 43.7 | L125: 38.5 | M125: 131.3657
A126: 116 | B126: DBL | C126: 416.3 | D126: 418.77 | E126: 397.53 | F126: 378.77 | G126: 357.53 | H126: 437.53 | I126: 458.77 | J126: 477.53 | K126: 440 | L126: 400 | M126: 3.25108
A127: 117 | B127: DISHTV | C127: 18.15 | D127: 18.48 | E127: 17.42 | F127: 16.68 | G127: 15.62 | H127: 19.22 | I127: 20.28 | J127: 21.02 | K127: 19.55 | L127: 17.75 | M127: 325.58608
A128: 118 | B128: DCAL | C128: 166.25 | D128: 168.38 | E128: 163.07 | F128: 159.88 | G128: 154.57 | H128: 171.57 | I128: 176.88 | J128: 180.07 | K128: 173.7 | L128: 165.2 | M128: 1.13248
A129: 119 | B129: DIVISLAB | C129: 1665.5 | D129: 1662.78 | E129: 1653.67 | F129: 1641.83 | G129: 1632.72 | H129: 1674.62 | I129: 1683.73 | J129: 1695.57 | K129: 1671.9 | L129: 1650.95 | M129: 2.69573
A130: 120 | B130: DIXON | C130: 2904.05 | D130: 2866.73 | E130: 2792.32 | F130: 2680.58 | G130: 2606.17 | H130: 2978.47 | I130: 3052.88 | J130: 3164.62 | K130: 2941.15 | L130: 2755 | M130: 0.30773
A131: 121 | B131: LALPATHLAB | C131: 1392.75 | D131: 1391.92 | E131: 1380.83 | F131: 1368.92 | G131: 1357.83 | H131: 1403.83 | I131: 1414.92 | J131: 1426.83 | K131: 1403 | L131: 1380 | M131: 0.49096
A132: 122 | B132: DRREDDY | C132: 2702.25 | D132: 2711.73 | E132: 2680.92 | F132: 2659.58 | G132: 2628.77 | H132: 2733.07 | I132: 2763.88 | J132: 2785.22 | K132: 2742.55 | L132: 2690.4 | M132: 5.49806
A133: 123 | B133: EIDPARRY | C133: 164.75 | D133: 165.07 | E133: 162.18 | F133: 159.62 | G133: 156.73 | H133: 167.63 | I133: 170.52 | J133: 173.08 | K133: 167.95 | L133: 162.5 | M133: 0.83626
A134: 124 | B134: EIHOTEL | C134: 182.85 | D134: 181.60 | E134: 175.30 | F134: 167.75 | G134: 161.45 | H134: 189.15 | I134: 195.45 | J134: 203.00 | K134: 187.9 | L134: 174.05 | M134: 2.11145
A135: 125 | B135: EDELWEISS | C135: 94.9 | D135: 98.28 | E135: 90.82 | F135: 86.73 | G135: 79.27 | H135: 102.37 | I135: 109.83 | J135: 113.92 | K135: 105.75 | L135: 94.2 | M135: 56.33835
A136: 126 | B136: EICHERMOT | C136: 17765.2 | D136: 17710.55 | E136: 17421.10 | F136: 17077.00 | G136: 16787.55 | H136: 18054.65 | I136: 18344.10 | J136: 18688.20 | K136: 18000 | L136: 17366.45 | M136: 1.49957
A137: 127 | B137: ELGIEQUIP | C137: 303.5 | D137: 302.50 | E137: 300.00 | F137: 296.50 | G137: 294.00 | H137: 306.00 | I137: 308.50 | J137: 312.00 | K137: 305 | L137: 299 | M137: 0.40559
A138: 128 | B138: EMAMILTD | C138: 318.6 | D138: 318.90 | E138: 315.70 | F138: 312.80 | G138: 309.60 | H138: 321.80 | I138: 325.00 | J138: 327.90 | K138: 322.1 | L138: 316 | M138: 2.4848
A139: 129 | B139: ENDURANCE | C139: 1012.25 | D139: 1008.75 | E139: 988.50 | F139: 964.75 | G139: 944.50 | H139: 1032.50 | I139: 1052.75 | J139: 1076.50 | K139: 1029 | L139: 985 | M139: 0.15513
A140: 130 | B140: ENGINERSIN | C140: 117.35 | D140: 118.10 | E140: 115.75 | F140: 114.15 | G140: 111.80 | H140: 119.70 | I140: 122.05 | J140: 123.65 | K140: 120.45 | L140: 116.5 | M140: 17.05753
A141: 131 | B141: EQUITAS | C141: 103.8 | D141: 104.13 | E141: 102.27 | F141: 100.73 | G141: 98.87 | H141: 105.67 | I141: 107.53 | J141: 109.07 | K141: 106 | L141: 102.6 | M141: 51.84946
A142: 132 | B142: ERIS | C142: 451.2 | D142: 443.70 | E142: 432.50 | F142: 413.80 | G142: 402.60 | H142: 462.40 | I142: 473.60 | J142: 492.30 | K142: 454.9 | L142: 425 | M142: 0.2232
A143: 133 | B143: ESCORTS | C143: 580.35 | D143: 579.10 | E143: 564.40 | F143: 548.45 | G143: 533.75 | H143: 595.05 | I143: 609.75 | J143: 625.70 | K143: 593.8 | L143: 563.15 | M143: 33.04226
A144: 134 | B144: ESSELPACK | C144: 118.2 | D144: 117.60 | E144: 114.75 | F144: 111.30 | G144: 108.45 | H144: 121.05 | I144: 123.90 | J144: 127.35 | K144: 120.45 | L144: 114.15 | M144: 0.37658
A145: 135 | B145: EXIDEIND | C145: 195.2 | D145: 193.57 | E145: 191.63 | F145: 188.07 | G145: 186.13 | H145: 197.13 | I145: 199.07 | J145: 202.63 | K145: 195.5 | L145: 190 | M145: 17.14322
A146: 136 | B146: FDC | C146: 174.65 | D146: 174.88 | E146: 173.77 | F146: 172.88 | G146: 171.77 | H146: 175.77 | I146: 176.88 | J146: 177.77 | K146: 176 | L146: 174 | M146: 0.22645
A147: 137 | B147: FEDERALBNK | C147: 90.4 | D147: 91.22 | E147: 88.43 | F147: 86.47 | G147: 83.68 | H147: 93.18 | I147: 95.97 | J147: 97.93 | K147: 94 | L147: 89.25 | M147: 176.93994
A148: 138 | B148: FINEORG | C148: 1729.6 | D148: 1725.82 | E148: 1703.78 | F148: 1677.97 | G148: 1655.93 | H148: 1751.63 | I148: 1773.67 | J148: 1799.48 | K148: 1747.85 | L148: 1700 | M148: 0.05995
A149: 139 | B149: FINCABLES | C149: 388.3 | D149: 387.73 | E149: 377.67 | F149: 367.03 | G149: 356.97 | H149: 398.37 | I149: 408.43 | J149: 419.07 | K149: 397.8 | L149: 377.1 | M149: 0.74274
A150: 140 | B150: FINPIPE | C150: 595.95 | D150: 591.00 | E150: 581.00 | F150: 566.05 | G150: 556.05 | H150: 605.95 | I150: 615.95 | J150: 630.90 | K150: 601 | L150: 576.05 | M150: 1.19835
A151: 141 | B151: FSL | C151: 46.95 | D151: 47.02 | E151: 45.88 | F151: 44.82 | G151: 43.68 | H151: 48.08 | I151: 49.22 | J151: 50.28 | K151: 48.15 | L151: 45.95 | M151: 23.76464
A152: 142 | B152: FORTIS | C152: 135.15 | D152: 135.70 | E152: 133.70 | F152: 132.25 | G152: 130.25 | H152: 137.15 | I152: 139.15 | J152: 140.60 | K152: 137.7 | L152: 134.25 | M152: 8.02882
A153: 143 | B153: FCONSUMER | C153: 26.9 | D153: 27.33 | E153: 26.27 | F153: 25.63 | G153: 24.57 | H153: 27.97 | I153: 29.03 | J153: 29.67 | K153: 28.4 | L153: 26.7 | M153: 7.14785
A154: 144 | B154: FLFL | C154: 420.85 | D154: 425.62 | E154: 411.23 | F154: 401.62 | G154: 387.23 | H154: 435.23 | I154: 449.62 | J154: 459.23 | K154: 440 | L154: 416 | M154: 0.15256
A155: 145 | B155: FRETAIL | C155: 380.8 | D155: 380.67 | E155: 372.13 | F155: 363.47 | G155: 354.93 | H155: 389.33 | I155: 397.87 | J155: 406.53 | K155: 389.2 | L155: 372 | M155: 3.89304
A156: 146 | B156: GAIL | C156: 134.5 | D156: 134.05 | E156: 132.85 | F156: 131.20 | G156: 130.00 | H156: 135.70 | I156: 136.90 | J156: 138.55 | K156: 135.25 | L156: 132.4 | M156: 69.29153
A157: 147 | B157: GEPIL | C157: 798.75 | D157: 807.58 | E157: 781.22 | F157: 763.68 | G157: 737.32 | H157: 825.12 | I157: 851.48 | J157: 869.02 | K157: 833.95 | L157: 790.05 | M157: 0.12425
A158: 148 | B158: GET&D | C158: 190.1 | D158: 184.05 | E158: 174.10 | F158: 158.10 | G158: 148.15 | H158: 200.05 | I158: 210.00 | J158: 226.00 | K158: 194 | L158: 168.05 | M158: 1.2249
A159: 149 | B159: GHCL | C159: 210.95 | D159: 212.92 | E159: 204.08 | F159: 197.22 | G159: 188.38 | H159: 219.78 | I159: 228.62 | J159: 235.48 | K159: 221.75 | L159: 206.05 | M159: 0.80397
A160: 150 | B160: GMRINFRA | C160: 17 | D160: 16.95 | E160: 16.70 | F160: 16.40 | G160: 16.15 | H160: 17.25 | I160: 17.50 | J160: 17.80 | K160: 17.2 | L160: 16.65 | M160: 199.43176
A161: 151 | B161: GALAXYSURF | C161: 1457.45 | D161: 1455.82 | E161: 1416.63 | F161: 1375.82 | G161: 1336.63 | H161: 1496.63 | I161: 1535.82 | J161: 1576.63 | K161: 1495 | L161: 1415 | M161: 0.09781
A162: 152 | B162: GDL | C162: 108.3 | D162: 109.03 | E162: 106.77 | F162: 105.23 | G162: 102.97 | H162: 110.57 | I162: 112.83 | J162: 114.37 | K162: 111.3 | L162: 107.5 | M162: 0.71856
A163: 153 | B163: GAYAPROJ | C163: 107.9 | D163: 109.93 | E163: 101.97 | F163: 96.03 | G163: 88.07 | H163: 115.87 | I163: 123.83 | J163: 129.77 | K163: 117.9 | L163: 104 | M163: 17.82425
A164: 154 | B164: GICRE | C164: 219.9 | D164: 217.03 | E164: 208.47 | F164: 197.03 | G164: 188.47 | H164: 228.47 | I164: 237.03 | J164: 248.47 | K164: 225.6 | L164: 205.6 | M164: 2.37798
A165: 155 | B165: GILLETTE | C165: 7099.3 | D165: 7097.75 | E165: 7045.50 | F165: 6991.70 | G165: 6939.45 | H165: 7151.55 | I165: 7203.80 | J165: 7257.60 | K165: 7150 | L165: 7043.95 | M165: 0.12226
A166: 156 | B166: GSKCONS | C166: 8528.9 | D166: 8560.75 | E166: 8470.15 | F166: 8411.40 | G166: 8320.80 | H166: 8619.50 | I166: 8710.10 | J166: 8768.85 | K166: 8651.35 | L166: 8502 | M166: 0.62038
A167: 157 | B167: GLAXO | C167: 1389.45 | D167: 1388.27 | E167: 1371.58 | F167: 1353.72 | G167: 1337.03 | H167: 1406.13 | I167: 1422.82 | J167: 1440.68 | K167: 1404.95 | L167: 1370.4 | M167: 0.35
A168: 158 | B168: GLENMARK | C168: 325.05 | D168: 325.78 | E168: 318.57 | F168: 312.08 | G168: 304.87 | H168: 332.27 | I168: 339.48 | J168: 345.97 | K168: 333 | L168: 319.3 | M168: 16.49372
A169: 159 | B169: GODFRYPHLP | C169: 960.9 | D169: 966.65 | E169: 945.30 | F169: 929.70 | G169: 908.35 | H169: 982.25 | I169: 1003.60 | J169: 1019.20 | K169: 988 | L169: 951.05 | M169: 0.4384
A170: 160 | B170: GODREJAGRO | C170: 477 | D170: 478.88 | E170: 468.22 | F170: 459.43 | G170: 448.77 | H170: 487.67 | I170: 498.33 | J170: 507.12 | K170: 489.55 | L170: 470.1 | M170: 0.19663
A171: 161 | B171: GODREJCP | C171: 687.3 | D171: 688.15 | E171: 679.35 | F171: 671.40 | G171: 662.60 | H171: 696.10 | I171: 704.90 | J171: 712.85 | K171: 696.95 | L171: 680.2 | M171: 10.0457
A172: 162 | B172: GODREJIND | C172: 408.4 | D172: 410.23 | E172: 403.17 | F172: 397.93 | G172: 390.87 | H172: 415.47 | I172: 422.53 | J172: 427.77 | K172: 417.3 | L172: 405 | M172: 1.20227
A173: 163 | B173: GODREJPROP | C173: 1038.7 | D173: 1041.40 | E173: 1020.35 | F173: 1002.00 | G173: 980.95 | H173: 1059.75 | I173: 1080.80 | J173: 1099.15 | K173: 1062.45 | L173: 1023.05 | M173: 1.54733
A174: 164 | B174: GRANULES | C174: 104.7 | D174: 103.63 | E174: 101.27 | F174: 97.83 | G174: 95.47 | H174: 107.07 | I174: 109.43 | J174: 112.87 | K174: 106 | L174: 100.2 | M174: 9.51732
A175: 165 | B175: GRAPHITE | C175: 290.95 | D175: 297.60 | E175: 278.45 | F175: 265.95 | G175: 246.80 | H175: 310.10 | I175: 329.25 | J175: 341.75 | K175: 316.75 | L175: 285.1 | M175: 19.9218
A176: 166 | B176: GRASIM | C176: 730.1 | D176: 725.65 | E176: 712.70 | F176: 695.30 | G176: 682.35 | H176: 743.05 | I176: 756.00 | J176: 773.40 | K176: 738.6 | L176: 708.25 | M176: 17.42195
A177: 167 | B177: GESHIP | C177: 280.2 | D177: 281.68 | E177: 276.47 | F177: 272.73 | G177: 267.52 | H177: 285.42 | I177: 290.63 | J177: 294.37 | K177: 286.9 | L177: 277.95 | M177: 0.38682
A178: 168 | B178: GREAVESCOT | C178: 146.05 | D178: 145.12 | E178: 143.28 | F178: 140.52 | G178: 138.68 | H178: 147.88 | I178: 149.72 | J178: 152.48 | K178: 146.95 | L178: 142.35 | M178: 1.82556
A179: 169 | B179: GRINDWELL | C179: 617.15 | D179: 607.20 | E179: 591.95 | F179: 566.75 | G179: 551.50 | H179: 632.40 | I179: 647.65 | J179: 672.85 | K179: 622.45 | L179: 582 | M179: 0.22621
A180: 170 | B180: GRUH | C180: 269.35 | D180: 269.43 | E180: 267.07 | F180: 264.78 | G180: 262.42 | H180: 271.72 | I180: 274.08 | J180: 276.37 | K180: 271.8 | L180: 267.15 | M180: 9.15514
A181: 171 | B181: GUJALKALI | C181: 455.8 | D181: 460.27 | E181: 440.63 | F181: 425.47 | G181: 405.83 | H181: 475.43 | I181: 495.07 | J181: 510.23 | K181: 479.9 | L181: 445.1 | M181: 0.67473
A182: 172 | B182: GUJGASLTD | C182: 177.3 | D182: 175.05 | E182: 170.20 | F182: 163.10 | G182: 158.25 | H182: 182.15 | I182: 187.00 | J182: 194.10 | K182: 179.9 | L182: 167.95 | M182: 13.2626
A183: 173 | B183: GMDCLTD | C183: 61.25 | D183: 61.75 | E183: 60.25 | F183: 59.25 | G183: 57.75 | H183: 62.75 | I183: 64.25 | J183: 65.25 | K183: 63.25 | L183: 60.75 | M183: 1.31519
A184: 174 | B184: GNFC | C184: 202.4 | D184: 204.33 | E184: 198.07 | F184: 193.73 | G184: 187.47 | H184: 208.67 | I184: 214.93 | J184: 219.27 | K184: 210.6 | L184: 200 | M184: 1.98868
A185: 175 | B185: GPPL | C185: 86.1 | D185: 86.13 | E185: 84.27 | F185: 82.43 | G185: 80.57 | H185: 87.97 | I185: 89.83 | J185: 91.67 | K185: 88 | L185: 84.3 | M185: 0.82558
A186: 176 | B186: GSFC | C186: 77.8 | D186: 78.47 | E186: 76.73 | F186: 75.67 | G186: 73.93 | H186: 79.53 | I186: 81.27 | J186: 82.33 | K186: 80.2 | L186: 77.4 | M186: 2.21841
A187: 177 | B187: GSPL | C187: 216.95 | D187: 217.80 | E187: 215.20 | F187: 213.45 | G187: 210.85 | H187: 219.55 | I187: 222.15 | J187: 223.90 | K187: 220.4 | L187: 216.05 | M187: 4.13451
A188: 178 | B188: GULFOILLUB | C188: 862.5 | D188: 860.13 | E188: 853.42 | F188: 844.33 | G188: 837.62 | H188: 869.22 | I188: 875.93 | J188: 885.02 | K188: 866.85 | L188: 851.05 | M188: 0.0155
A189: 179 | B189: HEG | C189: 953.2 | D189: 968.40 | E189: 919.80 | F189: 886.40 | G189: 837.80 | H189: 1001.80 | I189: 1050.40 | J189: 1083.80 | K189: 1017 | L189: 935 | M189: 7.06656
A190: 180 | B190: HCLTECH | C190: 1080.6 | D190: 1073.38 | E190: 1050.27 | F190: 1019.93 | G190: 996.82 | H190: 1103.72 | I190: 1126.83 | J190: 1157.17 | K190: 1096.5 | L190: 1043.05 | M190: 42.79793
A191: 181 | B191: HDFCAMC | C191: 2801.7 | D191: 2809.28 | E191: 2779.42 | F191: 2757.13 | G191: 2727.27 | H191: 2831.57 | I191: 2861.43 | J191: 2883.72 | K191: 2839.15 | L191: 2787 | M191: 1.90861
A192: 182 | B192: HDFCBANK | C192: 1227.45 | D192: 1227.98 | E192: 1215.97 | F192: 1204.48 | G192: 1192.47 | H192: 1239.47 | I192: 1251.48 | J192: 1262.97 | K192: 1240 | L192: 1216.5 | M192: 91.09229
A193: 183 | B193: HDFCLIFE | C193: 601.15 | D193: 598.38 | E193: 587.77 | F193: 574.38 | G193: 563.77 | H193: 611.77 | I193: 622.38 | J193: 635.77 | K193: 609 | L193: 585 | M193: 55.22478
A194: 184 | B194: HATHWAY | C194: 20.8 | D194: 21.00 | E194: 20.40 | F194: 20.00 | G194: 19.40 | H194: 21.40 | I194: 22.00 | J194: 22.40 | K194: 21.6 | L194: 20.6 | M194: 2.62786
A195: 185 | B195: HATSUN | C195: 626.45 | D195: 627.03 | E195: 615.77 | F195: 605.08 | G195: 593.82 | H195: 637.72 | I195: 648.98 | J195: 659.67 | K195: 638.3 | L195: 616.35 | M195: 0.03165
A196: 186 | B196: HAVELLS | C196: 718.3 | D196: 716.20 | E196: 711.15 | F196: 704.00 | G196: 698.95 | H196: 723.35 | I196: 728.40 | J196: 735.55 | K196: 721.25 | L196: 709.05 | M196: 9.79643
A197: 187 | B197: HEIDELBERG | C197: 188.3 | D197: 190.15 | E197: 185.70 | F197: 183.10 | G197: 178.65 | H197: 192.75 | I197: 197.20 | J197: 199.80 | K197: 194.6 | L197: 187.55 | M197: 1.82416
A198: 188 | B198: HERITGFOOD | C198: 382.65 | D198: 386.22 | E198: 376.43 | F198: 370.22 | G198: 360.43 | H198: 392.43 | I198: 402.22 | J198: 408.43 | K198: 396 | L198: 380 | M198: 0.11675
A199: 189 | B199: HEROMOTOCO | C199: 2704.75 | D199: 2710.57 | E199: 2662.38 | F199: 2620.02 | G199: 2571.83 | H199: 2752.93 | I199: 2801.12 | J199: 2843.48 | K199: 2758.75 | L199: 2668.2 | M199: 8.37786
A200: 190 | B200: HEXAWARE | C200: 380.35 | D200: 380.23 | E200: 375.17 | F200: 369.98 | G200: 364.92 | H200: 385.42 | I200: 390.48 | J200: 395.67 | K200: 385.3 | L200: 375.05 | M200: 16.91175
A201: 191 | B201: HFCL | C201: 18 | D201: 18.27 | E201: 17.53 | F201: 17.07 | G201: 16.33 | H201: 18.73 | I201: 19.47 | J201: 19.93 | K201: 19 | L201: 17.8 | M201: 21.36311
A202: 192 | B202: HSCL | C202: 81 | D202: 81.28 | E202: 78.57 | F202: 76.13 | G202: 73.42 | H202: 83.72 | I202: 86.43 | J202: 88.87 | K202: 84 | L202: 78.85 | M202: 4.40483
A203: 193 | B203: HIMATSEIDE | C203: 143.2 | D203: 143.80 | E203: 140.90 | F203: 138.60 | G203: 135.70 | H203: 146.10 | I203: 149.00 | J203: 151.30 | K203: 146.7 | L203: 141.5 | M203: 0.3324
A204: 194 | B204: HINDALCO | C204: 191.35 | D204: 189.33 | E204: 186.77 | F204: 182.18 | G204: 179.62 | H204: 193.92 | I204: 196.48 | J204: 201.07 | K204: 191.9 | L204: 184.75 | M204: 65.21755
A205: 195 | B205: HAL | C205: 706.3 | D205: 716.43 | E205: 689.87 | F205: 673.43 | G205: 646.87 | H205: 732.87 | I205: 759.43 | J205: 775.87 | K205: 743 | L205: 700 | M205: 0.11992
A206: 196 | B206: HINDCOPPER | C206: 35.2 | D206: 35.60 | E206: 34.40 | F206: 33.60 | G206: 32.40 | H206: 36.40 | I206: 37.60 | J206: 38.40 | K206: 36.8 | L206: 34.8 | M206: 6.31942
... 320 more rows

Sheet Bulk Deals
E6: Back To Main Page
A7: Subject : | B7: BULK DEAL | D7: =Main!B10 -> 2019-10-01
A9: Date | B9: Scrip code | C9: Scrip Name | D9: Client Name | E9: Buy / Sell | F9: Quantity Traded | G9: Trade Price / Wt.Avg.trade price | H9: Exchange
A10: 2019-09-30 | B10: 542580 | C10: AARTECH | D10: MURALIDHAR TIWARI | E10: BUY | F10: 36,000 | G10: 36.40 | H10: BSE
A11: 2019-09-30 | B11: 542580 | C11: AARTECH | D11: AMRITA TIWARI | E11: BUY | F11: 36,000 | G11: 36.40 | H11: BSE
A12: 2019-09-30 | B12: 542580 | C12: AARTECH | D12: RAKHI JAIN | E12: BUY | F12: 36,000 | G12: 36.4 | H12: BSE
A13: 2019-09-30 | B13: 542580 | C13: AARTECH | D13: ANJU RAMESHLAL MAKHIJA | E13: BUY | F13: 36,000 | G13: 36.4 | H13: BSE
A14: 2019-09-30 | B14: 542580 | C14: AARTECH | D14: AKHILESH SHUKLA | E14: SELL | F14: 144,000 | G14: 36.4 | H14: BSE
A15: 2019-09-30 | B15: 539570 | C15: ACEWIN | D15: SIVAKUMARAN | E15: BUY | F15: 67,200 | G15: 5.53 | H15: BSE
A16: 2019-09-30 | B16: 542721 | C16: ARL | D16: SAVJANI ENTERPRISE | E16: BUY | F16: 256,000 | G16: 32.46 | H16: BSE
A17: 2019-09-30 | B17: 542721 | C17: ARL | D17: AMRAPALI FINCAP PVT LTD | E17: SELL | F17: 260,000 | G17: 32.46 | H17: BSE
A18: 2019-09-30 | B18: 530355 | C18: ASIANOI | D18: ASIAN OILFIELD SERVICES LIMITED EMPLOYEES WELFARE TRUST | E18: BUY | F18: 200,744 | G18: 78.18 | H18: BSE
A19: 2019-09-30 | B19: 517421 | C19: BUTTERFLY | D19: RELIANCE ALTERNATIVE INVESTMENTS FUND | E19: SELL | F19: 964,800 | G19: 145.65 | H19: BSE
A20: 2019-09-30 | B20: 542216 | C20: DALBHARAT | D20: KRITAGYATA TRUST | E20: BUY | F20: 1,951,062 | G20: 816 | H20: BSE
A21: 2019-09-30 | B21: 542216 | C21: DALBHARAT | D21: DBEL EMPLOYEES WELFARE TRUST | E21: SELL | F21: 1,951,062 | G21: 816.00 | H21: BSE
A22: 2019-09-30 | B22: 538432 | C22: DIVINUS | D22: NIKHIL GULABCHAND SHAH | E22: BUY | F22: 30,000 | G22: 26.20 | H22: BSE
A23: 2019-09-30 | B23: 538432 | C23: DIVINUS | D23: MANOJKUMAR GUNVANTRAI SOMANI | E23: BUY | F23: 23,600 | G23: 26.11 | H23: BSE
A24: 2019-09-30 | B24: 538432 | C24: DIVINUS | D24: MANOJKUMAR GUNVANTRAI SOMANI | E24: SELL | F24: 38,156 | G24: 26.20 | H24: BSE
A25: 2019-09-30 | B25: 532015 | C25: GRAVITY | D25: SNEHA SANJEEV LUNKAD | E25: BUY | F25: 77,510 | G25: 1.09 | H25: BSE
A26: 2019-09-30 | B26: 532015 | C26: GRAVITY | D26: HEENA ATUL PAREKH . | E26: SELL | F26: 50,000 | G26: 1.10 | H26: BSE
A27: 2019-09-30 | B27: 538765 | C27: JSHL | D27: MUNAWAR JAHAN | E27: BUY | F27: 45,000 | G27: 11.24 | H27: BSE
A28: 2019-09-30 | B28: 538765 | C28: JSHL | D28: MUNAWAR JAHAN | E28: SELL | F28: 30,000 | G28: 11.26 | H28: BSE
A29: 2019-09-30 | B29: 539679 | C29: KAPILRAJ | D29: RAMNATH SHARMA | E29: BUY | F29: 25,009 | G29: 6.99 | H29: BSE
A30: 2019-09-30 | B30: 539679 | C30: KAPILRAJ | D30: RAMNATH SHARMA | E30: SELL | F30: 30,480 | G30: 6.74 | H30: BSE
A31: 2019-09-30 | B31: 531648 | C31: MAHAVIRIND | D31: DINBANDHU KUMAR | E31: SELL | F31: 110,117 | G31: 0.66 | H31: BSE
A32: 2019-09-30 | B32: 526235 | C32: MERCATOR | D32: ARCADIA SHARE & STOCK BROKERS PVT. LTD | E32: BUY | F32: 18,800,000 | G32: 1.1 | H32: BSE
A33: 2019-09-30 | B33: 526235 | C33: MERCATOR | D33: MULTIPLIER SHARE & STOCK ADVISORS PRIVATE LIMITED | E33: BUY | F33: 2,000,000 | G33: 1.1 | H33: BSE
A34: 2019-09-30 | B34: 526235 | C34: MERCATOR | D34: MULTIPLIER SHARE & STOCK ADVISORS PRIVATE LIMITED | E34: SELL | F34: 1,000 | G34: 1.1 | H34: BSE
A35: 2019-09-30 | B35: 526235 | C35: MERCATOR | D35: TANISH TRADEFIN LLP | E35: BUY | F35: 2,400,000 | G35: 1.1 | H35: BSE
A36: 2019-09-30 | B36: 526235 | C36: MERCATOR | D36: TANISH TRADEFIN LLP | E36: SELL | F36: 198,048 | G36: 1.1 | H36: BSE
A37: 2019-09-30 | B37: 526235 | C37: MERCATOR | D37: GOVERNMENT OF SINGAPORE | E37: SELL | F37: 17,336,959 | G37: 1.1 | H37: BSE
A38: 2019-09-30 | B38: 526235 | C38: MERCATOR | D38: MONETARY AUTHORITY OF SINGAPORE | E38: SELL | F38: 6,172,475 | G38: 1.1 | H38: BSE
A39: 2019-09-30 | B39: 526235 | C39: MERCATOR | D39: MONETARY AUTHORITY OF SINGAPORE | E39: SELL | F39: 23,509,434 | G39: 1.1 | H39: BSE
A40: 2019-09-30 | B40: 542771 | C40: NOVATEOR | D40: REKHA PARIMAL PATWA | E40: BUY | F40: 156,000 | G40: 32 | H40: BSE
A41: 2019-09-30 | B41: 542771 | C41: NOVATEOR | D41: REKHA PARIMAL PATWA | E41: SELL | F41: 6,000 | G41: 32.5 | H41: BSE
A42: 2019-09-30 | B42: 542771 | C42: NOVATEOR | D42: ABHISHEK BHIKHABHAI PATEL | E42: SELL | F42: 156,000 | G42: 32 | H42: BSE
A43: 2019-09-30 | B43: 531437 | C43: PWASML | D43: MUKESH GOYAL | E43: SELL | F43: 101,768 | G43: 20 | H43: BSE
A44: 2019-09-30 | B44: 539814 | C44: RADHEY | D44: SHEBOO ALI AKARAM SHAIKH | E44: SELL | F44: 35,000 | G44: 16.35 | H44: BSE
A45: 2019-09-30 | B45: 539814 | C45: RADHEY | D45: VISHAL JAYANTILAL SHAH | E45: SELL | F45: 30,000 | G45: 16.5 | H45: BSE
A46: 2019-09-30 | B46: 517500 | C46: ROTO | D46: SIDHARTH RAMESH AJWANI | E46: SELL | F46: 91,514 | G46: 120.16 | H46: BSE
A47: 2019-09-30 | B47: 532841 | C47: SAHYADRI | D47: VIKAS ARORA | E47: BUY | F47: 52,000 | G47: 148 | H47: BSE
A48: 2019-09-30 | B48: 532841 | C48: SAHYADRI | D48: DEEPSHIKHA ARORA . | E48: SELL | F48: 52,000 | G48: 148.02 | H48: BSE
A49: 2019-09-30 | B49: 542725 | C49: SBC | D49: LAKSHMISHREE CAPITAL SERVICES PRIVATE LIMITED | E49: BUY | F49: 66,000 | G49: 24.15 | H49: BSE
A50: 2019-09-30 | B50: 542725 | C50: SBC | D50: RIYAJ KHAN | E50: SELL | F50: 66,000 | G50: 24.2 | H50: BSE
A51: 2019-09-30 | B51: 542725 | C51: SBC | D51: SWETA AGRAWAL | E51: BUY | F51: 12,000 | G51: 24.05 | H51: BSE
A52: 2019-09-30 | B52: 542725 | C52: SBC | D52: SWETA AGRAWAL | E52: SELL | F52: 60,000 | G52: 24.14 | H52: BSE
A53: 2019-09-30 | B53: 539026 | C53: SSPNFIN | D53: VISHAL SURENDRA PARMAR | E53: BUY | F53: 12,000 | G53: 64 | H53: BSE
A54: 2019-09-30 | B54: 539026 | C54: SSPNFIN | D54: DINANATH YADAV | E54: SELL | F54: 12,000 | G54: 64 | H54: BSE
A55: 2019-09-30 | B55: 530677 | C55: SUPREME | D55: KAMAL KUMAR JALAN SEC. PVT. LTD | E55: BUY | F55: 499,387 | G55: 7.57 | H55: BSE
A56: 2019-09-30 | B56: 530677 | C56: SUPREME | D56: ORIENTAL BANK OF COMMERCE | E56: SELL | F56: 500,000 | G56: 7.57 | H56: BSE
A57: 2019-09-30 | B57: 500483 | C57: TATACOMM | D57: REKHA RAKESH JHUNJHUNWALA | E57: BUY | F57: 1,965,000 | G57: 370 | H57: BSE
A58: 2019-09-30 | B58: 500483 | C58: TATACOMM | D58: AMANSA HOLDING PRIVATE LTD. | E58: SELL | F58: 1,852,638 | G58: 370 | H58: BSE
A59: 2019-09-30 | B59: 533427 | C59: VMS | D59: FREE INDIA ASSURANCE SERVICES LIMITED | E59: BUY | F59: 295,000 | G59: 18 | H59: BSE
A60: 2019-09-30 | B60: 533427 | C60: VMS | D60: ANIL MANSUKHLAL KOTHARI | E60: SELL | F60: 295,000 | G60: 18 | H60: BSE
A61: 2019-09-30 | B61: 532757 | C61: VOLTAMP | D61: KUNJAL INVESTMENTS PRIVATE LTD | E61: BUY | F61: 172,250 | G61: 1174 | H61: BSE
A62: 2019-09-30 | B62: 532757 | C62: VOLTAMP | D62: JWALIN KUNJAL PATEL . | E62: SELL | F62: 86,060 | G62: 1174 | H62: BSE
A63: 2019-09-30 | B63: 532757 | C63: VOLTAMP | D63: KUNJAL LALITKUMAR PATEL HUF | E63: SELL | F63: 86,190 | G63: 1174 | H63: BSE
A64: 2019-09-30 | B64: GAYAPROJ | C64: Gayatri Projects Ltd | D64: BNP PARIBAS ARBITRAGE | E64: BUY | F64: 1000000 | G64: 108 | H64: NSE
A65: 2019-09-30 | B65: IBULHSGFIN | C65: Indiabulls Hsg Fin Ltd | D65: CENTILLION RESEARCH INDIA LLP | E65: BUY | F65: 3876034 | G65: 284.6 | H65: NSE
A66: 2019-09-30 | B66: IBULHSGFIN | C66: Indiabulls Hsg Fin Ltd | D66: TOWER RESEARCH CAPITAL MARKETS INDIA PRIVATE LIMITED | E66: BUY | F66: 2880097 | G66: 299.2 | H66: NSE
A67: 2019-09-30 | B67: IBULHSGFIN | C67: Indiabulls Hsg Fin Ltd | D67: CROSSLAND TRADING CO | E67: BUY | F67: 5671683 | G67: 282.03 | H67: NSE
A68: 2019-09-30 | B68: IBULHSGFIN | C68: Indiabulls Hsg Fin Ltd | D68: QE SECURITIES | E68: BUY | F68: 2349490 | G68: 294.68 | H68: NSE
A69: 2019-09-30 | B69: IBULHSGFIN | C69: Indiabulls Hsg Fin Ltd | D69: PLUTUS RESEARCH PRIVATE LIMITED | E69: BUY | F69: 2496105 | G69: 282.91 | H69: NSE
A70: 2019-09-30 | B70: IBULHSGFIN | C70: Indiabulls Hsg Fin Ltd | D70: PURITY TRADEMAX LLP | E70: BUY | F70: 2172497 | G70: 276.61 | H70: NSE
A71: 2019-09-30 | B71: MANINDS | C71: Man Industries (I) Ltd | D71: GROVSNOR INVESTMENT FUND LIMITED | E71: BUY | F71: 594559 | G71: 41 | H71: NSE
A72: 2019-09-30 | B72: NCC | C72: NCC Limited | D72: TOWER RESEARCH CAPITAL MARKETS INDIA PRIVATE LIMITED | E72: BUY | F72: 3392305 | G72: 55.76 | H72: NSE
A73: 2019-09-30 | B73: ORIENTABRA | C73: Orient Abrasives Limited | D73: SHAH MANAN CHETAN | E73: BUY | F73: 1401602 | G73: 17.52 | H73: NSE
A74: 2019-09-30 | B74: PENINLAND | C74: Peninsula Land Limited | D74: ANJALI J MODY TRUST | E74: BUY | F74: 1485000 | G74: 4.89 | H74: NSE
A75: 2019-09-30 | B75: PENINLAND | C75: Peninsula Land Limited | D75: AARTI J MODY TRUST | E75: BUY | F75: 1481655 | G75: 4.89 | H75: NSE
A76: 2019-09-30 | B76: PENINLAND | C76: Peninsula Land Limited | D76: ADITI J MODY TRUST | E76: BUY | F76: 1485000 | G76: 4.89 | H76: NSE
A77: 2019-09-30 | B77: SANCO | C77: Sanco Industries Ltd. | D77: SUNIL GIRDHARILAL RAHEJA | E77: BUY | F77: 178622 | G77: 15.75 | H77: NSE
A78: 2019-09-30 | B78: WHEELS | C78: Wheels India Ltd | D78: ICICI PRUDENTIAL MUTUAL FUND ICICI PRUDENTIAL MULTI-ASSET FUND | E78: BUY | F78: 181200 | G78: 552 | H78: NSE
A79: 2019-09-30 | B79: WHEELS | C79: Wheels India Ltd | D79: SUNDARAM FINANCE HOLDINGS LIMITED | E79: BUY | F79: 601614 | G79: 552 | H79: NSE
A80: 2019-09-30 | B80: WHEELS | C80: Wheels India Ltd | D80: ICICI PRUDENTIAL MUTUAL FUND A/C ICICI PRUDENTIAL BALANCED ADVANTAGE FUND - WEALTH OPTIMIZER-BAF | E80: BUY | F80: 181200 | G80: 552 | H80: NSE
A81: 2019-09-30 | B81: WHEELS | C81: Wheels India Ltd | D81: NIVEDITA RAM | E81: BUY | F81: 177600 | G81: 552 | H81: NSE
A82: 2019-09-30 | B82: WHEELS | C82: Wheels India Ltd | D82: ICICI PRUDENTIAL EQUITY & DEBT FUND | E82: BUY | F82: 480200 | G82: 552 | H82: NSE
A83: 2019-09-30 | B83: WHEELS | C83: Wheels India Ltd | D83: IDFC STERLING VALUE FUND | E83: BUY | F83: 543000 | G83: 552 | H83: NSE
A84: 2019-09-30 | B84: YESBANK | C84: Yes Bank Limited | D84: TOWER RESEARCH CAPITAL MARKETS INDIA PRIVATE LIMITED | E84: BUY | F84: 54516245 | G84: 43.53 | H84: NSE
A85: 2019-09-30 | B85: YESBANK | C85: Yes Bank Limited | D85: CROSSLAND TRADING CO | E85: BUY | F85: 14432241 | G85: 43.34 | H85: NSE
A86: 2019-09-30 | B86: CKPLEISURE | C86: CKP Leisure Limited | D86: ARYAMAN CAPITAL MARKETS LIMITED | E86: SELL | F86: 100000 | G86: 5 | H86: NSE
A87: 2019-09-30 | B87: IBULHSGFIN | C87: Indiabulls Hsg Fin Ltd | D87: CENTILLION RESEARCH INDIA LLP | E87: SELL | F87: 3876034 | G87: 284.69 | H87: NSE
A88: 2019-09-30 | B88: IBULHSGFIN | C88: Indiabulls Hsg Fin Ltd | D88: CROSSLAND TRADING CO | E88: SELL | F88: 5700818 | G88: 282.05 | H88: NSE
A89: 2019-09-30 | B89: IBULHSGFIN | C89: Indiabulls Hsg Fin Ltd | D89: PLUTUS RESEARCH PRIVATE LIMITED | E89: SELL | F89: 2496105 | G89: 283.01 | H89: NSE
A90: 2019-09-30 | B90: IBULHSGFIN | C90: Indiabulls Hsg Fin Ltd | D90: PURITY TRADEMAX LLP | E90: SELL | F90: 2172497 | G90: 277.11 | H90: NSE
A91: 2019-09-30 | B91: IBULHSGFIN | C91: Indiabulls Hsg Fin Ltd | D91: TOWER RESEARCH CAPITAL MARKETS INDIA PRIVATE LIMITED | E91: SELL | F91: 2880097 | G91: 299.2 | H91: NSE
A92: 2019-09-30 | B92: IBULHSGFIN | C92: Indiabulls Hsg Fin Ltd | D92: QE SECURITIES | E92: SELL | F92: 2303921 | G92: 294.17 | H92: NSE
A93: 2019-09-30 | B93: INFIBEAM | C93: Infibeam Avenues Limited | D93: INFINITY DRIVE PRIVATE LIMITED | E93: SELL | F93: 3600000 | G93: 40.36 | H93: NSE
A94: 2019-09-30 | B94: MANINDS | C94: Man Industries (I) Ltd | D94: KOBE STEEL LIMITED | E94: SELL | F94: 618181 | G94: 41.04 | H94: NSE
A95: 2019-09-30 | B95: NATHBIOGEN | C95: Nath Bio-Genes (I) Ltd | D95: KAVI GLOBAL OPPORTUNITY MASTER FUND LP | E95: SELL | F95: 110000 | G95: 352.01 | H95: NSE
A96: 2019-09-30 | B96: NCC | C96: NCC Limited | D96: TOWER RESEARCH CAPITAL MARKETS INDIA PRIVATE LIMITED | E96: SELL | F96: 3392305 | G96: 55.74 | H96: NSE
A97: 2019-09-30 | B97: ORIENTABRA | C97: Orient Abrasives Limited | D97: BOMBAY MINERALS LIMITED | E97: SELL | F97: 1400000 | G97: 17.52 | H97: NSE
A98: 2019-09-30 | B98: PENINLAND | C98: Peninsula Land Limited | D98: PENINSULA LAND LIMITED EMPLOYEES STOCK OPTION SCHEME | E98: SELL | F98: 3411307 | G98: 4.89 | H98: NSE
A99: 2019-09-30 | B99: RUCHISOYA | C99: Ruchi Soya Inds Ltd. | D99: SOYUMM MARKETING PVT LTD | E99: SELL | F99: 3089921 | G99: 3.5 | H99: NSE
A100: 2019-09-30 | B100: SANCO | C100: Sanco Industries Ltd. | D100: RESOURCE OPZIONE CONSULTANCY PRIVATE LIMITED | E100: SELL | F100: 132000 | G100: 15.75 | H100: NSE
A101: 2019-09-30 | B101: WHEELS | C101: Wheels India Ltd | D101: TITAN EUROPE LIMITED | E101: SELL | F101: 1994717 | G101: 552 | H101: NSE
A102: 2019-09-30 | B102: WHEELS | C102: Wheels India Ltd | D102: TITAN EUROPE LIMITED | E102: SELL | F102: 513059 | G102: 552.11 | H102: NSE
A103: 2019-09-30 | B103: YESBANK | C103: Yes Bank Limited | D103: TOWER RESEARCH CAPITAL MARKETS INDIA PRIVATE LIMITED | E103: SELL | F103: 54516245 | G103: 43.57 | H103: NSE
A104: 2019-09-30 | B104: YESBANK | C104: Yes Bank Limited | D104: CROSSLAND TRADING CO | E104: SELL | F104: 14436383 | G104: 43.37 | H104: NSE

Sheet Call Tracker (Equity & F&O)
M5: Back To Main Page
A6: Retail Research Technical Calls & Fundamental Performance Report for the month of September-2019
M7: =Main!B10 -> 2019-10-01
B8: Positional Call
A9: Sr.no | B9: Date | D9: Company | E9: Rec | F9: Rec Price | G9: Stop Loss*** | H9: Call Closed At | I9: Target | J9: Remark | K9: Profit / Loss per Share | L9: Gain / Loss % | M9: Status | N9: Closed Date | O9: NSE Closed Price
A10: 1 | B10: 2019-08-01 | D10: HDFCBANK | E10: Buy{} | F10: 1105 | G10: =2130/2 -> 1065 | H10: 1155 | I10: =2350/2 -> 1175 | J10: Profit of Rs.50/- | K10: =H10-F10 -> 50 | L10: =K10/F10 -> 4.52% | M10: Successful | N10: 2019-09-20 | R10: H
A11: 2 | B11: 2019-08-02 | D11: LT | E11: Buy{} | F11: 1350 | G11: 1270 | H11: 1485 | I11: 1500 | J11: Profit of Rs.135/- | K11: 135 | L11: 10.00% | M11: Successful | N11: 2019-09-23 | R11: H
A12: 3 | B12: 2019-08-09 | D12: TATACHEM | E12: Buy | F12: 566 | G12: 534 | H12: 583.5 | I12: 620-640 | J12: Profit of Rs.17.50/- | K12: =H12-F12 -> 17.5 | L12: =K12/F12 -> 3.09% | M12: Successful | N12: 2019-09-05 | R12: H
A13: 4 | B13: 2019-08-19 | D13: TATAELXSI | E13: Buy{} | F13: 635 | G13: 597 | H13: 681.5 | I13: 700-720 | J13: Profit of Rs.46.50/- | K13: =H13-F13 -> 46.5 | L13: =K13/F13 -> 7.32% | M13: Successful | N13: 2019-09-24 | R13: R
A14: 5 | B14: 2019-08-23 | D14: IOC | E14: Buy{} | F14: 122.5 | G14: 114.4 | H14: 122.75 | I14: 135 | J14: Neutral | K14: =H14-F14 -> 0.25 | L14: =K14/F14 -> 0.20% | M14: Neutral | N14: 2019-09-03 | R14: H
A15: 6 | B15: 2019-08-30 | D15: BIOCON | E15: Buy{} | F15: 229.5 | G15: 214.3 | H15: 237 | I15: 255-260 | J15: Part Profit of Rs.7.5/- | K15: =H15-F15 -> 7.5 | L15: =K15/F15 -> 3.27% | M15: Successful | N15: 2019-08-30 | O15: =VLOOKUP(D15,Sheet2!A38:M1677,6,0) -> 222.95 | R15: R
A16: 7 | B16: 2019-09-03 | D16: POWERGRID | E16: Buy{} | F16: 198 | G16: 186 | H16: 208.5 | I16: 220-224 | J16: Profit of Rs.10.5/- | K16: 10.5 | L16: 5.30% | M16: Successful | N16: 2019-09-20 | R16: R
A17: 8 | B17: 2019-09-04 | D17: JUSTDIAL | E17: Buy{} | F17: 709.5 | G17: 673 | H17: 703.75 | I17: 775-785 | J17: Neutral | K17: =H17-F17 -> -5.75 | L17: =K17/F17 -> -0.81% | M17: Neutral | N17: 2019-09-20 | R17: R
A18: 9 | B18: 2019-09-09 | D18: TATAGLOBAL | E18: Buy | F18: 266 | G18: 256 | H18: 255 | I18: 281-285 | J18: Loss of Rs.11/- | K18: -11 | L18: -4.14% | M18: Unsuccessful | N18: 2019-09-18 | R18: R
A19: 10 | B19: 2019-09-09 | D19: TORNTPHARM | E19: Sell | F19: 1705 | G19: 1808 | H19: 1647.5 | I19: 1560-1540 | J19: Part Profit of Rs.57.5/- | K19: =F19-H19 -> 57.5 | L19: 3.37% | M19: Successful | N19: 2019-09-30 | O19: =VLOOKUP(D19,Sheet2!A34:M1673,6,0) -> 1667.4 | R19: R
A20: 11 | B20: 2019-09-11 | D20: LICHSGFIN | E20: Buy{} | F20: 400.5 | G20: 379 | H20: 431 | I20: 440-450 | J20: Profit of Rs.30.50/- | K20: =H20-F20 -> 30.5 | L20: =K20/F20 -> 7.62% | M20: Successful | N20: 2019-09-23 | R20: H
A21: 12 | B21: 2019-09-17 | D21: IDFC | E21: Buy{} | F21: 34.7 | G21: 32.7 | H21: 36.45 | I21: 38-38.50 | J21: Profit of Rs.1.75/- | K21: 1.75 | L21: 5.04% | M21: Successful | N21: 2019-09-20 | R21: R
A22: 13 | B22: 2019-09-18 | D22: BAJFINANCE | E22: Buy | F22: 3450 | G22: 3308 | H22: 3300 | I22: 3720-3750 | J22: Loss of Rs.150/- | K22: =H22-F22 -> -150 | L22: =K22/F22 -> -4.35% | M22: Unsuccessful | N22: 2019-09-20 | R22: R
A23: 14 | B23: 2019-09-18 | D23: APOLLOHOSP | E23: Buy | F23: 1417.5 | G23: 1348 | H23: 1475 | I23: 1550-1580 | J23: Profit of Rs.57.5/- | K23: 57.5 | L23: 4.06% | M23: Successful | N23: 2019-09-20 | R23: R
A24: 15 | B24: 2019-09-23 | D24: HEIDELBERG | E24: Buy | F24: 187 | G24: 175 | H24: 197.5 | I24: 210-220 | J24: Profit of Rs.10.5/- | K24: =H24-F24 -> 10.5 | L24: =K24/F24 -> 5.61% | M24: Successful | N24: 2019-09-23 | R24: H
A25: 16 | B25: 2019-09-24 | D25: DALBHARAT | E25: Buy | F25: 825 | G25: 777 | H25: 872.5 | I25: 920-950 | J25: Profit of Rs.47.50/- | K25: 47.5 | L25: 5.76% | M25: Successful | N25: 2019-09-30 | R25: H
A26: 17 | B26: 2019-09-25 | D26: AXISBANK | E26: Buy | F26: 690-700 | G26: 628 | I26: 800-820 | J26: Open | O26: =VLOOKUP(D26,Sheet2!A41:M1680,6,0) -> 685 | R26: H
A27: 18 | B27: 2019-09-26 | D27: CHENNPETRO | E27: Buy | F27: 167.5 | G27: 157.7 | H27: 175.5 | I27: 183-186 | J27: Profit of Rs.8/- | K27: =H27-F27 -> 8 | L27: =K27/F27 -> 4.78% | M27: Successful | N27: 2019-09-30 | R27: R
A28: 19 | B28: 2019-09-26 | D28: HDFC | E28: Buy | F28: 2065-2075 | G28: 1940 | I28: 2250-2300 | J28: Open | O28: =VLOOKUP(D28,Sheet2!A42:M1681,6,0) -> 1977.05 | R28: H
A29: 20 | B29: 2019-09-26 | D29: BANKBARODA | E29: Buy | F29: 95.50.96.50 | G29: 89 | I29: 110-114 | J29: Open | O29: =VLOOKUP(D29,Sheet2!A43:M1682,6,0) -> 93.05 | R29: H
A30: 21 | B30: 2019-09-30 | D30: KALPATPOWR | E30: Buy | F30: 467 | G30: 438 | H30: 492.5 | I30: 530-550 | J30: Profit of Rs.25.5/- | K30: =H30-F30 -> 25.5 | L30: =K30/F30 -> 5.46% | M30: Successful | N30: 2019-09-30 | R30: H
A31: 22 | B31: 2019-09-30 | D31: BPCL | E31: Sell | F31: 473-477 | G31: 510 | I31: 420-410 | J31: Open | O31: =VLOOKUP(D31,Sheet2!A45:M1684,6,0) -> 470.1 | R31: H
A34: CLBS = Closing Basis ***
A35: Dividend adjusted <> | F35: Reinitiated $
A36: Part book {} | F36: Revised stoploss #
B38: Momentum Call
A39: Sr.no | B39: Date | D39: Company | E39: Rec | F39: Rec Price | G39: Stop Loss | H39: Call Closed At | I39: Target | J39: Remark | K39: Profit / Loss per Share/Lot | L39: Gain / Loss % | M39: Gain / Loss per Lot | N39: Lot | O39: Status | P39: Closed Date
A40: 1 | B40: 2019-08-30 | D40: INFY | E40: Sell | F40: 805 | G40: 822 | H40: 827.5 | I40: 760 | J40: Loss of Rs.22.5/- | K40: =F40-H40 -> -22.5 | L40: =K40/F40 -> -2.80% | O40: Unsuccessful | P40: 2019-09-05 | R40: H
A41: 2 | B41: 2019-09-03 | D41: CONCOR SEP FUT | E41: Buy | F41: 498 | G41: 488 | H41: 503 | I41: 515 | J41: Profit of Rs.5/- | K41: =H41-F41 -> 5 | M41: =N41*K41 -> 7815 | N41: 1563 | O41: Successful | P41: 2019-09-03 | R41: N
A42: 3 | B42: 2019-09-03 | D42: DABUR | E42: Sell | F42: 451 | G42: 464 | H42: 446 | I42: 435-430 | J42: Profit of Rs.5/- | K42: =F42-H42 -> 5 | L42: =K42/F42 -> 1.11% | O42: Successful | P42: 2019-09-03 | R42: H
A43: 4 | B43: 2019-09-03 | D43: NIFTY SEP FUT | E43: Buy | F43: 10845 | G43: 10740 | H43: 10905 | I43: 10980-11000 | J43: Profit of Rs.60/- | K43: =H43-F43 -> 60 | M43: =N43*K43 -> 4500 | N43: 75 | O43: Successful | P43: 2019-09-04 | R43: R
A44: 5 | B44: 2019-09-03 | D44: BANKNIFTY SEP FUT | E44: Buy | F44: 26870 | G44: 26580 | H44: 27070 | I44: 27000-27100 | J44: Profit of Rs.200/- | K44: 200 | M44: =N44*K44 -> 4000 | N44: 20 | O44: Successful | P44: 2019-09-04 | R44: R
A45: 6 | B45: 2019-09-04 | D45: HDFCBANK SEP FUT | E45: Buy | F45: 2210 | G45: 2167 | H45: 2242.5 | I45: 2270 | J45: Profit of Rs.32.50/- | K45: 32.5 | M45: 8125 | N45: 250 | O45: Successful | P45: 2019-09-04 | R45: R
A46: 7 | B46: 2019-09-04 | D46: BANKBARODA | E46: Buy | F46: 92 | G46: 88.7 | H46: 93.7 | I46: 96-98 | J46: Profit of Rs.1.70/- | K46: 1.7 | L46: =K46/F46 -> 1.85% | O46: Successful | P46: 2019-09-04 | R46: R
A47: 8 | B47: 2019-09-04 | D47: ICICIBANK SEP FUT | E47: Buy | F47: 396 | G47: 386 | H47: 401.5 | I47: 410 | J47: Profit of Rs.5.50/- | K47: 5.5 | M47: =N47*K47 -> 7562.5 | N47: 1375 | O47: Successful | P47: 2019-09-04 | R47: N
A48: 9 | B48: 2019-09-04 | D48: CONCOR SEP FUT | E48: Buy | F48: 493 | G48: 484 | H48: 498 | I48: 510 | J48: Profit of Rs.5/- | K48: 5 | M48: =N48*K48 -> 7815 | N48: 1563 | O48: Successful | P48: 2019-09-04 | R48: N
A49: 10 | B49: 2019-09-04 | D49: DABUR SEP FUT | E49: Buy | F49: 436.5 | G49: 426 | H49: 444 | I49: 455 | J49: Profit of Rs.7.5/- | K49: 7.5 | M49: =N49*K49 -> 9375 | N49: 1250 | O49: Successful | P49: 2019-09-04 | R49: N
A50: 11 | B50: 2019-09-05 | D50: COLPAL SEP FUT | E50: Buy | F50: 1245 | G50: 1228 | H50: 1256 | I50: 1270 | J50: Profit of Rs.11/- | K50: 11 | M50: 7700 | N50: 700 | O50: Successful | P50: 2019-09-09 | R50: N
A51: 12 | B51: 2019-09-05 | D51: SBIN | E51: Buy | F51: 272.5 | G51: 264 | H51: 278 | I51: 285-290 | J51: Profit of Rs.5.5/- | K51: =H51-F51 -> 5.5 | L51: =K51/F51 -> 2.02% | O51: Successful | P51: 2019-09-09 | R51: H
A52: 13 | B52: 2019-09-05 | D52: PFC | E52: Buy | F52: 106.5 | G52: 104 | H52: 104 | I52: 112-114 | J52: Loss of Rs.2.5/- | K52: =H52-F52 -> -2.5 | L52: =K52/F52 -> -2.35% | O52: Unsuccessful | P52: 2019-09-05 | R52: H
A53: 14 | B53: 2019-09-05 | D53: M&M SEP FUT | E53: Buy | F53: 517 | G53: 505 | H53: 524 | I53: 535 | J53: Profit of Rs.7/- | K53: =H53-F53 -> 7 | M53: =N53*K53 -> 7000 | N53: 1000 | O53: Successful | P53: 2019-09-06 | R53: N
A54: 15 | B54: 2019-09-05 | D54: POWERGRID SEP FUT | E54: Buy | F54: 198.5 | G54: 195 | H54: 200.5 | I54: 206 | J54: Profit of Rs.2/- | K54: =H54-F54 -> 2 | M54: =N54*K54 -> 8000 | N54: 4000 | O54: Successful | P54: 2019-09-05 | R54: N
A55: 16 | B55: 2019-09-05 | D55: YESBANK | E55: Buy | F55: 61.2 | G55: 59.7 | H55: 63 | I55: 65 | J55: Profit of Rs.1.80/- | K55: 1.8 | L55: =K55/F55 -> 2.94% | O55: Successful | P55: 2019-09-09 | R55: R
A56: 17 | B56: 2019-09-06 | D56: HDFC | E56: Buy | F56: 2027.5 | G56: 1980 | H56: 2068 | I56: 2100-2120 | J56: Profit of Rs.40.5/- | K56: 40.5 | L56: 2.00% | O56: Successful | P56: 2019-09-09 | R56: H
A57: 18 | B57: 2019-09-06 | D57: BATAINDIA SEP FUT | E57: Buy | F57: 1531 | G57: 1510 | H57: 1548.5 | I57: 1560-1570 | J57: Profit of Rs.17.5/- | K57: =H57-F57 -> 17.5 | M57: =N57*K57 -> 9625 | N57: 550 | O57: Successful | P57: 2019-09-09 | R57: N
A58: 19 | B58: 2019-09-06 | D58: TORNTPOWER SEP FUT | E58: Sell | F58: 275 | G58: 279 | H58: 275 | I58: 266 | J58: Neutral | K58: 0 | M58: 0 | N58: 3000 | O58: Neutral | P58: 2019-09-09 | R58: N
A59: 20 | B59: 2019-09-06 | D59: CONCOR SEP FUT | E59: Buy | F59: 505 | G59: 495 | H59: 507.5 | I59: 520-525 | J59: Profit of Rs.2.50/- | K59: 2.5 | M59: 3907.5 | N59: 1563 | O59: Successful | P59: 2019-09-09 | R59: N
A60: 21 | B60: 2019-09-09 | D60: JUBLFOOD SEP FUT | E60: Buy | F60: 1197 | G60: 1174 | H60: 1214.5 | I60: 1240-1250 | J60: Profit of Rs.17.50/- | K60: =H60-F60 -> 17.5 | M60: =N60*K60 -> 8750 | N60: 500 | O60: Successful | P60: 2019-09-11 | R60: R
A61: 22 | B61: 2019-09-09 | D61: RECLTD | E61: Buy | F61: 149.5 | G61: 144.5 | H61: 146 | I61: 160-163 | J61: Loss of Rs.3.5/- | K61: -3.5 | L61: =K61/F61 -> -2.34% | O61: Unsuccessful | P61: 2019-09-13 | R61: H
A62: 23 | B62: 2019-09-09 | D62: ENGINERSIN | E62: Sell | F62: 110.5 | G62: 114 | H62: 114 | I62: 160-105 | J62: Loss of Rs.3.5/- | K62: =F62-H62 -> -3.5 | L62: =K62/F62 -> -3.17% | O62: Unsuccessful | P62: 2019-09-12 | R62: H
A63: 24 | B63: 2019-09-11 | D63: KOTAKBANK SEP FUT | E63: Buy | F63: 1466 | G63: 1435 | H63: 1484 | I63: 1510-1520 | J63: Profit of Rs.18/- | K63: =H63-F63 -> 18 | M63: =N63*K63 -> 7200 | N63: 400 | O63: Successful | P63: 2019-09-12 | R63: N
A64: 25 | B64: 2019-09-11 | D64: ABB | E64: Buy | F64: 1334 | G64: 1289 | H64: 1362.5 | I64: 1400-1420 | J64: Profit of Rs.28.50/- | K64: 28.5 | L64: =K64/F64 -> 2.14% | O64: Successful | P64: 2019-09-13 | R64: H
A65: 26 | B65: 2019-09-11 | D65: APOLLOTYRE | E65: Sell | F65: 179 | G65: 184 | H65: 179 | I65: 170 | J65: Neutral | K65: =H65-F65 -> 0 | M65: =N65*K65 -> 0 | O65: Neutral | P65: 2019-09-12 | R65: H
A66: 27 | B66: 2019-09-12 | D66: SUNTV | E66: Buy | F66: 439 | G66: 423.7 | H66: 448 | I66: 460-465 | J66: Profit of Rs.9/- | K66: 9 | L66: =K66/F66 -> 2.05% | O66: Successful | P66: 2019-09-13 | R66: R
A67: 28 | B67: 2019-09-12 | D67: MFSL | E67: Buy | F67: 405.5 | G67: 394.7 | H67: 414 | I67: 426-430 | J67: Profit of Rs.8.5/- | K67: =H67-F67 -> 8.5 | L67: =K67/F67 -> 2.10% | O67: Successful | P67: 2019-09-12 | R67: R
A68: 29 | B68: 2019-09-12 | D68: COLPAL SEP FUT | E68: Buy | F68: 1243.5 | G68: 1226 | H68: 1253 | I68: 1270 | J68: Profit of Rs.9.5/- | K68: 9.5 | M68: =N68*K68 -> 6650 | N68: 700 | O68: Successful | P68: 2019-09-13 | R68: N
A69: 30 | B69: 2019-09-13 | D69: HINDUNILVR SEP FUT | E69: Sell | F69: 1822 | G69: 1857 | H69: 1857 | I69: 1760 | J69: Loss of Rs.35/- | K69: 35 | M69: 10500 | N69: 300 | O69: Unsuccessful | P69: 2019-09-20 | R69: R
A70: 31 | B70: 2019-09-13 | D70: DABUR | E70: Sell | F70: 452 | G70: 463 | H70: 444.5 | I70: 425 | J70: Profit of Rs.7.5/- | K70: =F70-H70 -> 7.5 | L70: =K70/F70 -> 1.66% | O70: Successful | P70: 2019-09-20 | R70: H
A71: 32 | B71: 2019-09-13 | D71: HINDALCO | E71: Sell | F71: 198.25 | G71: 205 | H71: 194.5 | I71: 190-185 | J71: Profit of Rs.3.75/- | K71: =F71-H71 -> 3.75 | L71: =K71/F71 -> 1.89% | O71: Successful | P71: 2019-09-19 | R71: H
A72: 33 | B72: 2019-09-16 | D72: APOLLOTYRE | E72: Sell | F72: 179.5 | G72: 184 | H72: 175.5 | I72: 170 | J72: Profit of Rs.4/- | K72: =F72-H72 -> 4 | L72: =K72/F72 -> 2.23% | O72: Successful | P72: 2019-09-19 | R72: H
A73: 34 | B73: 2019-09-16 | D73: ACC SEP FUT | E73: Sell | F73: 1530 | G73: 1555.5 | H73: 1512.5 | I73: 1480 | J73: Profit of Rs.17.5/- | K73: =F73-H73 -> 17.5 | M73: =N73*K73 -> 7000 | N73: 400 | O73: Successful | P73: 2019-09-17 | R73: R
A74: 35 | B74: 2019-09-16 | D74: NIFTY SEP FUT | E74: Sell | F74: 11055 | G74: 11130 | H74: 11007.5 | I74: 10960-10940 | J74: Profit of Rs.47.5/- | K74: =F74-H74 -> 47.5 | M74: =N74*K74 -> 3562.5 | N74: 75 | O74: Successful | P74: 2019-09-16 | R74: R
A75: 36 | B75: 2019-09-16 | D75: MFSL SEP FUT | E75: Buy | F75: 408.5 | G75: 398 | H75: 398 | I75: 425-430 | J75: Loss of Rs.10.5/- | K75: =H75-F75 -> -10.5 | M75: -12600 | N75: 1200 | O75: Unsuccessful | P75: 2019-09-19 | R75: N
A76: 37 | B76: 2019-09-16 | D76: ABB | E76: Buy | F76: 1332 | G76: 1288 | H76: 1359 | I76: 1400-1420 | J76: Profit of Rs.27/- | K76: 27 | L76: =K76/F76 -> 2.03% | O76: Successful | P76: 2019-09-20 | R76: H
A77: 38 | B77: 2019-09-17 | D77: SIEMENS | E77: Buy | F77: 1242.5 | G77: 1205 | H77: 1261 | I77: 1320-1340 | J77: Profit of Rs.18.50/- | K77: =H77-F77 -> 18.5 | L77: =K77/F77 -> 1.49% | O77: Successful | P77: 2019-09-17 | R77: H
A78: 39 | B78: 2019-09-17 | D78: HDFC | E78: Buy | F78: 2030 | G78: 1978 | H78: 2105 | I78: 2100-2120 | J78: Profit of Rs.75/- | K78: 75 | L78: 3.69% | O78: Successful | P78: 2019-09-23 | R78: H
A79: 40 | B79: 2019-09-17 | D79: INFY | E79: Sell | F79: 828.5 | G79: 851 | H79: 803 | I79: 785-775 | J79: Profit of Rs.25.5/- | K79: =F79-H79 -> 25.5 | L79: =K79/F79 -> 3.08% | O79: Successful | P79: 2019-09-20 | R79: R
A80: 42 | B80: 2019-09-17 | D80: NIFTY SEP FUT | E80: Buy | F80: 10925 | G80: 10840 | H80: 10840 | I80: 11150-11200 | J80: Loss of Rs.85/- | K80: =H80-F80 -> -85 | M80: =N80*K80 -> -6375 | N80: 75 | O80: Unsuccessful | P80: 2019-09-17 | R80: H
A81: 43 | B81: 2019-09-18 | D81: SUNTV | E81: Buy | F81: 430 | G81: 418.7 | H81: 418.7 | I81: 450-455 | J81: Loss of Rs.11.3/- | K81: -11.3 | L81: =K81/F81 -> -2.63% | O81: Unsuccessful | P81: 2019-09-19 | R81: R
A82: 44 | B82: 2019-09-18 | D82: CONCOR SEP FUT | E82: Buy | F82: 525 | G82: 515 | H82: 517 | I82: 540 | J82: Loss of Rs.8/- | K82: =H82-F82 -> -8 | M82: =N82*K82 -> -12504 | N82: 1563 | O82: Unsuccessful | P82: 2019-09-19 | R82: N
A83: 45 | B83: 2019-09-18 | D83: BANKBARODA | E83: Buy | F83: 96.5 | G83: 93.5 | H83: 93.2 | I83: 102 | J83: Loss of Rs.3.3/- | K83: -3.3 | L83: =K83/F83 -> -3.42% | O83: Unsuccessful | P83: 2019-09-20 | R83: H
A84: 46 | B84: 2019-09-19 | D84: NIFTY SEP FUT | E84: Buy | F84: 10805 | G84: 10725 | H84: 10725 | I84: 10940 | J84: Loss of Rs.80/- | K84: =H84-F84 -> -80 | M84: =N84*K84 -> -6000 | N84: 75 | O84: Unsuccessful | P84: 2019-09-19 | R84: R
A85: 47 | B85: 2019-09-19 | D85: SBIN | E85: Buy | F85: 276 | G85: 267 | H85: 285 | I85: 290-295 | J85: Profit of Rs.9/- | K85: 9 | L85: =K85/F85 -> 3.26% | O85: Successful | P85: 2019-09-20 | R85: H
A86: 48 | B86: 2019-09-19 | D86: BANKNIFTY SEP FUT | E86: Buy | F86: 26920 | G86: 26580 | H86: 27310 | I86: 27600 | J86: Profit of Rs.390/- | K86: =H86-F86 -> 390 | M86: =N86*K86 -> 7800 | N86: 20 | O86: Successful | P86: 2019-09-20 | R86: R
A87: 49 | B87: 2019-09-19 | D87: KOTAKBANK SEP FUT | E87: Buy | F87: 1463.5 | G87: 1432 | H87: 1482.5 | I87: 1510-1520 | J87: Profit of Rs.19/- | K87: =H87-F87 -> 19 | M87: =N87*K87 -> 7600 | N87: 400 | O87: Successful | P87: 2019-09-20 | R87: N
A88: 50 | B88: 2019-09-19 | D88: AXISBANK | E88: Buy | F88: 641.5 | G88: 624 | H88: 662 | I88: 665-675 | J88: Profit of Rs.20.5/- | K88: 20.5 | L88: =K88/F88 -> 3.20% | O88: Successful | P88: 2019-09-20 | R88: R
A89: 51 | B89: 2019-09-20 | D89: MARUTI SEP FUT | E89: Buy | F89: 6065 | G89: 5920 | H89: 6165 | I89: 6350 | J89: Profit of Rs.100/- | K89: =H89-F89 -> 100 | M89: =N89*K89 -> 7500 | N89: 75 | O89: Successful | P89: 2019-09-20 | R89: H
A90: 52 | B90: 2019-09-20 | D90: BHARATFORG | E90: Buy | F90: 399 | G90: 388 | H90: 411 | I90: 420 | J90: Profit of Rs.12/- | K90: 12 | L90: =K90/F90 -> 3.01% | O90: Successful | P90: 2019-09-20 | R90: H
A91: 53 | B91: 2019-09-20 | D91: UBL SEP FUT | E91: Buy | F91: 1241 | G91: 1224 | H91: 1251 | I91: 1275 | J91: Profit of Rs.10/- | K91: =H91-F91 -> 10 | M91: =N91*K91 -> 7000 | N91: 700 | O91: Successful | P91: 2019-09-20 | R91: N
A92: 54 | B92: 2019-09-20 | D92: RAYMOND | E92: Buy | F92: 564 | G92: 548 | H92: 572 | I92: 590 | J92: Profit of Rs.8/- | K92: 8 | L92: =K92/F92 -> 1.42% | O92: Successful | P92: 2019-09-20 | R92: H
A93: 55 | B93: 2019-09-20 | D93: BHARTIARTL SEP FUT | E93: Buy | F93: 344 | G93: 336 | H93: 350.5 | I93: 360 | J93: Profit of Rs.6.5/- | K93: =H93-F93 -> 6.5 | M93: =N93*K93 -> 12031.5 | N93: 1851 | O93: Successful | P93: 2019-09-20 | R93: N
A94: 56 | B94: 2019-09-20 | D94: NTPC | E94: Buy | F94: 123 | G94: 119 | H94: 120 | I94: 130 | J94: Loss of Rs.3/- | K94: -3 | L94: =K94/F94 -> -2.44% | O94: Unsuccessful | P94: 2019-09-20 | R94: H
A95: 57 | B95: 2019-09-20 | D95: M&M | E95: Buy | F95: 545 | G95: 528 | H95: 556 | I95: 580 | J95: Profit of Rs.11/- | K95: 11 | L95: 2.02% | O95: Successful | P95: 2019-09-20 | R95: H
A96: 56 | B96: 2019-09-20 | D96: BHARTIARTL SEP FUT | E96: Buy | F96: 345 | G96: 337 | H96: 351 | I96: 360 | J96: Profit of Rs.6/- | K96: =H96-F96 -> 6 | M96: =N96*K96 -> 11106 | N96: 1851 | O96: Successful | P96: 2019-09-20 | R96: N
A97: 59 | B97: 2019-09-20 | D97: MARICO SEP FUT | E97: Buy | F97: 386.5 | G97: 380 | H97: 382 | I97: 400 | J97: Loss of Rs.4.5/- | K97: -4.5 | M97: -11700 | N97: 2600 | O97: Unsuccessful | P97: 2019-09-20 | R97: N
A98: 60 | B98: 2019-09-20 | D98: MFSL SEP FUT | E98: Buy | F98: 407 | G98: 397 | H98: 414 | I98: 425 | J98: Profit of Rs.7/- | K98: =H98-F98 -> 7 | M98: =N98*K98 -> 8400 | N98: 1200 | O98: Successful | P98: 2019-09-23 | R98: N
A99: 61 | B99: 2019-09-20 | D99: BALKRISIND | E99: Buy | F99: 797.5 | G99: 777 | H99: 772.5 | I99: 850 | J99: Loss of Rs.25/- | K99: -25 | L99: =K99/F99 -> -3.13% | O99: Unsuccessful | P99: 2019-09-27 | R99: H
A100: 62 | B100: 2019-09-20 | D100: THERMAX | E100: Buy | F100: 1098 | G100: 1069 | H100: 1127.5 | I100: 1140-1150 | J100: Profit of Rs.29.50/- | K100: =H100-F100 -> 29.5 | L100: =K100/F100 -> 2.69% | O100: Successful | P100: 2019-09-23 | R100: H
A101: 63 | B101: 2019-09-23 | D101: APOLLOHOSP SEP FUT | E101: Buy | F101: 1474 | G101: 1452 | H101: 1490 | I101: 1520 | J101: Profit of Rs.16/- | K101: =H101-F101 -> 16 | M101: =N101*K101 -> 8000 | N101: 500 | O101: Successful | P101: 2019-09-23 | R101: N
A102: 64 | B102: 2019-09-23 | D102: POWERGRID | E102: Buy | F102: 190 | G102: 183.7 | H102: 194.5 | I102: 200-204 | J102: Profit of Rs.4.50/- | K102: 4.5 | L102: =K102/F102 -> 2.37% | O102: Successful | P102: 2019-09-25 | R102: R
A103: 65 | B103: 2019-09-23 | D103: TVSMOTOR OCT FUT | E103: Buy | F103: 417 | G103: 400 | H103: 426 | I103: 435-440 | J103: Profit of Rs.9/- | K103: =H103-F103 -> 9 | M103: =N103*K103 -> 9900 | N103: 1100 | O103: Successful | P103: 2019-09-23 | R103: N
A104: 66 | B104: 2019-09-23 | D104: HINDALCO | E104: Sell | F104: 202.5 | G104: 209.3 | H104: 198.5 | I104: 193-190 | J104: Profit of Rs.4/- | K104: =F104-H104 -> 4 | L104: =K104/F104 -> 1.98% | O104: Successful | P104: 2019-09-23 | R104: R
A105: 67 | B105: 2019-09-23 | D105: BHARATFORG SEP FUT | E105: Buy | F105: 446 | G105: 434 | H105: 454 | I105: 470 | J105: Profit of Rs.8/- | K105: =H105-F105 -> 8 | M105: =N105*K105 -> 9600 | N105: 1200 | O105: Successful | P105: 2019-09-23 | R105: N
A106: 68 | B106: 2019-09-23 | D106: HINDPETRO | E106: Sell | F106: 286 | G106: 295.3 | H106: 280.5 | I106: 272-268 | J106: Profit of Rs.5.50/- | K106: =F106-H106 -> 5.5 | L106: =K106/F106 -> 1.92% | O106: Successful | P106: 2019-09-23 | R106: R
A107: 69 | B107: 2019-09-23 | D107: VOLTAS OCT FUT | E107: Buy | F107: 681 | G107: 667 | H107: 669 | I107: 700-710 | J107: Loss of Rs.12/- | K107: =H107-F107 -> -12 | M107: =N107*K107 -> -12000 | N107: 1000 | O107: Unsuccessful | P107: 2019-09-24 | R107: N
A108: 70 | B108: 2019-09-23 | D108: CONCOR OCT FUT | E108: Buy | F108: 579 | G108: 568 | H108: 589 | I108: 600 | J108: Profit of Rs.10/- | K108: =H108-F108 -> 10 | M108: =N108*K108 -> 15630 | N108: 1563 | O108: Successful | P108: 2019-09-23 | R108: N
A109: 71 | B109: 2019-09-24 | D109: COLPAL OCT FUT | E109: Buy | F109: 1518.5 | G109: 1498 | H109: 1500 | I109: 1555 | J109: Loss of Rs.18.5/- | K109: -18.5 | M109: -12950 | N109: 700 | O109: Unsuccessful | P109: 2019-09-25 | R109: N
A110: 72 | B110: 2019-09-24 | D110: M&M OCT FUT | E110: Buy | F110: 563 | G110: 548 | H110: 550 | I110: 580-590 | J110: Loss of Rs.13/- | K110: =H110-F110 -> -13 | M110: =N110*K110 -> -13000 | N110: 1000 | O110: Unsuccessful | P110: 2019-09-25 | R110: H
A111: 73 | B111: 2019-09-24 | D111: AMARAJABAT OCT FUT | E111: Buy | F111: 721-723 | G111: 703 | I111: 750-760 | J111: Open | R111: N
A112: 74 | B112: 2019-09-24 | D112: HDFC | E112: Buy | F112: 2134 | G112: 2075 | H112: 2060 | I112: 2220-2240 | J112: Loss of Rs.74/- | K112: =H112-F112 -> -74 | L112: =K112/F112 -> -3.47% | O112: Unsuccessful | P112: 2019-09-25 | R112: H
A113: 75 | B113: 2019-09-24 | D113: APOLLOHOSP OCT FUT | E113: Buy | F113: 1460 | G113: 1435 | H113: 1435 | I113: 1510 | J113: Loss of Rs.25/- | K113: =H113-F113 -> -25 | M113: =N113*K113 -> -12500 | N113: 500 | O113: Unsuccessful | P113: 2019-09-25 | R113: N
A114: 76 | B114: 2019-09-24 | D114: VEDL | E114: Sell | F114: 161 | G114: 165.8 | H114: 158.5 | I114: 154-152 | J114: Profit of Rs.2.50/- | K114: =F114-H114 -> 2.5 | L114: =K114/F114 -> 1.55% | O114: Successful | P114: 2019-09-24 | R114: H
A115: 77 | B115: 2019-09-25 | D115: RELIANCE OCT FUT | E115: Sell | F115: 1297.5 | G115: 1322 | H115: 1282 | I115: 1260 | J115: Profit of Rs.15.50/- | K115: =F115-H115 -> 15.5 | M115: =N115*K115 -> 7750 | N115: 500 | O115: Successful | P115: 2019-09-25 | R115: R
A116: 78 | B116: 2019-09-25 | D116: MARUTI OCT FUT | E116: Sell | F116: 6955 | G116: 7110 | H116: 6855 | I116: 6700 | J116: Profit of Rs.100/- | K116: =F116-H116 -> 100 | M116: =N116*K116 -> 7500 | N116: 75 | O116: Successful | P116: 2019-09-25 | R116: R
A117: 79 | B117: 2019-09-26 | D117: CESC OCT FUT | E117: Buy | F117: 783.5 | G117: 768.7 | H117: 768.7 | I117: 810 | J117: Loss of Rs.14.80/- | K117: =H117-F117 -> -14.8 | M117: -11840 | N117: 800 | O117: Unsuccessful | P117: 2019-09-27 | R117: R
A118: 80 | B118: 2019-09-26 | D118: POWERGRID OCT FUT | E118: Buy | F118: 198.75 | G118: 195.5 | H118: 201 | I118: 205-208 | J118: Profit of Rs.2.25/- | K118: =H118-F118 -> 2.25 | M118: =N118*K118 -> 9000 | N118: 4000 | O118: Successful | P118: 2019-09-26 | R118: N
A119: 81 | B119: 2019-09-26 | D119: APOLLOHOSP | E119: Buy | F119: 1420 | G119: 1378 | H119: 1371 | I119: 1480 | J119: Loss of Rs.49/- | K119: -49 | L119: =K119/F119 -> -3.45% | O119: Unsuccessful | P119: 2019-09-30 | R119: H
A120: 82 | B120: 2019-09-26 | D120: RELIANCE OCT FUT | E120: Sell | F120: 1300 | G120: 1327 | H120: 1327 | I120: 1265 | J120: Loss of Rs.27/- | K120: =F120-H120 -> -27 | M120: =N120*K120 -> -13500 | N120: 500 | O120: Unsuccessful | P120: 2019-09-30 | R120: R
A121: 83 | B121: 2019-09-26 | D121: VEDL | E121: Sell | F121: 164 | G121: 168.8 | H121: 160.5 | I121: 155-152 | J121: Profit of Rs.3.50/- | K121: =F121-H121 -> 3.5 | L121: =K121/F121 -> 2.13% | O121: Successful | P121: 2019-09-27 | R121: H
A122: 84 | B122: 2019-09-27 | D122: AMBUJACEM OCT FUT | E122: Buy | F122: 210.5 | G122: 205 | H122: 205 | I122: 220 | J122: Loss of Rs.5.5/- | K122: =H122-F122 -> -5.5 | M122: =N122*K122 -> -13750 | N122: 2500 | O122: Unsuccessful | P122: 2019-09-30 | R122: N
A123: 85 | B123: 2019-09-27 | D123: ADANIPORTS | E123: Sell | F123: 414 | G123: 425.3 | H123: 402.5 | I123: 395-390 | J123: Profit of Rs.11.50/- | K123: =F123-H123 -> 11.5 | L123: =K123/F123 -> 2.78% | O123: Successful | P123: 2019-09-30 | R123: H
A124: 86 | B124: 2019-09-27 | D124: CONCOR | E124: Buy | F124: 600.5 | G124: 578 | H124: 611.5 | I124: 640 | J124: Profit of Rs.11/- | K124: =H124-F124 -> 11 | L124: 1.83% | O124: Successful | P124: 2019-09-30 | R124: N
A125: 87 | B125: 2019-09-30 | D125: NIFTY OCT FUT | E125: Buy | F125: 11480 | G125: 11420 | H125: 11535 | I125: 11570-11600 | J125: Profit of Rs.55/- | K125: 55 | M125: =N125*K125 -> 4125 | N125: 75 | O125: Successful | P125: 2019-09-30 | R125: R
A126: 88 | B126: 2019-09-30 | D126: IGL | E126: Sell | F126: 348-350 | G126: 361 | I126: 330-325 | J126: Open | R126: H
A127: 89 | B127: 2019-09-30 | D127: ENGINERSIN | E127: Sell | F127: 118-120 | G127: 123.3 | I127: 111-109 | J127: Open | R127: R
A128: 90 | B128: 2019-09-30 | D128: ADANIPORTS | E128: Sell | F128: 412-413 | G128: 425.3 | I128: 395-390 | J128: Open | R128: H
A133: CLBS = Closing Basis ***
A134: Dividend adjusted <> | F134: Reinitiated $
F135: Revised stoploss #
A137: Master Trade High Risk
A138: Sr.no | B138: Date | D138: Company | E138: Rec | F138: Rec Price | G138: Stop Loss | H138: Call Closed At | I138: Target | J138: Remark | K138: Profit / Loss per share | L138: Gain / Loss per Lot | M138: Lot | N138: Status | O138: Closed Date
A139: 1 | B139: 2019-09-05 | D139: HEROMOTOCO SEP FUT | E139: Buy | F139: 2595 | G139: 2490 | H139: 2645 | I139: 2750 | J139: Profit of Rs.42.5/- | K139: =H139-F139 -> 50 | L139: =M139*42.5 -> 8500 | M139: 200 | N139: Successful | O139: 2019-09-06 | R139: H
D140: HEROMOTOCO SEP 2700 CE | E140: Sell | F140: 40 | H140: 47.5 | K140: =F140-H140 -> -7.5 | R140: H
A141: 2 | B141: 2019-09-09 | D141: NIFTY SEP FUT | E141: Buy | F141: 10933 | G141: 10780 | H141: 11035 | I141: 11200 | J141: Profit of Rs.65/- | K141: =H141-F141 -> 102 | L141: =65*75 -> 4875 | M141: 75 | N141: Successful | O141: 2019-09-09 | R141: H
D142: Nifty 11050 CE SEP | E142: Sell | F142: 98 | H142: 135 | K142: =F142-H142 -> -37 | R142: H
A143: 3 | B143: 2019-09-24 | D143: NIFTY OCT FUT | E143: Buy | F143: 11700 | G143: 11855 | H143: 11620 | I143: 11500 | J143: Profit of Rs.75/- | K143: =F143-H143 -> 80 | L143: =75*75 -> 5625 | M143: 75 | N143: Successful | O143: 2019-09-24 | R143: H
D144: Nifty 11500 PE 3-OCT | E144: Sell | F144: 87.50 | H144: 92.5 | K144: =F144-H144 -> -5 | R144: H
A145: 4 | B145: 2019-09-25 | D145: NIFTY OCT FUT | E145: Buy | F145: 11545 | G145: 11380 | H145: 11630 | I145: 11750 | J145: Profit of Rs.75/- | K145: =H145-F145 -> 85 | L145: =M145*75 -> 5625 | M145: 75 | N145: Successful | O145: 2019-09-26 | R145: H
D146: Nifty 11650 PE 3-OCT | E146: Sell | F146: 62.5 | H146: 72.5 | K146: =F146-H146 -> -10 | R146: H
A147: 5 | B147: 2019-09-25 | D147: HDFC OCT FUT | E147: Buy | F147: 2076 | G147: 2025 | H147: 2102 | I147: 2150-2160 | J147: Profit of Rs.18.5/- | K147: =H147-F147 -> 26 | L147: =M147*18.5 -> 9250 | M147: 500 | N147: Successful | O147: 2019-09-26 | R147: H
D148: HDFC 2140 CE OCT | E148: Sell | F148: 42.5 | H148: 50 | K148: =F148-H148 -> -7.5 | R148: H
A149: 6 | B149: 2019-09-26 | D149: NIFTY OCT FUT | E149: Buy | F149: 11570 | G149: 11380 | H149: 11642.5 | I149: 11750 | J149: Profit of Rs.57/- | K149: =H149-F149 -> 72.5 | L149: =M149*57 -> 4275 | M149: 75 | N149: Successful | O149: 2019-09-26 | R149: H
D150: Nifty 11650 PE 3-OCT | E150: Sell | F150: 65.5 | H150: 81 | K150: =F150-H150 -> -15.5 | R150: H
A151: 7 | B151: 2019-09-30 | D151: BHARTIARTL OCT FUT | E151: Buy | F151: 360 | G151: 370 | H151: 370 | I151: 345 | J151: Loss of Rs.8.25/- | K151: -10 | L151: =+-8.25*M151 -> -15270.75 | M151: 1851 | N151: Successful | O151: 2019-09-30 | R151: N
D152: BHARTIARTL 345PE OCT | E152: Sell | F152: 8 | H152: 6.25 | K152: =F152-H152 -> 1.75 | R152: N
A155: Master Trade Medium Risk
A156: Sr.no | B156: Date | D156: Company | E156: Rec | F156: Rec Price | G156: Stop Loss | H156: Call Closed At | I156: Target | J156: Remark | K156: Profit/ Loss per lot | L156: Gain / Loss per Lot | M156: Lot | N156: Status | O156: Closed Date
A157: 1 | B157: 2019-09-03 | D157: NIFTY 05-Sep 11000 CE | E157: Buy | F157: 38 | G157: 19 | H157: 49 | I157: 80 | J157: Profit of Rs.11/- | K157: =H157-F157 -> 11 | L157: =K157*M157 -> 825 | M157: 75 | N157: Successful | O157: 2019-09-03 | R157: H
A158: 2 | B158: 2019-09-03 | D158: NIFTY 05-Sep 11000 CE | E158: Buy | F158: 38 | G158: 19 | H158: 27 | I158: 80 | J158: Loss of Rs.11/- | K158: =H158-F158 -> -11 | L158: =K158*M158 -> -825 | M158: 75 | N158: Unsuccessful | O158: 2019-09-03 | R158: H
A159: 3 | B159: 2019-09-03 | D159: NIFTY 05-Sep 10900 CE | E159: Buy | F159: 41 | G159: 27 | H159: 28 | I159: 70-75 | J159: Loss of Rs.13/- | K159: =H159-F159 -> -13 | L159: =K159*M159 -> -975 | M159: 75 | N159: Unsuccessful | O159: 2019-09-04 | R159: H
A160: 4 | B160: 2019-09-05 | D160: NIFTY 12-Sep 11000 CE | E160: Buy | F160: 40 | G160: 22 | H160: 51 | I160: 70-75 | J160: Profit of Rs.11/- | K160: 11 | L160: 825 | M160: 75 | N160: Successful | O160: 2019-09-06 | R160: H
A161: 5 | B161: 2019-09-06 | D161: M&M Sep 530 CE | E161: Buy | F161: 11.5 | G161: 6 | H161: 13.75 | I161: 20 | J161: Profit of Rs.2.25/- | K161: 2.25 | L161: 2250 | M161: 1000 | N161: Successful | O161: 2019-09-06 | R161: H
A162: 6 | B162: 2019-09-09 | D162: HINDUNILVR Sep 1840 CE | E162: Buy | F162: 32 | G162: 15 | H162: 15 | I162: 60 | J162: Loss of Rs.17/- | K162: =H162-F162 -> -17 | L162: =K162*M162 -> -5100 | M162: 300 | N162: Unsuccessful | O162: 2019-09-12 | R162: N
A163: 7 | B163: 2019-09-09 | D163: ICICIBANK Sep 400 CE | E163: Buy | F163: 7.5 | G163: 3.5 | H163: 9.25 | I163: 15 | J163: Profit of Rs.1.75/- | K163: =H163-F163 -> 1.75 | L163: =K163*M163 -> 2406.25 | M163: 1375 | N163: Successful | O163: 2019-09-09 | R163: N
A164: 8 | B164: 2019-09-09 | D164: HDFCBANK 1130 CE SEP | E164: Buy | F164: 17.50 | H164: 26 | J164: Profit of Rs.7/- | K164: 8.5 | L164: =M164*7 -> 3500 | M164: 500 | N164: Successful | O164: 2019-09-20 | R164: N
D165: HDFCBANK 1140 CE SEP | E165: Sell | F165: 14 | H165: 15.5 | K165: =F165-H165 -> -1.5 | R165: N
A166: 9 | B166: 2019-09-09 | D166: NIFTY 12-Sep 10950 PE | E166: Buy | F166: 40.5 | G166: 22 | H166: 50 | I166: 80 | J166: Profit of Rs.9.50/- | K166: =H166-F166 -> 9.5 | L166: =K166*M166 -> 712.5 | M166: 75 | N166: Successful | O166: 2019-09-09 | R166: H
A167: 10 | B167: 2019-09-09 | D167: ASIANPAINT Sep 1540 PE | E167: Buy | F167: 25 | G167: 16 | H167: 29.5 | I167: 40 | J167: Profit of Rs.4.50/- | K167: 4.5 | L167: 2700 | M167: 600 | N167: Successful | O167: 2019-09-09 | R167: N
A168: 11 | B168: 2019-09-11 | D168: BHARATFORG 410 CE SEP | E168: Buy | F168: 8.50 | H168: 13.5 | J168: Profit of Rs.2/- | K168: 5 | L168: 2400 | M168: 1200 | N168: Successful | O168: 2019-09-11 | R168: H
D169: BHARATFORG 420 CE SEP | E169: Sell | F169: 5.50 | H169: 8.5 | K169: =F169-H169 -> -3 | R169: H
A170: 12 | B170: 2019-09-11 | D170: TCS Sep 2180 CE | E170: Buy | F170: 33.5 | G170: 8 | H170: 12.5 | I170: 70 | J170: Loss of Rs.21/- | K170: =H170-F170 -> -21 | L170: =K170*M170 -> -5250 | M170: 250 | N170: Unsuccessful | O170: 2019-09-17 | R170: H
A171: 13 | B171: 2019-09-11 | D171: ASIANPAINT Sep 1560 PE | E171: Buy | F171: 25.5 | G171: 16 | H171: 26 | I171: 40 | J171: Neutral | K171: =H171-F171 -> 0.5 | L171: =K171*M171 -> 300 | M171: 600 | N171: Neutral | O171: 2019-09-12 | R171: N
A172: 14 | B172: 2019-09-12 | D172: NIFTY 19-Sep 10950 PE | E172: Buy | F172: 40 | G172: 17 | H172: 49.5 | I172: 80 | J172: Profit of Rs.9.50/- | K172: 9.5 | L172: =K172*M172 -> 712.5 | M172: 75 | N172: Successful | O172: 2019-09-12 | R172: H
A173: 15 | B173: 2019-09-12 | D173: JUBLFOOD Sep 1280 CE | E173: Buy | F173: 10.5 | G173: 4 | H173: 13.5 | I173: 20-24 | J173: Profit of Rs.3/- | K173: =H173-F173 -> 3 | L173: =K173*M173 -> 1500 | M173: 500 | N173: Successful | O173: 2019-09-13 | R173: H
A174: 16 | B174: 2019-09-16 | D174: RELIANCE Sep 1220 CE | E174: Buy | F174: 16.5 | G174: 6 | H174: 19.75 | I174: 35-45 | J174: Profit of Rs.3.25/- | K174: =H174-F174 -> 3.25 | L174: =K174*M174 -> 1625 | M174: 500 | N174: Successful | O174: 2019-09-16 | R174: H
A175: 17 | B175: 2019-09-16 | D175: ASIANPAINT Sep 1520 PE | E175: Buy | F175: 21 | G175: 14 | H175: 24.5 | I175: 30-35 | J175: Profit of Rs.3.50/- | K175: =H175-F175 -> 3.5 | L175: =K175*M175 -> 2100 | M175: 600 | N175: Successful | O175: 2019-09-16 | R175: N
A176: 18 | B176: 2019-09-16 | D176: Nifty 19-Sep 11000 PE | E176: Buy | F176: 40.5 | G176: 17 | H176: 51 | I176: 70-75 | J176: Profit of Rs.10.50/- | K176: =H176-F176 -> 10.5 | L176: =K176*M176 -> 787.5 | M176: 75 | N176: Successful | O176: 2019-09-16 | R176: H
A177: 19 | B177: 2019-09-17 | D177: Nifty 19-Sep 11000 CE | E177: Buy | F177: 47 | G177: 17 | H177: 17 | I177: 90 | J177: Loss of Rs.30/- | K177: -30 | L177: -2250 | M177: 75 | N177: Unsuccessful | O177: 2019-09-17 | R177: H
A178: 20 | B178: 2019-09-17 | D178: ICICIBANK Sep 410 CE | E178: Buy | F178: 6.75 | G178: 3.5 | H178: 4 | I178: 12.00-15.00 | J178: Loss of Rs.2.75/- | K178: -2.75 | L178: -3781.25 | M178: 1375 | N178: Unsuccessful | O178: 2019-09-17 | R178: N
A179: 21 | B179: 2019-09-18 | D179: M&M Sep 540 CE | E179: Buy | F179: 6.25 | G179: 3 | H179: 3 | I179: 12.00-14.00 | J179: Loss of Rs.3.25/- | K179: =H179-F179 -> -3.25 | L179: =K179*M179 -> -3250 | M179: 1000 | N179: Unsuccessful | O179: 2019-09-19 | R179: H
A180: 22 | B180: 2019-09-19 | D180: Nifty Sep 10900 CE | E180: Buy | F180: 44 | G180: 19 | H180: 23.5 | I180: 90 | J180: Loss of Rs.20.5/- | K180: -20.5 | L180: -1537.5 | M180: 75 | N180: Unsuccessful | O180: 2019-09-19 | R180: H
A181: 23 | B181: 2019-09-20 | D181: SUNPHARMA 420 CE SEP | E181: Buy | F181: 7 | J181: Loss of Rs.2.75/- | K181: -7 | L181: 2750 | M181: 1000 | N181: Unsuccessful | O181: 2019-09-26 | R181: N
D182: SUNPHARMA 430 CE SEP | E182: Sell | F182: 4.25 | K182: =F182-H182 -> 4.25 | R182: N
A183: 24 | B183: 2019-09-23 | D183: Nifty 3-OCT 11300 PE | E183: Buy | F183: 47.5 | G183: 29 | H183: 52.5 | I183: 80-90 | J183: Profit of Rs.5/- | K183: =H183-F183 -> 5 | L183: =K183*M183 -> 375 | M183: 75 | N183: Neutral | O183: 2019-09-23 | R183: H
A184: 25 | B184: 2019-09-24 | D184: Nifty 3-OCT 11300 PE | E184: Buy | F184: 50 | G184: 29 | H184: 34.5 | I184: 80-90 | J184: Loss of Rs.15.5/- | K184: -15.5 | L184: -1162.5 | M184: 75 | N184: Unsuccessful | O184: 2019-09-24 | R184: H
A185: 26 | B185: 2019-09-27 | D185: Nifty 3-OCT 11700 CE | E185: Buy | F185: 46 | G185: 29 | H185: 55.5 | I185: 80-90 | J185: Profit of Rs.9.50/- | K185: 9.5 | L185: 712.5 | M185: 75 | N185: Successful | O185: 2019-09-27 | R185: H
A186: 27 | B186: 2019-09-30 | D186: Nifty 3-OCT 11500 CE | E186: Buy | F186: 34.5 | G186: 18 | H186: 48 | I186: 80-90 | J186: Profit of Rs.13.50/- | K186: =H186-F186 -> 13.5 | L186: =K186*M186 -> 1012.5 | M186: 75 | N186: Successful | O186: 2019-09-30 | R186: H
A188: Techno -Funda (positional)
A189: Sr.no | B189: Date | D189: Company | E189: Rec | F189: Rec Price | G189: Stop Loss*** | H189: Call Closed At | I189: Target | J189: Remark | K189: Profit / Loss per Share | L189: Gain / Loss % | M189: Status | N189: Closed Date | O189: NSE Closed Price
A190: 1 | B190: 2019-08-13 | D190: ITC | E190: Buy | F190: 246-248 | G190: 228 | I190: 290-300 | J190: Open | O190: =VLOOKUP(D190,Sheet2!A131:M1770,6,0) -> 259.85 | R190: H
A194: CLBS = Closing Basis *** | F194: Reinitiated $
A195: Dividend adjusted <> | F195: Revised stoploss #
B200: Investment Idea
A201: Sr.no | B201: Date | D201: Company | E201: Rec | F201: Rec Price | G201: Point of Review | H201: Close Rate | I201: Target | J201: Remark | K201: Profit / Loss per Share | L201: Gain / Loss % | M201: Status | N201: Closed Date
A202: 1 | B202: 2013-11-01 | D202: L&T Finance Holding | E202: Accu | F202: 82.00 | G202: - | H202: 100 | I202: 100.00 | J202: Target Achieved | K202: =H202-F202 -> 18.00 | L202: =K202/F202 -> 21.95% | M202: Successful | N202: 2016-10-14
A203: 2 | B203: 2014-06-04 | D203: Finolex Inds | E203: Buy | F203: 257.00 | G203: - | H203: 300 | I203: 300.00 | J203: Target Achieved | K203: =H203-F203 -> 43.00 | L203: 16.73% | M203: Successful | N203: 2014-07-02
A204: 3 | B204: 2014-07-08 | D204: JK Cement | E204: Buy | F204: 393.00 | G204: - | H204: 468 | I204: 468.00 | J204: Target Achieved | K204: =H204-F204 -> 75.00 | L204: 19.08% | M204: Successful | N204: 2014-08-12
A205: 4 | B205: 2014-08-06 | D205: Finolex Cables | E205: Buy | F205: 205.00 | G205: - | H205: 275 | I205: 250.00 | J205: Target Achieved | K205: 70.00 | L205: 34.15% | M205: Successful | N205: 2014-11-19
A206: 5 | B206: 2014-09-04 | D206: Exide Inds | E206: Buy | F206: 162.00 | G206: - | H206: 190 | I206: 190.00 | J206: Target Achieved | K206: 28.00 | L206: 17.28% | M206: Successful | N206: 2015-01-02
A207: 6 | B207: 2014-09-04 | D207: Deepak Nitrite | E207: Buy | F207: 75.00 | G207: - | H207: 91.5 | I207: 95-100 | J207: Profit of Rs.16.50/- | K207: 16.50 | L207: 22.00% | M207: Successful | N207: 2014-11-11
A208: 7 | B208: 2014-10-01 | D208: Mercks | E208: Buy | F208: 850.00 | G208: - | H208: 982.5 | I208: 1050.00 | J208: Profit of Rs.132.50/- | K208: 132.50 | L208: 15.59% | M208: Successful | N208: 2015-02-04
A209: 8 | B209: 2014-10-01 | D209: Grindwell Norton | E209: Buy | F209: 475.00 | G209: - | H209: 515 | I209: 600.00 | J209: Profit of Rs.40/- | K209: 40.00 | L209: 8.42% | M209: Successful | N209: 2014-10-27
A210: 9 | B210: 2014-10-01 | D210: Snowman Logistics | E210: Buy | F210: 86.00 | G210: - | H210: 99 | I210: 140.00 | J210: Profit of Rs.13.00/- | K210: 13.00 | L210: 15.12% | M210: Successful | N210: 2014-10-27
A211: 10 | B211: 2014-10-14 | D211: Birla Corp | E211: Buy | F211: 496.60 | G211: - | H211: 621 | I211: 580.00 | J211: Target Achieved | K211: 124.40 | L211: 25.05% | M211: Successful | N211: 2016-08-23
A212: 11 | B212: 2014-10-14 | D212: Ultratech Cem | E212: Buy | F212: 2481.90 | G212: - | H212: 2840 | I212: 2870.00 | J212: Profit of Rs.358.10/- | K212: 358.10 | L212: 14.43% | M212: Successful | N212: 2015-01-13
A213: 12 | B213: 2014-10-16 | D213: Sintex Inds | E213: Buy | F213: 84.50 | G213: - | H213: 93 | I213: 110.00 | J213: Profit of Rs.8.50/- | K213: 8.50 | L213: 10.06% | M213: Successful | N213: 2014-10-27
A214: 13 | B214: 2014-10-16 | D214: HSIL | E214: Buy | F214: 401.00 | G214: - | H214: 428 | I214: 450.00 | J214: Profit of Rs.27.00/- | K214: 27.00 | L214: 6.73% | M214: Successful | N214: 2015-01-16
A215: 14 | B215: 2014-10-16 | D215: Eveready Inds | E215: Buy | F215: 101.00 | G215: - | H215: 112 | I215: 120.00 | J215: Profit of Rs.11.00/- | K215: 11.00 | L215: 10.89% | M215: Successful | N215: 2014-10-27
A216: 15 | B216: 2014-11-11 | D216: Pennar Inds | E216: Buy | F216: 59.00 | G216: - | H216: 76 | I216: 76.00 | J216: Target Achieved | K216: 17.00 | L216: 28.81% | M216: Successful | N216: 2017-10-24
A217: 16 | B217: 2014-11-11 | D217: Snowman Logistics | E217: Buy | F217: 99.00 | G217: - | H217: 120 | I217: 120.00 | J217: Profit of Rs.21/- | K217: 21.00 | L217: 21.21% | M217: Successful | N217: 2014-11-17
A218: 17 | B218: 2014-11-13 | D218: Dharamsi Morarji Chem | E218: Buy | F218: 22.00 | G218: - | H218: 33.55 | I218: 32.00 | J218: Profit of Rs 11.55/- | K218: 11.55 | L218: 52.50% | M218: Successful | N218: 2015-07-03
A219: 18 | B219: 2014-12-03 | D219: Tatachem | E219: Buy | F219: 440.00 | G219: - | H219: 520 | I219: 520.00 | J219: Profit of Rs 80.00/- | K219: 80.00 | L219: 18.18% | M219: Successful | N219: 2015-07-23
A220: 19 | B220: 2014-12-03 | D220: Advanta | E220: Buy | F220: 360.00 | G220: - | H220: 427 | I220: 425.00 | J220: Profit of Rs.67.00/- | K220: 67.00 | L220: 18.61% | M220: Successful | N220: 2015-02-23
A221: 20 | B221: 2015-01-08 | D221: GDL | E221: Buy | F221: 360.00 | G221: - | H221: 455 | I221: 420.00 | J221: Profit of Rs.95.00/- | K221: 95.00 | L221: 26.39% | M221: Successful | N221: 2015-01-20
A222: 21 | B222: 2015-01-08 | D222: NRB Bearing | E222: Buy | F222: 130.00 | H222: 175.5 | I222: 165.00 | J222: Profit of Rs 45.50/- | K222: 45.50 | L222: 35.00% | M222: Successful | N222: 2017-12-19
... 131 more rows

Sheet Sheet2 (hidden)
A1: SYMBOL | B1: SERIES | C1: OPEN | D1: HIGH | E1: LOW | F1: CLOSE | G1: LAST | H1: PREVCLOSE | I1: TOTTRDQTY | J1: TOTTRDVAL | K1: TIMESTAMP | L1: TOTALTRADES | M1: ISIN | N1: ISIN
A2: 20MICRONS | B2: EQ | C2: 41 | D2: 41.6 | E2: 39.85 | F2: 40.05 | G2: 40 | H2: 40.75 | I2: 67628 | J2: 2712102.7 | K2: 2019-09-30 | L2: 1076 | M2: INE144J01027
A3: 21STCENMGM | B3: EQ | C3: 12.9 | D3: 12.9 | E3: 12.6 | F3: 12.9 | G3: 12.9 | H3: 12.85 | I3: 1726 | J3: 22116.4 | K3: 2019-09-30 | L3: 10 | M3: INE253B01015
A4: 3IINFOTECH | B4: EQ | C4: 2.1 | D4: 2.1 | E4: 1.95 | F4: 2 | G4: 2.05 | H4: 2.05 | I4: 1291505 | J4: 2582134.2 | K4: 2019-09-30 | L4: 426 | M4: INE748C01020
A5: 3MINDIA | B5: EQ | C5: 20450 | D5: 20790.65 | E5: 19910.75 | F5: 20671.05 | G5: 20659.95 | H5: 20517.4 | I5: 2831 | J5: 58214947.3 | K5: 2019-09-30 | L5: 985 | M5: INE470A01017
A6: 5PAISA | B6: EQ | C6: 190.3 | D6: 190.3 | E6: 190.3 | F6: 190.3 | G6: 190.3 | H6: 181.25 | I6: 15669 | J6: 2981810.7 | K6: 2019-09-30 | L6: 119 | M6: INE618L01018
A7: 63MOONS | B7: EQ | C7: 131.5 | D7: 133.85 | E7: 122.5 | F7: 125 | G7: 124.3 | H7: 127.5 | I7: 251054 | J7: 32363487.4 | K7: 2019-09-30 | L7: 5788 | M7: INE111B01023
A8: A2ZINFRA | B8: EQ | C8: 10.3 | D8: 10.7 | E8: 10.15 | F8: 10.35 | G8: 10.35 | H8: 10.6 | I8: 272188 | J8: 2830289.95 | K8: 2019-09-30 | L8: 408 | M8: INE619I01012
A9: AARTIDRUGS | B9: EQ | C9: 477.95 | D9: 477.95 | E9: 452 | F9: 453.85 | G9: 452.5 | H9: 460.55 | I9: 5088 | J9: 2332501.85 | K9: 2019-09-30 | L9: 1631 | M9: INE767A01016
A10: AARTIIND | B10: EQ | C10: 835 | D10: 835 | E10: 797 | F10: 800.7 | G10: 800 | H10: 813.3 | I10: 101866 | J10: 83047975.6 | K10: 2019-09-30 | L10: 13814 | M10: INE769A01020
A11: AARVEEDEN | B11: EQ | C11: 16.9 | D11: 16.9 | E11: 15.5 | F11: 15.9 | G11: 16.2 | H11: 16.15 | I11: 1553 | J11: 25182.65 | K11: 2019-09-30 | L11: 74 | M11: INE273D01019
A12: AAVAS | B12: EQ | C12: 1591.9 | D12: 1619.4 | E12: 1555.6 | F12: 1596.1 | G12: 1577 | H12: 1591.85 | I12: 18842 | J12: 30097165.55 | K12: 2019-09-30 | L12: 3908 | M12: INE216P01012
A13: ABAN | B13: BE | C13: 27.55 | D13: 27.55 | E13: 26.25 | F13: 26.25 | G13: 26.25 | H13: 27.6 | I13: 19631 | J13: 516326.95 | K13: 2019-09-30 | L13: 246 | M13: INE421A01028
A14: ABB | B14: EQ | C14: 1534.95 | D14: 1534.95 | E14: 1505 | F14: 1515.35 | G14: 1518.95 | H14: 1545.35 | I14: 156032 | J14: 236369274.2 | K14: 2019-09-30 | L14: 10256 | M14: INE117A01022
A15: ABBOTINDIA | B15: EQ | C15: 10747 | D15: 10750.9 | E15: 10512 | F15: 10596.55 | G15: 10600 | H15: 10688.8 | I15: 4657 | J15: 49498614.35 | K15: 2019-09-30 | L15: 1347 | M15: INE358A01014
A16: ABCAPITAL | B16: EQ | C16: 89.7 | D16: 89.8 | E16: 84.55 | F16: 84.85 | G16: 84.9 | H16: 89.7 | I16: 1792857 | J16: 154478271.6 | K16: 2019-09-30 | L16: 17384 | M16: INE674K01013
A17: ABFRL | B17: EQ | C17: 206.8 | D17: 213.9 | E17: 201.25 | F17: 211.35 | G17: 208.5 | H17: 205.3 | I17: 550223 | J17: 113501604.5 | K17: 2019-09-30 | L17: 7159 | M17: INE647O01011
A18: ABMINTLTD | B18: BE | C18: 14.1 | D18: 14.1 | E18: 14.1 | F18: 14.1 | G18: 14.1 | H18: 14 | I18: 27 | J18: 380.7 | K18: 2019-09-30 | L18: 2 | M18: INE251C01017
A19: ABSLNN50ET | B19: EQ | C19: 278.42 | D19: 278.42 | E19: 275.32 | F19: 275.32 | G19: 275.32 | H19: 280.91 | I19: 63 | J19: 17376.15 | K19: 2019-09-30 | L19: 4 | M19: INF209KB1B87
A20: ACC | B20: EQ | C20: 1632.2 | D20: 1634 | E20: 1595.05 | F20: 1608.15 | G20: 1611 | H20: 1634.6 | I20: 552438 | J20: 892556420.2 | K20: 2019-09-30 | L20: 17309 | M20: INE012A01025
A21: ACCELYA | B21: EQ | C21: 832.1 | D21: 832.1 | E21: 807.05 | F21: 810.6 | G21: 811.4 | H21: 831.25 | I21: 5338 | J21: 4347535.35 | K21: 2019-09-30 | L21: 303 | M21: INE793A01012
A22: ACE | B22: EQ | C22: 76.3 | D22: 76.5 | E22: 74.2 | F22: 74.55 | G22: 74.5 | H22: 76.2 | I22: 145725 | J22: 10912715.75 | K22: 2019-09-30 | L22: 1460 | M22: INE731H01025
A23: ADANIENT | B23: EQ | C23: 149.1 | D23: 149.75 | E23: 143.75 | F23: 145.85 | G23: 145.5 | H23: 149.45 | I23: 3528313 | J23: 514811290 | K23: 2019-09-30 | L23: 17924 | M23: INE423A01024
A24: ADANIGAS | B24: EQ | C24: 132.5 | D24: 133.55 | E24: 128.7 | F24: 129.2 | G24: 128.8 | H24: 132.5 | I24: 630386 | J24: 81920414.7 | K24: 2019-09-30 | L24: 4332 | M24: INE399L01023
A25: ADANIGREEN | B25: EQ | C25: 57.55 | D25: 61.45 | E25: 55.8 | F25: 58.25 | G25: 58.25 | H25: 57.35 | I25: 4085782 | J25: 243350032.2 | K25: 2019-09-30 | L25: 15680 | M25: INE364U01010
A26: ADANIPORTS | B26: EQ | C26: 403 | D26: 415.55 | E26: 401.45 | F26: 413.95 | G26: 415 | H26: 408.6 | I26: 3152658 | J26: 1292303567 | K26: 2019-09-30 | L26: 58876 | M26: INE742F01042
A27: ADANIPOWER | B27: EQ | C27: 66.95 | D27: 66.95 | E27: 63.4 | F27: 64.3 | G27: 64.25 | H27: 67 | I27: 11603051 | J27: 750053736.9 | K27: 2019-09-30 | L27: 20451 | M27: INE814H01011
A28: ADANITRANS | B28: EQ | C28: 233.45 | D28: 235 | E28: 228.1 | F28: 228.6 | G28: 228.5 | H28: 233.65 | I28: 57816 | J28: 13362982.5 | K28: 2019-09-30 | L28: 1916 | M28: INE931S01010
A29: ADFFOODS | B29: EQ | C29: 279.1 | D29: 281.4 | E29: 274.25 | F29: 275.95 | G29: 276 | H29: 279.2 | I29: 16732 | J29: 4643450.25 | K29: 2019-09-30 | L29: 1289 | M29: INE982B01019
A30: ADHUNIKIND | B30: EQ | C30: 98.35 | D30: 105 | E30: 93.9 | F30: 95.7 | G30: 95.95 | H30: 98.4 | I30: 55638 | J30: 5494036.25 | K30: 2019-09-30 | L30: 992 | M30: INE452L01012
A31: ADLABS | B31: EQ | C31: 3.25 | D31: 3.25 | E31: 2.95 | F31: 2.95 | G31: 2.95 | H31: 3.1 | I31: 38029 | J31: 113613.1 | K31: 2019-09-30 | L31: 210 | M31: INE172N01012
A32: ADORWELD | B32: EQ | C32: 310.65 | D32: 313.9 | E32: 306.1 | F32: 308.25 | G32: 307.05 | H32: 314.25 | I32: 2999 | J32: 929019.8 | K32: 2019-09-30 | L32: 231 | M32: INE045A01017
A33: ADROITINFO | B33: BE | C33: 7.9 | D33: 7.9 | E33: 7.25 | F33: 7.7 | G33: 7.85 | H33: 7.6 | I33: 227 | J33: 1682.9 | K33: 2019-09-30 | L33: 6 | M33: INE737B01033
A34: ADSL | B34: EQ | C34: 13.8 | D34: 14.5 | E34: 13.8 | F34: 14.3 | G34: 14.5 | H34: 14.05 | I34: 48210 | J34: 683635.5 | K34: 2019-09-30 | L34: 177 | M34: INE102I01027
A35: ADVANIHOTR | B35: EQ | C35: 56.95 | D35: 56.95 | E35: 55 | F35: 55.2 | G35: 55 | H35: 57.05 | I35: 10499 | J35: 583943.05 | K35: 2019-09-30 | L35: 267 | M35: INE199C01026
A36: ADVENZYMES | B36: EQ | C36: 165 | D36: 166 | E36: 155 | F36: 155.3 | G36: 155.5 | H36: 164.45 | I36: 47581 | J36: 7562434.95 | K36: 2019-09-30 | L36: 1501 | M36: INE837H01020
A37: AEGISCHEM | B37: EQ | C37: 181.45 | D37: 183.35 | E37: 176.6 | F37: 181.25 | G37: 180.85 | H37: 179.25 | I37: 100295 | J37: 18035844.85 | K37: 2019-09-30 | L37: 3859 | M37: INE208C01025
A38: AFFLE | B38: EQ | C38: 1200 | D38: 1225 | E38: 1102.6 | F38: 1125.3 | G38: 1112 | H38: 1202.4 | I38: 120404 | J38: 138156000.7 | K38: 2019-09-30 | L38: 8003 | M38: INE00WC01019
A39: AGARIND | B39: EQ | C39: 116.05 | D39: 118.9 | E39: 112 | F39: 114.2 | G39: 118.9 | H39: 117.5 | I39: 53517 | J39: 6193086.15 | K39: 2019-09-30 | L39: 292 | M39: INE204E01012
A40: AGCNET | B40: BE | C40: 114.3 | D40: 123.9 | E40: 114.25 | F40: 115.2 | G40: 119.95 | H40: 120.05 | I40: 1121 | J40: 129321.05 | K40: 2019-09-30 | L40: 19 | M40: INE676A01019
A41: AGLSL | B41: EQ | C41: 51 | D41: 53.35 | E41: 51 | F41: 52.45 | G41: 52 | H41: 51.4 | I41: 24 | J41: 1255.2 | K41: 2019-09-30 | L41: 16 | M41: INE517U01013
A42: AGRITECH | B42: EQ | C42: 49.3 | D42: 49.35 | E42: 46.6 | F42: 48 | G42: 47.55 | H42: 48.05 | I42: 7175 | J42: 341249.9 | K42: 2019-09-30 | L42: 183 | M42: INE449G01018
A43: AGROPHOS | B43: EQ | C43: 100.15 | D43: 102.3 | E43: 100.05 | F43: 102.25 | G43: 102.25 | H43: 99.85 | I43: 486455 | J43: 49272013.9 | K43: 2019-09-30 | L43: 5236 | M43: INE740V01019
A44: AHLEAST | B44: EQ | C44: 175.05 | D44: 185.05 | E44: 175.05 | F44: 183.5 | G44: 178.1 | H44: 179.3 | I44: 223 | J44: 40226.75 | K44: 2019-09-30 | L44: 72 | M44: INE926K01017
A45: AHLUCONT | B45: EQ | C45: 291.9 | D45: 292.7 | E45: 280 | F45: 281.25 | G45: 280.15 | H45: 293.05 | I45: 3671 | J45: 1039648.55 | K45: 2019-09-30 | L45: 515 | M45: INE758C01029
A46: AHLWEST | B46: EQ | C46: 375 | D46: 375.2 | E46: 325 | F46: 341.9 | G46: 326 | H46: 379.85 | I46: 2410 | J46: 834887.45 | K46: 2019-09-30 | L46: 134 | M46: INE915K01010
A47: AIAENG | B47: EQ | C47: 1777.1 | D47: 1800.05 | E47: 1750.45 | F47: 1784.05 | G47: 1785 | H47: 1787.35 | I47: 11933 | J47: 21329208.85 | K47: 2019-09-30 | L47: 2263 | M47: INE212H01026
A48: AIONJSW | B48: EQ | C48: 11.9 | D48: 11.95 | E48: 11.45 | F48: 11.55 | G48: 11.45 | H48: 11.9 | I48: 42452 | J48: 495064.55 | K48: 2019-09-30 | L48: 178 | M48: INE743C01021
A49: AIRAN | B49: EQ | C49: 14.25 | D49: 14.25 | E49: 13.75 | F49: 13.85 | G49: 13.85 | H49: 14.25 | I49: 11817 | J49: 164185.6 | K49: 2019-09-30 | L49: 31 | M49: INE645W01026
A50: AJANTPHARM | B50: EQ | C50: 1056 | D50: 1060 | E50: 1005 | F50: 1010.6 | G50: 1007 | H50: 1055 | I50: 59138 | J50: 60364412.65 | K50: 2019-09-30 | L50: 4590 | M50: INE031B01049
A51: AJMERA | B51: EQ | C51: 134 | D51: 135.4 | E51: 125.5 | F51: 127.4 | G51: 127.75 | H51: 134.65 | I51: 45342 | J51: 5807744.65 | K51: 2019-09-30 | L51: 1363 | M51: INE298G01027
A52: AKSHARCHEM | B52: EQ | C52: 226.9 | D52: 232.4 | E52: 211.2 | F52: 213.45 | G52: 214.5 | H52: 226.9 | I52: 3378 | J52: 745221.25 | K52: 2019-09-30 | L52: 327 | M52: INE542B01011
A53: AKSHOPTFBR | B53: EQ | C53: 8 | D53: 8.15 | E53: 7.8 | F53: 7.8 | G53: 7.8 | H53: 8.2 | I53: 142442 | J53: 1121143 | K53: 2019-09-30 | L53: 315 | M53: INE523B01011
A54: AKZOINDIA | B54: EQ | C54: 1977 | D54: 1977 | E54: 1907.05 | F54: 1919.8 | G54: 1918.55 | H54: 1978.65 | I54: 22503 | J54: 43252855.7 | K54: 2019-09-30 | L54: 3062 | M54: INE133A01011
A55: ALANKIT | B55: EQ | C55: 22.6 | D55: 22.6 | E55: 21 | F55: 21.5 | G55: 21.75 | H55: 22 | I55: 147142 | J55: 3177670.25 | K55: 2019-09-30 | L55: 950 | M55: INE914E01040
A56: ALBERTDAVD | B56: EQ | C56: 366.35 | D56: 369.45 | E56: 348.35 | F56: 351.9 | G56: 352.6 | H56: 369.7 | I56: 4160 | J56: 1484053.2 | K56: 2019-09-30 | L56: 332 | M56: INE155C01010
A57: ALBK | B57: EQ | C57: 29.9 | D57: 29.9 | E57: 28.2 | F57: 28.7 | G57: 28.65 | H57: 29.6 | I57: 672025 | J57: 19444055.55 | K57: 2019-09-30 | L57: 3648 | M57: INE428A01015
A58: ALCHEM | B58: BE | C58: 1 | D58: 1 | E58: 1 | F58: 1 | G58: 1 | H58: 1 | I58: 240 | J58: 240 | K58: 2019-09-30 | L58: 3 | M58: INE964B01033
A59: ALEMBICLTD | B59: EQ | C59: 55.15 | D59: 55.9 | E59: 50.05 | F59: 50.65 | G59: 50.95 | H59: 55 | I59: 196658 | J59: 10305125 | K59: 2019-09-30 | L59: 1146 | M59: INE426A01027
A60: ALICON | B60: EQ | C60: 380 | D60: 388.85 | E60: 370.5 | F60: 376.2 | G60: 379.95 | H60: 379.1 | I60: 605 | J60: 229424.85 | K60: 2019-09-30 | L60: 94 | M60: INE062D01024
A61: ALKALI | B61: EQ | C61: 51.5 | D61: 51.5 | E61: 44.15 | F61: 47.55 | G61: 46.5 | H61: 49.8 | I61: 12514 | J61: 586249.9 | K61: 2019-09-30 | L61: 327 | M61: INE773I01017
A62: ALKEM | B62: EQ | C62: 1912.8 | D62: 1944.9 | E62: 1894.95 | F62: 1905.1 | G62: 1904.95 | H62: 1929.4 | I62: 54451 | J62: 103605588.8 | K62: 2019-09-30 | L62: 3077 | M62: INE540L01014
A63: ALKYLAMINE | B63: EQ | C63: 871.95 | D63: 880 | E63: 861.65 | F63: 879.9 | G63: 880 | H63: 867.9 | I63: 3612 | J63: 3162411.55 | K63: 2019-09-30 | L63: 273 | M63: INE150B01021
A64: ALLCARGO | B64: EQ | C64: 111.85 | D64: 112.2 | E64: 105.75 | F64: 107 | G64: 106.4 | H64: 110.9 | I64: 162805 | J64: 17492393.05 | K64: 2019-09-30 | L64: 2370 | M64: INE418H01029
A65: ALLSEC | B65: EQ | C65: 309.95 | D65: 309.95 | E65: 281.2 | F65: 304.3 | G65: 303 | H65: 305.5 | I65: 5345 | J65: 1595679.55 | K65: 2019-09-30 | L65: 153 | M65: INE835G01018
A66: ALMONDZ | B66: EQ | C66: 10.35 | D66: 10.95 | E66: 10.35 | F66: 10.35 | G66: 10.35 | H66: 10.85 | I66: 625 | J66: 6469.95 | K66: 2019-09-30 | L66: 14 | M66: INE326B01027
A67: ALOKTEXT | B67: EQ | C67: 1.65 | D67: 1.7 | E67: 1.65 | F67: 1.65 | G67: 1.65 | H67: 1.7 | I67: 2676330 | J67: 4422903.2 | K67: 2019-09-30 | L67: 775 | M67: INE270A01011
A68: ALPA | B68: EQ | C68: 16.45 | D68: 16.5 | E68: 15.5 | F68: 15.75 | G68: 15.95 | H68: 16.15 | I68: 8065 | J68: 127490.3 | K68: 2019-09-30 | L68: 75 | M68: INE385I01010
A69: ALPHAGEO | B69: EQ | C69: 227.1 | D69: 233.05 | E69: 221.7 | F69: 224.45 | G69: 225 | H69: 230.6 | I69: 5074 | J69: 1157052.85 | K69: 2019-09-30 | L69: 274 | M69: INE137C01018
A70: ALPSINDUS | B70: BE | C70: 0.4 | D70: 0.45 | E70: 0.35 | F70: 0.35 | G70: 0.35 | H70: 0.4 | I70: 16322 | J70: 5894.6 | K70: 2019-09-30 | L70: 24 | M70: INE093B01015
A71: AMARAJABAT | B71: EQ | C71: 714 | D71: 720.55 | E71: 702.05 | F71: 717.6 | G71: 716.75 | H71: 714.25 | I71: 335965 | J71: 238510247.4 | K71: 2019-09-30 | L71: 7690 | M71: INE885A01032
A72: AMBER | B72: EQ | C72: 868.9 | D72: 922 | E72: 868.9 | F72: 908.15 | G72: 920 | H72: 867 | I72: 19425 | J72: 17327890.8 | K72: 2019-09-30 | L72: 1846 | M72: INE371P01015
A73: AMBIKCO | B73: EQ | C73: 930 | D73: 930 | E73: 911.05 | F73: 924.3 | G73: 928.5 | H73: 926.85 | I73: 2916 | J73: 2695400.55 | K73: 2019-09-30 | L73: 447 | M73: INE540G01014
A74: AMBUJACEM | B74: EQ | C74: 207 | D74: 207 | E74: 202.5 | F74: 203.95 | G74: 204.1 | H74: 207.05 | I74: 2199055 | J74: 449408246.7 | K74: 2019-09-30 | L74: 26493 | M74: INE079A01024
A75: AMDIND | B75: EQ | C75: 17.5 | D75: 17.5 | E75: 16.15 | F75: 16.35 | G75: 16.35 | H75: 16.85 | I75: 10279 | J75: 168393.5 | K75: 2019-09-30 | L75: 88 | M75: INE005I01014
A76: AMJLAND | B76: EQ | C76: 17.4 | D76: 18.25 | E76: 17.1 | F76: 17.75 | G76: 17.8 | H76: 17.55 | I76: 1491 | J76: 26132.65 | K76: 2019-09-30 | L76: 29 | M76: INE606A01024
A77: AMRUTANJAN | B77: EQ | C77: 369.95 | D77: 373.5 | E77: 352 | F77: 360.9 | G77: 360.55 | H77: 365.8 | I77: 57254 | J77: 20756717.25 | K77: 2019-09-30 | L77: 2420 | M77: INE098F01031
A78: ANANTRAJ | B78: EQ | C78: 35 | D78: 35 | E78: 33.3 | F78: 33.85 | G78: 33.35 | H78: 34.65 | I78: 145170 | J78: 4933273.05 | K78: 2019-09-30 | L78: 527 | M78: INE242C01024
A79: ANDHRABANK | B79: EQ | C79: 18.35 | D79: 18.4 | E79: 16.55 | F79: 17.15 | G79: 17.25 | H79: 18.25 | I79: 728473 | J79: 12779586.85 | K79: 2019-09-30 | L79: 2720 | M79: INE434A01013
A80: ANDHRACEMT | B80: BE | C80: 2.7 | D80: 2.85 | E80: 2.65 | F80: 2.65 | G80: 2.65 | H80: 2.75 | I80: 22191 | J80: 58927.95 | K80: 2019-09-30 | L80: 47 | M80: INE666E01012
A81: ANDHRSUGAR | B81: EQ | C81: 289.45 | D81: 291 | E81: 279 | F81: 282.95 | G81: 283.6 | H81: 289.5 | I81: 28911 | J81: 8218349 | K81: 2019-09-30 | L81: 1172 | M81: INE715B01013
A82: ANIKINDS | B82: EQ | C82: 8.05 | D82: 8.05 | E82: 7.35 | F82: 7.5 | G82: 7.5 | H82: 7.5 | I82: 1579 | J82: 11932.75 | K82: 2019-09-30 | L82: 16 | M82: INE087B01017
A83: ANKITMETAL | B83: BE | C83: 0.5 | D83: 0.5 | E83: 0.45 | F83: 0.5 | G83: 0.5 | H83: 0.45 | I83: 28594 | J83: 14193.55 | K83: 2019-09-30 | L83: 19 | M83: INE106I01010
A84: ANSALAPI | B84: EQ | C84: 5.25 | D84: 5.45 | E84: 5.05 | F84: 5.05 | G84: 5.05 | H84: 5.3 | I84: 36987 | J84: 189063.9 | K84: 2019-09-30 | L84: 63 | M84: INE436A01026
A85: ANSALHSG | B85: EQ | C85: 5.15 | D85: 5.15 | E85: 4.7 | F85: 4.9 | G85: 4.75 | H85: 5.15 | I85: 45903 | J85: 223256.65 | K85: 2019-09-30 | L85: 348 | M85: INE880B01015
A86: ANTGRAPHIC | B86: BE | C86: 0.7 | D86: 0.75 | E86: 0.7 | F86: 0.75 | G86: 0.75 | H86: 0.75 | I86: 11535 | J86: 8450.25 | K86: 2019-09-30 | L86: 14 | M86: INE414B01021
A87: ANUP | B87: EQ | C87: 480.25 | D87: 483.15 | E87: 460.25 | F87: 463.9 | G87: 463 | H87: 474.35 | I87: 15234 | J87: 7114477.45 | K87: 2019-09-30 | L87: 808 | M87: INE294Z01018
A88: APARINDS | B88: EQ | C88: 560.1 | D88: 563.85 | E88: 550.95 | F88: 557.6 | G88: 558 | H88: 560.6 | I88: 1567 | J88: 871736.6 | K88: 2019-09-30 | L88: 171 | M88: INE372A01015
A89: APCL | B89: EQ | C89: 147 | D89: 150.1 | E89: 145.15 | F89: 148.1 | G89: 150 | H89: 149.05 | I89: 1262 | J89: 185797.4 | K89: 2019-09-30 | L89: 107 | M89: INE071F01012
A90: APCOTEXIND | B90: EQ | C90: 197.2 | D90: 199.9 | E90: 195 | F90: 195.15 | G90: 195.7 | H90: 197.85 | I90: 33430 | J90: 6541817.1 | K90: 2019-09-30 | L90: 1063 | M90: INE116A01032
A91: APEX | B91: EQ | C91: 252.95 | D91: 253.1 | E91: 239 | F91: 241.7 | G91: 240 | H91: 251.15 | I91: 43368 | J91: 10536288.4 | K91: 2019-09-30 | L91: 2798 | M91: INE346W01013
A92: APLAPOLLO | B92: EQ | C92: 1391.9 | D92: 1412.9 | E92: 1350 | F92: 1362.35 | G92: 1361 | H92: 1380.9 | I92: 58563 | J92: 80231770.15 | K92: 2019-09-30 | L92: 1968 | M92: INE702C01019
A93: APLLTD | B93: EQ | C93: 507 | D93: 520.7 | E93: 505.1 | F93: 509.4 | G93: 508 | H93: 513.85 | I93: 9559 | J93: 4901887.75 | K93: 2019-09-30 | L93: 829 | M93: INE901L01018
A94: APOLLO | B94: EQ | C94: 81.8 | D94: 82.65 | E94: 75 | F94: 76.3 | G94: 75.95 | H94: 79.25 | I94: 20609 | J94: 1610147.7 | K94: 2019-09-30 | L94: 754 | M94: INE713T01010
A95: APOLLOHOSP | B95: EQ | C95: 1404.4 | D95: 1405.85 | E95: 1360.2 | F95: 1395.5 | G95: 1397 | H95: 1400.55 | I95: 708880 | J95: 980050903 | K95: 2019-09-30 | L95: 38860 | M95: INE437A01024
A96: APOLLOTYRE | B96: EQ | C96: 183 | D96: 184.4 | E96: 176.3 | F96: 181.65 | G96: 181.25 | H96: 181.85 | I96: 3073573 | J96: 552428885.5 | K96: 2019-09-30 | L96: 77409 | M96: INE438A01022
A97: APOLSINHOT | B97: EQ | C97: 865 | D97: 865 | E97: 803.05 | F97: 816.85 | G97: 808.05 | H97: 845 | I97: 1113 | J97: 910158.25 | K97: 2019-09-30 | L97: 177 | M97: INE451F01024
A98: APTECHT | B98: EQ | C98: 156.2 | D98: 159.75 | E98: 152.1 | F98: 156.7 | G98: 156 | H98: 157 | I98: 214238 | J98: 33361357.05 | K98: 2019-09-30 | L98: 5931 | M98: INE266F01018
A99: ARCHIDPLY | B99: EQ | C99: 29.25 | D99: 29.25 | E99: 25.95 | F99: 26.75 | G99: 26.75 | H99: 29.45 | I99: 33981 | J99: 923955.7 | K99: 2019-09-30 | L99: 537 | M99: INE877I01016
A100: ARCHIES | B100: BE | C100: 20.5 | D100: 21 | E100: 19.3 | F100: 20.2 | G100: 20.5 | H100: 20.1 | I100: 30765 | J100: 614550.9 | K100: 2019-09-30 | L100: 181 | M100: INE731A01020
A101: ARCOTECH | B101: BE | C101: 2 | D101: 2.15 | E101: 1.95 | F101: 2 | G101: 2.05 | H101: 2.05 | I101: 14811 | J101: 29536.75 | K101: 2019-09-30 | L101: 56 | M101: INE574I01035
A102: ARIES | B102: EQ | C102: 66.6 | D102: 67.35 | E102: 62.75 | F102: 63.15 | G102: 63.4 | H102: 65.95 | I102: 19837 | J102: 1274622.55 | K102: 2019-09-30 | L102: 434 | M102: INE298I01015
A103: ARIHANT | B103: EQ | C103: 19 | D103: 19 | E103: 19 | F103: 19 | G103: 19 | H103: 19 | I103: 1 | J103: 19 | K103: 2019-09-30 | L103: 1 | M103: INE413D01011
A104: ARIHANTSUP | B104: BE | C104: 41.85 | D104: 41.85 | E104: 39.8 | F104: 39.8 | G104: 39.8 | H104: 41.85 | I104: 298 | J104: 11867.35 | K104: 2019-09-30 | L104: 8 | M104: INE643K01018
A105: ARMANFIN | B105: EQ | C105: 539 | D105: 545 | E105: 522 | F105: 529.3 | G105: 532 | H105: 524.45 | I105: 11781 | J105: 6289457.75 | K105: 2019-09-30 | L105: 576 | M105: INE109C01017
A106: AROGRANITE | B106: EQ | C106: 41.25 | D106: 42.65 | E106: 40.2 | F106: 40.5 | G106: 40.5 | H106: 41.8 | I106: 11139 | J106: 458280.15 | K106: 2019-09-30 | L106: 177 | M106: INE210C01013
A107: ARROWGREEN | B107: EQ | C107: 54 | D107: 57.9 | E107: 52.65 | F107: 54.4 | G107: 52.85 | H107: 55.35 | I107: 1206 | J107: 65603.4 | K107: 2019-09-30 | L107: 86 | M107: INE570D01018
A108: ARROWTEX | B108: EQ | C108: 10.15 | D108: 10.5 | E108: 9.6 | F108: 9.7 | G108: 9.7 | H108: 10.15 | I108: 8752 | J108: 87026.8 | K108: 2019-09-30 | L108: 179 | M108: INE933J01015
A109: ARSHIYA | B109: EQ | C109: 21 | D109: 21.2 | E109: 20.35 | F109: 20.4 | G109: 21.1 | H109: 21.4 | I109: 40707 | J109: 832655.75 | K109: 2019-09-30 | L109: 387 | M109: INE968D01022
A110: ARSSINFRA | B110: EQ | C110: 23.9 | D110: 24.4 | E110: 22.9 | F110: 22.9 | G110: 22.9 | H110: 24.1 | I110: 10912 | J110: 253097 | K110: 2019-09-30 | L110: 102 | M110: INE267I01010
A111: ARVIND | B111: EQ | C111: 47.5 | D111: 48.25 | E111: 46.35 | F111: 47.95 | G111: 48 | H111: 47.9 | I111: 2117036 | J111: 100620655.1 | K111: 2019-09-30 | L111: 17644 | M111: INE034A01011
A112: ARVINDFASN | B112: EQ | C112: 444.95 | D112: 447.6 | E112: 431 | F112: 435.15 | G112: 434.9 | H112: 444.95 | I112: 11026 | J112: 4819671.35 | K112: 2019-09-30 | L112: 1334 | M112: INE955V01021
A113: ARVSMART | B113: EQ | C113: 85.1 | D113: 89.95 | E113: 84 | F113: 86.1 | G113: 86.15 | H113: 86.15 | I113: 9120 | J113: 778311.05 | K113: 2019-09-30 | L113: 226 | M113: INE034S01021
A114: ASAHIINDIA | B114: EQ | C114: 187.1 | D114: 188 | E114: 181.9 | F114: 182.05 | G114: 181.9 | H114: 189 | I114: 6048 | J114: 1114128.4 | K114: 2019-09-30 | L114: 361 | M114: INE439A01020
A115: ASAHISONG | B115: EQ | C115: 135.95 | D115: 142.8 | E115: 134.7 | F115: 136.55 | G115: 137.8 | H115: 133.7 | I115: 14156 | J115: 1961745.8 | K115: 2019-09-30 | L115: 453 | M115: INE228I01012
A116: ASAL | B116: EQ | C116: 37 | D116: 37 | E116: 34.75 | F116: 35.8 | G116: 36 | H116: 37.35 | I116: 3499 | J116: 124296.65 | K116: 2019-09-30 | L116: 116 | M116: INE900C01027
A117: ASHAPURMIN | B117: EQ | C117: 27.95 | D117: 29.2 | E117: 26.7 | F117: 29.2 | G117: 29.2 | H117: 27.85 | I117: 55833 | J117: 1614832.85 | K117: 2019-09-30 | L117: 149 | M117: INE348A01023
A118: ASHIANA | B118: EQ | C118: 107.85 | D118: 107.9 | E118: 103.5 | F118: 105.1 | G118: 103.55 | H118: 105.25 | I118: 28640 | J118: 2996147.3 | K118: 2019-09-30 | L118: 534 | M118: INE365D01021
A119: ASHIMASYN | B119: EQ | C119: 8.5 | D119: 10 | E119: 8.2 | F119: 8.3 | G119: 8.25 | H119: 8.5 | I119: 21342 | J119: 187191.1 | K119: 2019-09-30 | L119: 77 | M119: INE440A01010
A120: ASHOKA | B120: EQ | C120: 102.5 | D120: 103.25 | E120: 96.55 | F120: 97.4 | G120: 97.35 | H120: 103.05 | I120: 207405 | J120: 20411064.95 | K120: 2019-09-30 | L120: 3341 | M120: INE442H01029
A121: ASHOKLEY | B121: EQ | C121: 72.1 | D121: 72.25 | E121: 65.9 | F121: 68.7 | G121: 68 | H121: 71.9 | I121: 41578689 | J121: 2834527813 | K121: 2019-09-30 | L121: 110952 | M121: INE208A01029
A122: ASIANHOTNR | B122: EQ | C122: 112 | D122: 112 | E122: 101.05 | F122: 101.55 | G122: 101.55 | H122: 104.55 | I122: 572 | J122: 59812.25 | K122: 2019-09-30 | L122: 43 | M122: INE363A01022
A123: ASIANPAINT | B123: EQ | C123: 1768 | D123: 1770 | E123: 1737.05 | F123: 1762.15 | G123: 1764 | H123: 1776.3 | I123: 1041807 | J123: 1825955784 | K123: 2019-09-30 | L123: 54136 | M123: INE021A01026
A124: ASIANTILES | B124: EQ | C124: 240.95 | D124: 240.95 | E124: 224.4 | F124: 228.95 | G124: 231.9 | H124: 237.05 | I124: 38678 | J124: 8981647.15 | K124: 2019-09-30 | L124: 2887 | M124: INE022I01019
A125: ASPINWALL | B125: EQ | C125: 127.65 | D125: 139.8 | E125: 127.65 | F125: 130.1 | G125: 130.05 | H125: 133.85 | I125: 579 | J125: 78906.6 | K125: 2019-09-30 | L125: 53 | M125: INE991I01015
A126: ASSAMCO | B126: BE | C126: 0.6 | D126: 0.65 | E126: 0.55 | F126: 0.55 | G126: 0.6 | H126: 0.6 | I126: 151805 | J126: 86274.8 | K126: 2019-09-30 | L126: 52 | M126: INE442A01024
A127: ASTEC | B127: EQ | C127: 436 | D127: 436 | E127: 401.3 | F127: 409.45 | G127: 407.5 | H127: 421.9 | I127: 11224 | J127: 4607409.35 | K127: 2019-09-30 | L127: 913 | M127: INE563J01010
A128: ASTERDM | B128: EQ | C128: 120.2 | D128: 122.5 | E128: 117 | F128: 118.05 | G128: 117.2 | H128: 120.15 | I128: 36175 | J128: 4302097.25 | K128: 2019-09-30 | L128: 955 | M128: INE914M01019
A129: ASTRAL | B129: EQ | C129: 1169.4 | D129: 1197.8 | E129: 1133 | F129: 1147.85 | G129: 1162 | H129: 1160.25 | I129: 135095 | J129: 158408020.8 | K129: 2019-09-30 | L129: 5811 | M129: INE006I01046
A130: ASTRAMICRO | B130: EQ | C130: 79.4 | D130: 79.4 | E130: 75.5 | F130: 75.95 | G130: 76.2 | H130: 78.9 | I130: 75869 | J130: 5797865.85 | K130: 2019-09-30 | L130: 812 | M130: INE386C01029
A131: ASTRAZEN | B131: EQ | C131: 2249.9 | D131: 2347.6 | E131: 2249.9 | F131: 2314.25 | G131: 2305.3 | H131: 2239 | I131: 34784 | J131: 80255686.9 | K131: 2019-09-30 | L131: 4826 | M131: INE203A01020
A132: ASTRON | B132: EQ | C132: 107.6 | D132: 110.55 | E132: 107.1 | F132: 107.85 | G132: 108.2 | H132: 110.85 | I132: 658489 | J132: 71826812.2 | K132: 2019-09-30 | L132: 4531 | M132: INE646X01014
A133: ATFL | B133: EQ | C133: 483.7 | D133: 503.9 | E133: 483 | F133: 485.65 | G133: 488.55 | H133: 497.5 | I133: 3005 | J133: 1464137.1 | K133: 2019-09-30 | L133: 256 | M133: INE209A01019
A134: ATLANTA | B134: BE | C134: 9 | D134: 9 | E134: 8.65 | F134: 8.65 | G134: 8.65 | H134: 9.1 | I134: 3667 | J134: 31746.65 | K134: 2019-09-30 | L134: 29 | M134: INE285H01022
A135: ATNINTER | B135: BE | C135: 0.35 | D135: 0.4 | E135: 0.3 | F135: 0.4 | G135: 0.4 | H135: 0.35 | I135: 139062 | J135: 54509.25 | K135: 2019-09-30 | L135: 97 | M135: INE803A01027
A136: ATUL | B136: EQ | C136: 4050 | D136: 4079.95 | E136: 3971.25 | F136: 3996.8 | G136: 3987.95 | H136: 4032.5 | I136: 15693 | J136: 62960972.05 | K136: 2019-09-30 | L136: 3214 | M136: INE100A01010
A137: ATULAUTO | B137: EQ | C137: 231 | D137: 233 | E137: 224.5 | F137: 226.25 | G137: 224.5 | H137: 230.65 | I137: 8231 | J137: 1877946.95 | K137: 2019-09-30 | L137: 338 | M137: INE951D01028
A138: AUBANK | B138: EQ | C138: 662.9 | D138: 665.2 | E138: 651 | F138: 659.5 | G138: 651.6 | H138: 663.5 | I138: 200065 | J138: 132040942.6 | K138: 2019-09-30 | L138: 20482 | M138: INE949L01017
A139: AURIONPRO | B139: EQ | C139: 106.05 | D139: 110 | E139: 105.65 | F139: 107.1 | G139: 108.1 | H139: 106.9 | I139: 37201 | J139: 4026849.15 | K139: 2019-09-30 | L139: 670 | M139: INE132H01018
A140: AUROPHARMA | B140: EQ | C140: 596.5 | D140: 599 | E140: 580 | F140: 589 | G140: 588.1 | H140: 597.2 | I140: 1583086 | J140: 929595638.5 | K140: 2019-09-30 | L140: 31262 | M140: INE406A01037
A141: AUSOMENT | B141: EQ | C141: 28.25 | D141: 30.6 | E141: 28.25 | F141: 29.1 | G141: 29 | H141: 29.95 | I141: 969 | J141: 28424.4 | K141: 2019-09-30 | L141: 41 | M141: INE218C01016
A142: AUTOAXLES | B142: EQ | C142: 981 | D142: 1008 | E142: 951.6 | F142: 970.2 | G142: 961 | H142: 991.2 | I142: 8477 | J142: 8247358.6 | K142: 2019-09-30 | L142: 862 | M142: INE449A01011
A143: AUTOIND | B143: EQ | C143: 40 | D143: 42.65 | E143: 39.2 | F143: 40.1 | G143: 39.6 | H143: 39.75 | I143: 7653 | J143: 309716.15 | K143: 2019-09-30 | L143: 179 | M143: INE718H01014
A144: AUTOLITIND | B144: EQ | C144: 23.4 | D144: 24.8 | E144: 23.05 | F144: 23.1 | G144: 23.05 | H144: 24.25 | I144: 980 | J144: 22906.65 | K144: 2019-09-30 | L144: 14 | M144: INE448A01013
A145: AVADHSUGAR | B145: EQ | C145: 295.15 | D145: 297.7 | E145: 265.1 | F145: 274.75 | G145: 272.8 | H145: 294.4 | I145: 103260 | J145: 28727096.35 | K145: 2019-09-30 | L145: 3454 | M145: INE349W01017
A146: AVANTIFEED | B146: EQ | C146: 389.6 | D146: 389.6 | E146: 363 | F146: 367.4 | G146: 363.5 | H146: 387.3 | I146: 248804 | J146: 92313096.4 | K146: 2019-09-30 | L146: 12296 | M146: INE871C01038
A147: AVTNPL | B147: EQ | C147: 22.55 | D147: 23 | E147: 22.3 | F147: 22.95 | G147: 23 | H147: 22.7 | I147: 11292 | J147: 256351.45 | K147: 2019-09-30 | L147: 86 | M147: INE488D01021
A148: AXISBANK | B148: EQ | C148: 704.05 | D148: 712.4 | E148: 682.1 | F148: 685 | G148: 684.8 | H148: 700.6 | I148: 20073726 | J148: 1.385236427e+10 | K148: 2019-09-30 | L148: 228625 | M148: INE238A01034
A149: AXISCADES | B149: EQ | C149: 83.2 | D149: 83.2 | E149: 73 | F149: 77.3 | G149: 81 | H149: 81.9 | I149: 199924 | J149: 15646298.05 | K149: 2019-09-30 | L149: 1421 | M149: INE555B01013
A150: AXISGOLD | B150: EQ | C150: 3320 | D150: 3320 | E150: 3282.7 | F150: 3292.35 | G150: 3292.1 | H150: 3298.95 | I150: 285 | J150: 938137.3 | K150: 2019-09-30 | L150: 46 | M150: INF846K01347
A151: AXISNIFTY | B151: EQ | C151: 1188.7 | D151: 1188.7 | E151: 1171.24 | F151: 1172.15 | G151: 1172.15 | H151: 1192.86 | I151: 145 | J151: 170436.35 | K151: 2019-09-30 | L151: 14 | M151: INF846K01ZL0
A152: AYMSYNTEX | B152: EQ | C152: 32.05 | D152: 33.95 | E152: 31 | F152: 31.75 | G152: 32.7 | H152: 32.65 | I152: 40005 | J152: 1300491.95 | K152: 2019-09-30 | L152: 298 | M152: INE193B01039
A153: BAGFILMS | B153: EQ | C153: 1.55 | D153: 1.65 | E153: 1.55 | F153: 1.65 | G153: 1.65 | H153: 1.6 | I153: 638148 | J153: 1019238.25 | K153: 2019-09-30 | L153: 257 | M153: INE116D01028
A154: BAJAJ-AUTO | B154: EQ | C154: 2960.1 | D154: 2974.95 | E154: 2902.5 | F154: 2941.8 | G154: 2928.05 | H154: 2957.5 | I154: 384245 | J154: 1127997146 | K154: 2019-09-30 | L154: 27574 | M154: INE917I01010
A155: BAJAJCON | B155: EQ | C155: 249.95 | D155: 249.95 | E155: 244 | F155: 245.65 | G155: 246 | H155: 249.25 | I155: 71984 | J155: 17738528.25 | K155: 2019-09-30 | L155: 3591 | M155: INE933K01021
A156: BAJAJELEC | B156: EQ | C156: 409.6 | D156: 409.75 | E156: 388.15 | F156: 390.95 | G156: 393 | H156: 408.25 | I156: 62752 | J156: 24852807.85 | K156: 2019-09-30 | L156: 3506 | M156: INE193E01025
A157: BAJAJFINSV | B157: EQ | C157: 8560 | D157: 8668.8 | E157: 8410.35 | F157: 8513 | G157: 8497.9 | H157: 8550.35 | I157: 462717 | J157: 3953200614 | K157: 2019-09-30 | L157: 53309 | M157: INE918I01018
A158: BAJAJHIND | B158: EQ | C158: 6.8 | D158: 6.8 | E158: 6.4 | F158: 6.5 | G158: 6.5 | H158: 6.75 | I158: 851548 | J158: 5583550.6 | K158: 2019-09-30 | L158: 1069 | M158: INE306A01021
A159: BAJAJHLDNG | B159: EQ | C159: 3549.95 | D159: 3597 | E159: 3512 | F159: 3593.25 | G159: 3582.3 | H159: 3553.5 | I159: 15975 | J159: 57214904.8 | K159: 2019-09-30 | L159: 3263 | M159: INE118A01012
A160: BAJFINANCE | B160: EQ | C160: 4065.9 | D160: 4111.75 | E160: 4031 | F160: 4046.05 | G160: 4048.9 | H160: 4057.4 | I160: 2256361 | J160: 9162482185 | K160: 2019-09-30 | L160: 89358 | M160: INE296A01024
A161: BALAJITELE | B161: EQ | C161: 54.9 | D161: 56.1 | E161: 52.5 | F161: 53.8 | G161: 53.3 | H161: 54.85 | I161: 63961 | J161: 3450661.45 | K161: 2019-09-30 | L161: 457 | M161: INE794B01026
A162: BALAMINES | B162: EQ | C162: 353.75 | D162: 354 | E162: 320 | F162: 331.85 | G162: 328.9 | H162: 350.65 | I162: 32809 | J162: 10933793.45 | K162: 2019-09-30 | L162: 1676 | M162: INE050E01027
A163: BALAXI | B163: EQ | C163: 90.1 | D163: 99.4 | E163: 90.1 | F163: 90.15 | G163: 90.15 | H163: 94.8 | I163: 408 | J163: 38630.8 | K163: 2019-09-30 | L163: 3 | M163: INE618N01014
A164: BALKRISHNA | B164: BE | C164: 30.95 | D164: 31.55 | E164: 30.05 | F164: 30.65 | G164: 30.95 | H164: 30.15 | I164: 12429 | J164: 384955.25 | K164: 2019-09-30 | L164: 102 | M164: INE875R01011
A165: BALKRISIND | B165: EQ | C165: 775 | D165: 778.5 | E165: 762.05 | F165: 776.25 | G165: 778 | H165: 771.55 | I165: 233003 | J165: 179730514.6 | K165: 2019-09-30 | L165: 6553 | M165: INE787D01026
A166: BALLARPUR | B166: EQ | C166: 0.55 | D166: 0.55 | E166: 0.5 | F166: 0.5 | G166: 0.5 | H166: 0.55 | I166: 7149519 | J166: 3617158.3 | K166: 2019-09-30 | L166: 632 | M166: INE294A01037
A167: BALMLAWRIE | B167: EQ | C167: 169.3 | D167: 171.05 | E167: 166.3 | F167: 167 | G167: 167.2 | H167: 170.05 | I167: 59049 | J167: 9909226.6 | K167: 2019-09-30 | L167: 1206 | M167: INE164A01016
A168: BALPHARMA | B168: EQ | C168: 39.45 | D168: 40.3 | E168: 38.25 | F168: 38.75 | G168: 38.5 | H168: 39.4 | I168: 3238 | J168: 125633.5 | K168: 2019-09-30 | L168: 108 | M168: INE083D01012
A169: BALRAMCHIN | B169: EQ | C169: 163.7 | D169: 163.85 | E169: 151.7 | F169: 154.45 | G169: 155.6 | H169: 162.85 | I169: 1266783 | J169: 196182880.1 | K169: 2019-09-30 | L169: 13578 | M169: INE119A01028
A170: BANARBEADS | B170: EQ | C170: 39.45 | D170: 39.45 | E170: 38 | F170: 38.05 | G170: 38.05 | H170: 39.4 | I170: 58 | J170: 2267.4 | K170: 2019-09-30 | L170: 13 | M170: INE655B01011
A171: BANARISUG | B171: EQ | C171: 1164.85 | D171: 1194 | E171: 1150.1 | F171: 1150.1 | G171: 1150.1 | H171: 1164.8 | I171: 92 | J171: 107251.95 | K171: 2019-09-30 | L171: 24 | M171: INE459A01010
A172: BANCOINDIA | B172: EQ | C172: 105.9 | D172: 106.4 | E172: 100.4 | F172: 103.95 | G172: 104 | H172: 104.7 | I172: 39675 | J172: 4098308.05 | K172: 2019-09-30 | L172: 1640 | M172: INE213C01025
A173: BANDHANBNK | B173: EQ | C173: 501 | D173: 508.8 | E173: 488.1 | F173: 491.9 | G173: 490.6 | H173: 498.85 | I173: 510468 | J173: 253923660.6 | K173: 2019-09-30 | L173: 32082 | M173: INE545U01014
A174: BANG | B174: EQ | C174: 27.4 | D174: 27.4 | E174: 22.5 | F174: 23.05 | G174: 22.55 | H174: 27.4 | I174: 13962 | J174: 338907.6 | K174: 2019-09-30 | L174: 486 | M174: INE863I01016
A175: BANKBARODA | B175: EQ | C175: 95.1 | D175: 95.5 | E175: 91.5 | F175: 93.05 | G175: 93.2 | H175: 95.1 | I175: 26815456 | J175: 2489495469 | K175: 2019-09-30 | L175: 60735 | M175: INE028A01039
A176: BANKBEES | B176: EQ | C176: 3043.8 | D176: 3044.3 | E176: 2963 | F176: 2981.75 | G176: 2984.15 | H176: 3053.9 | I176: 192376 | J176: 573709425.6 | K176: 2019-09-30 | L176: 1863 | M176: INF732E01078
A177: BANKINDIA | B177: EQ | C177: 66.2 | D177: 66.2 | E177: 62.35 | F177: 62.95 | G177: 62.95 | H177: 66.2 | I177: 12141961 | J177: 773434444 | K177: 2019-09-30 | L177: 24731 | M177: INE084A01016
A178: BANSWRAS | B178: EQ | C178: 75 | D178: 78 | E178: 73.05 | F178: 77.05 | G178: 77.2 | H178: 75 | I178: 7870 | J178: 598611.25 | K178: 2019-09-30 | L178: 144 | M178: INE629D01012
A179: BARTRONICS | B179: BE | C179: 2.2 | D179: 2.3 | E179: 2.1 | F179: 2.1 | G179: 2.1 | H179: 2.2 | I179: 9718 | J179: 20507.9 | K179: 2019-09-30 | L179: 14 | M179: INE855F01034
A180: BASF | B180: EQ | C180: 1031.75 | D180: 1031.8 | E180: 1000 | F180: 1001.9 | G180: 1001 | H180: 1019.25 | I180: 6159 | J180: 6212392.7 | K180: 2019-09-30 | L180: 649 | M180: INE373A01013
A181: BASML | B181: EQ | C181: 135 | D181: 137 | E181: 126.05 | F181: 134.6 | G181: 137 | H181: 136.45 | I181: 2076 | J181: 278207.4 | K181: 2019-09-30 | L181: 84 | M181: INE186H01014
A182: BATAINDIA | B182: EQ | C182: 1767 | D182: 1769.95 | E182: 1713.1 | F182: 1722.2 | G182: 1721 | H182: 1754.1 | I182: 663077 | J182: 1147194450 | K182: 2019-09-30 | L182: 27793 | M182: INE176A01028
A183: BAYERCROP | B183: EQ | C183: 3387 | D183: 3387 | E183: 3322.55 | F183: 3351.25 | G183: 3350 | H183: 3359.9 | I183: 11257 | J183: 37752376.1 | K183: 2019-09-30 | L183: 3991 | M183: INE462A01022
A184: BBL | B184: EQ | C184: 971.5 | D184: 971.5 | E184: 957.25 | F184: 959.2 | G184: 960 | H184: 970.3 | I184: 3164 | J184: 3041136.95 | K184: 2019-09-30 | L184: 169 | M184: INE464A01028
A185: BBTC | B185: EQ | C185: 1185 | D185: 1209.8 | E185: 1124 | F185: 1135.2 | G185: 1133.55 | H185: 1188.5 | I185: 135573 | J185: 156125915.9 | K185: 2019-09-30 | L185: 8458 | M185: INE050A01025
A186: BCG | B186: EQ | C186: 3.35 | D186: 3.45 | E186: 3.2 | F186: 3.25 | G186: 3.25 | H186: 3.35 | I186: 153201 | J186: 498715.9 | K186: 2019-09-30 | L186: 191 | M186: INE425B01027
A187: BCP | B187: EQ | C187: 9.95 | D187: 9.95 | E187: 9.65 | F187: 9.85 | G187: 9.95 | H187: 9.8 | I187: 126646 | J187: 1238868.55 | K187: 2019-09-30 | L187: 74 | M187: INE905P01028
A188: BDL | B188: EQ | C188: 303.4 | D188: 307 | E188: 294.1 | F188: 295.9 | G188: 297 | H188: 305.75 | I188: 27869 | J188: 8330225.85 | K188: 2019-09-30 | L188: 1786 | M188: INE171Z01018
A189: BEARDSELL | B189: EQ | C189: 10.35 | D189: 11.9 | E189: 10.2 | F189: 10.5 | G189: 11.75 | H189: 10.35 | I189: 2285 | J189: 23908.25 | K189: 2019-09-30 | L189: 16 | M189: INE520H01022
A190: BEDMUTHA | B190: EQ | C190: 12.45 | D190: 12.45 | E190: 11.65 | F190: 11.8 | G190: 11.8 | H190: 12.05 | I190: 765 | J190: 9043.8 | K190: 2019-09-30 | L190: 19 | M190: INE844K01012
A191: BEL | B191: EQ | C191: 108.35 | D191: 108.9 | E191: 105.1 | F191: 108.3 | G191: 108.4 | H191: 108.15 | I191: 7870395 | J191: 841920390 | K191: 2019-09-30 | L191: 37459 | M191: INE263A01024
A192: BEML | B192: EQ | C192: 945.5 | D192: 973 | E192: 928.55 | F192: 954.7 | G192: 951 | H192: 939.8 | I192: 1106048 | J192: 1052113721 | K192: 2019-09-30 | L192: 33975 | M192: INE258A01016
A193: BEPL | B193: EQ | C193: 60.5 | D193: 60.9 | E193: 55.7 | F193: 58.2 | G193: 58.3 | H193: 60.45 | I193: 370735 | J193: 21497690.65 | K193: 2019-09-30 | L193: 3070 | M193: INE922A01025
A194: BERGEPAINT | B194: EQ | C194: 441.5 | D194: 444.8 | E194: 433.6 | F194: 434.8 | G194: 435.65 | H194: 441.45 | I194: 2058899 | J194: 904245973 | K194: 2019-09-30 | L194: 95504 | M194: INE463A01038
A195: BFINVEST | B195: EQ | C195: 285.35 | D195: 288.9 | E195: 276.5 | F195: 282.75 | G195: 280.5 | H195: 285.4 | I195: 49813 | J195: 14069274.8 | K195: 2019-09-30 | L195: 1646 | M195: INE878K01010
A196: BFUTILITIE | B196: EQ | C196: 186.65 | D196: 187.15 | E196: 177.15 | F196: 179.55 | G196: 178.75 | H196: 185.75 | I196: 340153 | J196: 61350369.85 | K196: 2019-09-30 | L196: 9094 | M196: INE243D01012
A197: BGLOBAL | B197: BE | C197: 1.55 | D197: 1.6 | E197: 1.5 | F197: 1.55 | G197: 1.55 | H197: 1.55 | I197: 3110 | J197: 4721 | K197: 2019-09-30 | L197: 10 | M197: INE224M01013
A198: BGRENERGY | B198: EQ | C198: 37.45 | D198: 37.45 | E198: 34.65 | F198: 35.1 | G198: 35.15 | H198: 36.6 | I198: 86920 | J198: 3085319.15 | K198: 2019-09-30 | L198: 1323 | M198: INE661I01014
A199: BHAGERIA | B199: EQ | C199: 113.45 | D199: 113.55 | E199: 107 | F199: 108 | G199: 107.85 | H199: 113.6 | I199: 14823 | J199: 1626320.65 | K199: 2019-09-30 | L199: 554 | M199: INE354C01027
A200: BHAGYANGR | B200: EQ | C200: 19.5 | D200: 19.9 | E200: 18.8 | F200: 18.95 | G200: 18.8 | H200: 19.9 | I200: 2501 | J200: 47688.2 | K200: 2019-09-30 | L200: 123 | M200: INE458B01036
... 1491 more rows

Sheet Sheet1 (hidden)

Sheet Sheet3 (hidden)

Sheet Sheet4 (hidden)

Sheet Sheet5 (hidden)
